Workbook

Sheet Home
C2: Carbon Connects | E2: Site Emissions Tool (SET)
B22: Introduction
C24: Welcome
C25: Welcome to the Carbon Connect Site Emission Tool (SET)! Here you can calculate your greenhouse gas emission of managed wetland areas .
C27: Description
C28: SET is a tool created for supporting decision making in the context of land management and environmentally sustainable business development in peatlands. Based on existing information on groundwater level, vegetation, fertilizing practices and feedstock intensity, it estimates CO2 and N2O emission and sequestration after a (hypothetical) rewetting plan.
C33: Background
C34: Agriculture is mostly ignored when countering climate change, even though it causes one third of global C02 emissions. 3% of the world’s land surface is covered by peatlands, which are large concentrations of organic matter having accumulated over centuries. Carbon Connects wants to promote an alternative practice for wet land management that reduces carbon emission by rising water level and planting new crops. Carbon Connects will also develop financially viable business models by developing value chains and use blue and C-credit schemes to enable widespread implementation and scaling-up without public subsidies.
C40: For whom
C41: SET is meant for farmers, public authorities and other stakeholders interested in calculating the greenhouse gas mission of managed wetland areas.
B46: Use of the tool
C48: Content
C49: The tool has two sections, Input and Output. Input is for entering data on the current circumstance (Baseline) and for the new rewetted circumstances (Rewetting). Output shows the results.
C52: Legenda
D53:  | E53: Bring your mouse cursor to this symbol to read addiitonal information on the data requested
E55: Here you can enter the requested data
E57: Use the dropdown to select the appropiate option
B62: Credits
C64: The tool is developed by drs. Jasper van Belle and prof. dr. Emiel Elferink. Tool development was made financially possible by Interreg NWE.

Sheet Input
C2: Carbon Connects | G2: Site Emissions Tool (SET)
D22: Input data
D24: General site data
D26: Site name | E26: 
D28: Total area (ha) | E28:  | H28: ha
D30: Coordinates | E30:  | H30: N | J30: E
D32: Elevation | E32:  | H32: m Above Sea Level
D34: Peat type | E34: 
D36: Peat thickness | E36:  | H36: cm
D38: Year rewetting started | E38: 
D41: Baseline: groundwater and vegetation
D43: Median groundwater level in summer | E43:  | H43: cm
D45: Vegetation class | E45: 
D48: Rewetting: groundwater and vegetation
D50: Median groundwater level in summer | E50:  | H50: cm
D52: Vegetation class | E52: 
D55: Baseline: fertilizer use
D57: Animal manure applied | E57:  | H57: kg N/ha
D59: Organic fertilizer applied | E59:  | H59: kg N/ha
D61: Synthetic fertilizer | E61: 
D63: Amount applied | E63:  | H63: kg N/ha
D65: Grazing animals | E65: 
D67: Average number of grazing animals | E67:  | H67: n
D69: Average number of grazing days | E69:  | H69: days/year
D71: Crop yield | E71:  | H71: ton dm/ha
D73: Crop residues | E73: 
D75: Crop | E75:  | H75: name
D78: Rewetting: fertilizer use
D80: Animal manure applied | E80:  | H80: kg N/ha
D82: Organic fertilizer applied | E82:  | H82: kg N/ha
D84: Synthetic fertilizer | E84: 
D86: Amount applied | E86:  | H86: kg N/ha
D89: Grazing animals | E89: 
D91: Average number of grazing animals | E91:  | H91: n
D93: Average number of grazing days | E93:  | H93: days/year
D95: Crop yield | E95:  | H95: ton dm/ha
D97: Crop residues | E97: 
D99: Crop | E99:  | H99: name
D102: Baseline: activity data
D104: Land management | E104:  | H104: l diesel / site
E106:  | H106: kWh electricity / site
D109: Rewetting: activity data
D111: Land management | E111:  | H111: l diesel / site
E113:  | H113: kWh electricity / site
D116: Rewetting: crop use
D118: crop use | E118: 

Sheet Output
C2: Carbon Connects | G2: Site Emissions Tool (SET)
D22: Site characteristics
E24: Site name | F24: =Input!G26 -> 0 | J24: Coordinates | K24: =Input!G30 -> 0 | L24: N | M24: =Input!I30 -> 0 | N24: E
E26: Total area (ha) | F26: =Input!G28 -> 0 | G26: ha
E28: Peat type | F28: =VLOOKUP('C content soil'!B13,'C content soil'!A2:E8,2) -> Select peat type
E30: Peat thickness | F30: =Input!G36 -> 0 | G30: cm
E32: Rewetting started | F32: =Input!G38 -> 0
F34: Baseline | I34: After rewetting
E35: Moisture class | F35: ='soil moisture classes '!E15 -> 6+: Flooded (lower eulittoral) | I35: ='soil moisture classes '!E16 -> 6+: Flooded (lower eulittoral)
E37: Vegetation class | F37: ='DATA '!C44 -> Choose your vegetation class | I37: ='DATA '!C72 -> Choose your vegetation class
D41: Baseline outcomes
E43: GEST
F45: CH4 | G45: ='DATA '!K42*Input!G28 -> 0 | I45: tCO2-eq
F47: CO2 | G47: ='DATA '!L42*Input!G28 -> 0 | I47: tCO2-eq
F49: GWP subtotal | G49: =G47+G45 -> 0 | I49: tCO2-eq
E51: N2O
F53: N20 direct | G53: =Outcome!D6 ->  | I53: tCO2-eq
F55: N20 indirect | G55: =Outcome!D7 ->  | I55: tCO2-eq
F57: GWP subtotal | G57: =G53+G55 ->  | I57: tCO2-eq
E59: Activity
F61: GWP subtotal | G61: ='fossil energy'!D20 -> 0 | I61: tCO2-eq
E63: TOTAL
F65: GWP total | G65: =Outcome!D10 ->  | I65: tCO2-eq
D68: Rewetting outcomes
E70: GEST
F72: CH4 | G72: =Outcome!F4 -> 0 | I72: tCO2-eq
F74: CO2 | G74: =Outcome!F5 -> 0 | I74: tCO2-eq
F76: GWP subtotal | G76: =G74+G72 -> 0 | I76: tCO2-eq
E78: N2O
F80: N20 direct | G80: =Outcome!F6 ->  | I80: tCO2-eq
F82: N20 indirect | G82: =Outcome!F7 ->  | I82: tCO2-eq
F84: GWP subtotal | G84: =G80+G82 ->  | I84: tCO2-eq
E86: Activity
F88: GWP subtotal | G88: =Outcome!F9 -> 0 | I88: tCO2-eq
E90: Product
F92: GWP subtotal | G92: ='crop use'!F21 -> 0 | I92: tCO2-eq
E94: TOTAL
F96: GWP total | G96: =Outcome!F10 ->  | I96: tCO2-eq
D99: Carbon savings
D101:  | E101: Net GHG savings
F103: Savings total | G103: =Outcome!D10-Outcome!F10 ->  | I103: tCO2-eq/ year/ site
G105: =G103/Input!G28 ->  | I105: tCO2-eq/ year/ ha
F107: Savings stock | G107: =Outcome!D4+Outcome!D5-(Outcome!F4+Outcome!F5) -> 0 | I107: tCO2-eq/ year/ site
G109: =G107/Input!$G$28 ->  | I109: tCO2-eq/ year/ ha
F111: Savings flow | G111: =Outcome!D6+Outcome!D7+Outcome!D9-(Outcome!F6+Outcome!F7+Outcome!F9) ->  | I111: tCO2-eq/ year/ site
G113: =G111/Input!$G$28 ->  | I113: tCO2-eq/ year/ ha
F115: Savings product use | G115: ='crop use'!F21*-1 -> 0 | I115: tCO2-eq/ year/ site
G117: ='crop use'!F20*-1 -> 0 | I117: tCO2-eq/ year/ ha
E120: Carbon stock peat soil
F122: Stock at start year | G122: ='C content soil'!F13*Input!G28 ->  | I122: tCO2-eq/ site | K122: After peat is lost the actual emission from soil is uncertain because without peat soil GEST is no longer applicable.
G124: ='C content soil'!E13*Input!G28 ->  | I124: ton C/ site
G126: ='C content soil'!F13 ->  | I126: tCO2-eq/ ha | K126: The visualisation of C-credits shows how much emission reduction or C-sequestration can be claimed for crediting or subsidies.
G128: ='C content soil'!E13 ->  | I128: ton C/ ha
F130: Time until peat is lost | K130: After peat is lost in the baseline scenario no emission reduction from soil can be claimed, but C-sequestration and emission reduction due to changes in management and replacement of fossil products still apply.
F132: Baseline | G132: =Outcome!D16 ->  | I132: years
F134: Rewetting scenario | G134: =Outcome!D17 ->  | I134: years

Sheet Timeline (hidden)
A1: _ | C1: Baseline | D1: Rewetting | P1: C-credits
A2: Year | B2: baseline emission | C2: Baseline_GESTv2 | D2: rewetting emission | E2: Rewetting_GESTv2 | F2: Carbon savings flow | G2: Carbon savings stock | H2: Carbon savings product | I2: Carbon savings_tot | J2: baseline GESTnr | K2: C-sequestration baseline | L2: C-stock soil (baseline) | M2: Stock savings creditable? | N2: Rewet GESTnr | O2: C-sequestration rewet | P2: =CONCATENATE(P1,A1,Input!$G$26) -> C-credits_
A3: =Input!G38 -> 0 | B3: =Outcome!$D$10 ->  | C3: =VLOOKUP('DATA '!$C$43,'DATA '!$B$19:$C$40,2,FALSE) -> Choose your vegetation class | D3: =Outcome!$F$10 ->  | E3: =VLOOKUP('DATA '!$C$71,'DATA '!$B$47:$C$69,2,FALSE) -> Choose your vegetation class | F3: =(Outcome!$D$6-Outcome!$F$6)+(Outcome!$D$7-Outcome!$F$7)+(Outcome!$D$9-Outcome!$F$9) ->  | G3: =(Outcome!$D$5-Outcome!$F$5)+(Outcome!$D$4-Outcome!$F$4) -> 0 | H3: =Outcome!$D$8 - Outcome!$F$8 -> 0 | I3: =SUM(F3:H3) ->  | J3: =LEFT(C3, FIND(":",C3)-1) ->  | K3: =VLOOKUP(J3,'GEST 2.0'!$A$1:$O$45,15,FALSE)*Input!$G$28*-1 ->  | L3: ='C content soil'!E13*Input!G28+K3 ->  | M3: =IF(L3>0,1,0) ->  | N3: =LEFT(E3, FIND(":",E3)-1) ->  | O3: =VLOOKUP(N3,'GEST 2.0'!$A$1:$O$45,15,FALSE)*Input!$G$28*-1 ->  | P3: =IF(M3=1,I3,F3+H3+IF(O3>0,O3*44/12,0)) ->  | X3: ppe | Y3: Prijs
A4: =A3+1 -> 1 | B4: =Outcome!$D$10 ->  | C4: =VLOOKUP('DATA '!$C$43,'DATA '!$B$19:$C$40,2,FALSE) -> Choose your vegetation class | D4: =Outcome!$F$10 ->  | E4: =VLOOKUP('DATA '!$C$71,'DATA '!$B$47:$C$69,2,FALSE) -> Choose your vegetation class | F4: =(Outcome!$D$6-Outcome!$F$6)+(Outcome!$D$7-Outcome!$F$7)+(Outcome!$D$9-Outcome!$F$9) ->  | G4: =(Outcome!$D$5-Outcome!$F$5)+(Outcome!$D$4-Outcome!$F$4) -> 0 | H4: =Outcome!$D$8 - Outcome!$F$8 -> 0 | I4: =SUM(F4:H4) ->  | K4: =VLOOKUP(J4,'GEST 2.0'!$A$1:$O$45,15,FALSE)*Input!$G$28*-1 ->  | L4: =L3+K4 ->  | M4: =IF(L4>0,1,0) ->  | N4: =LEFT(E4, FIND(":",E4)-1) ->  | O4: =VLOOKUP(N4,'GEST 2.0'!$A$1:$O$45,15,FALSE)*Input!$G$28*-1 ->  | P4: =IF(M4=1,I4,F4+H4+IF(O4>0,O4*44/12,0)) ->  | U4: Total C-credits GEST2 | W4: =SUM(P3:P52) ->  | X4: 70 | Y4: =X4*W4 -> 
A5: =A4+1 -> 2 | B5: =Outcome!$D$10 ->  | C5: =VLOOKUP('DATA '!$C$43,'DATA '!$B$19:$C$40,2,FALSE) -> Choose your vegetation class | D5: =Outcome!$F$10 ->  | E5: =VLOOKUP('DATA '!$C$71,'DATA '!$B$47:$C$69,2,FALSE) -> Choose your vegetation class | F5: =(Outcome!$D$6-Outcome!$F$6)+(Outcome!$D$7-Outcome!$F$7)+(Outcome!$D$9-Outcome!$F$9) ->  | G5: =(Outcome!$D$5-Outcome!$F$5)+(Outcome!$D$4-Outcome!$F$4) -> 0 | H5: =Outcome!$D$8 - Outcome!$F$8 -> 0 | K5: =VLOOKUP(J5,'GEST 2.0'!$A$1:$O$45,15,FALSE)*Input!$G$28*-1 ->  | L5: =L4+K5 ->  | O5: =VLOOKUP(N5,'GEST 2.0'!$A$1:$O$45,15,FALSE)*Input!$G$28*-1 -> 
A6: 3 | B6: =Outcome!$D$10 ->  | C6: =VLOOKUP('DATA '!$C$43,'DATA '!$B$19:$C$40,2,FALSE) -> Choose your vegetation class | D6: =Outcome!$F$10 ->  | E6: =VLOOKUP('DATA '!$C$71,'DATA '!$B$47:$C$69,2,FALSE) -> Choose your vegetation class | F6: =(Outcome!$D$6-Outcome!$F$6)+(Outcome!$D$7-Outcome!$F$7)+(Outcome!$D$9-Outcome!$F$9) ->  | G6: =(Outcome!$D$5-Outcome!$F$5)+(Outcome!$D$4-Outcome!$F$4) -> 0 | H6: =Outcome!$D$8 - Outcome!$F$8 -> 0 | K6: =VLOOKUP(J6,'GEST 2.0'!$A$1:$O$45,15,FALSE)*Input!$G$28*-1 ->  | O6: =VLOOKUP(N6,'GEST 2.0'!$A$1:$O$45,15,FALSE)*Input!$G$28*-1 -> 
A7: 4 | B7: =Outcome!$D$10 ->  | C7: =VLOOKUP('DATA '!$C$43,'DATA '!$B$19:$C$40,2,FALSE) -> Choose your vegetation class | D7: =Outcome!$F$10 ->  | E7: =VLOOKUP('DATA '!$C$71,'DATA '!$B$47:$C$69,2,FALSE) -> Choose your vegetation class | F7: =(Outcome!$D$6-Outcome!$F$6)+(Outcome!$D$7-Outcome!$F$7)+(Outcome!$D$9-Outcome!$F$9) ->  | G7: =(Outcome!$D$5-Outcome!$F$5)+(Outcome!$D$4-Outcome!$F$4) -> 0 | H7: =Outcome!$D$8 - Outcome!$F$8 -> 0 | K7: =VLOOKUP(J7,'GEST 2.0'!$A$1:$O$45,15,FALSE)*Input!$G$28*-1 ->  | O7: =VLOOKUP(N7,'GEST 2.0'!$A$1:$O$45,15,FALSE)*Input!$G$28*-1 -> 
A8: 5 | B8: =Outcome!$D$10 ->  | C8: =VLOOKUP('DATA '!$C$43,'DATA '!$B$19:$C$40,2,FALSE) -> Choose your vegetation class | D8: =Outcome!$F$10 ->  | E8: =VLOOKUP('DATA '!$C$71,'DATA '!$B$47:$C$69,2,FALSE) -> Choose your vegetation class | F8: =(Outcome!$D$6-Outcome!$F$6)+(Outcome!$D$7-Outcome!$F$7)+(Outcome!$D$9-Outcome!$F$9) ->  | G8: =(Outcome!$D$5-Outcome!$F$5)+(Outcome!$D$4-Outcome!$F$4) -> 0 | H8: =Outcome!$D$8 - Outcome!$F$8 -> 0 | K8: =VLOOKUP(J8,'GEST 2.0'!$A$1:$O$45,15,FALSE)*Input!$G$28*-1 ->  | O8: =VLOOKUP(N8,'GEST 2.0'!$A$1:$O$45,15,FALSE)*Input!$G$28*-1 -> 
A9: 6 | B9: =Outcome!$D$10 ->  | C9: =VLOOKUP('DATA '!$C$43,'DATA '!$B$19:$C$40,2,FALSE) -> Choose your vegetation class | D9: =Outcome!$F$10 ->  | E9: =VLOOKUP('DATA '!$C$71,'DATA '!$B$47:$C$69,2,FALSE) -> Choose your vegetation class | F9: =(Outcome!$D$6-Outcome!$F$6)+(Outcome!$D$7-Outcome!$F$7)+(Outcome!$D$9-Outcome!$F$9) ->  | G9: =(Outcome!$D$5-Outcome!$F$5)+(Outcome!$D$4-Outcome!$F$4) -> 0 | H9: =Outcome!$D$8 - Outcome!$F$8 -> 0 | K9: =VLOOKUP(J9,'GEST 2.0'!$A$1:$O$45,15,FALSE)*Input!$G$28*-1 ->  | O9: =VLOOKUP(N9,'GEST 2.0'!$A$1:$O$45,15,FALSE)*Input!$G$28*-1 -> 
A10: 7 | B10: =Outcome!$D$10 ->  | C10: =VLOOKUP('DATA '!$C$43,'DATA '!$B$19:$C$40,2,FALSE) -> Choose your vegetation class | D10: =Outcome!$F$10 ->  | E10: =VLOOKUP('DATA '!$C$71,'DATA '!$B$47:$C$69,2,FALSE) -> Choose your vegetation class | F10: =(Outcome!$D$6-Outcome!$F$6)+(Outcome!$D$7-Outcome!$F$7)+(Outcome!$D$9-Outcome!$F$9) ->  | G10: =(Outcome!$D$5-Outcome!$F$5)+(Outcome!$D$4-Outcome!$F$4) -> 0 | H10: =Outcome!$D$8 - Outcome!$F$8 -> 0 | K10: =VLOOKUP(J10,'GEST 2.0'!$A$1:$O$45,15,FALSE)*Input!$G$28*-1 ->  | O10: =VLOOKUP(N10,'GEST 2.0'!$A$1:$O$45,15,FALSE)*Input!$G$28*-1 -> 
A11: 8 | B11: =Outcome!$D$10 ->  | C11: =VLOOKUP('DATA '!$C$43,'DATA '!$B$19:$C$40,2,FALSE) -> Choose your vegetation class | D11: =Outcome!$F$10 ->  | E11: =VLOOKUP('DATA '!$C$71,'DATA '!$B$47:$C$69,2,FALSE) -> Choose your vegetation class | F11: =(Outcome!$D$6-Outcome!$F$6)+(Outcome!$D$7-Outcome!$F$7)+(Outcome!$D$9-Outcome!$F$9) ->  | G11: =(Outcome!$D$5-Outcome!$F$5)+(Outcome!$D$4-Outcome!$F$4) -> 0 | H11: =Outcome!$D$8 - Outcome!$F$8 -> 0 | K11: =VLOOKUP(J11,'GEST 2.0'!$A$1:$O$45,15,FALSE)*Input!$G$28*-1 ->  | O11: =VLOOKUP(N11,'GEST 2.0'!$A$1:$O$45,15,FALSE)*Input!$G$28*-1 -> 
A12: 9 | B12: =Outcome!$D$10 ->  | C12: =VLOOKUP('DATA '!$C$43,'DATA '!$B$19:$C$40,2,FALSE) -> Choose your vegetation class | D12: =Outcome!$F$10 ->  | E12: =VLOOKUP('DATA '!$C$71,'DATA '!$B$47:$C$69,2,FALSE) -> Choose your vegetation class | F12: =(Outcome!$D$6-Outcome!$F$6)+(Outcome!$D$7-Outcome!$F$7)+(Outcome!$D$9-Outcome!$F$9) ->  | G12: =(Outcome!$D$5-Outcome!$F$5)+(Outcome!$D$4-Outcome!$F$4) -> 0 | H12: =Outcome!$D$8 - Outcome!$F$8 -> 0 | K12: =VLOOKUP(J12,'GEST 2.0'!$A$1:$O$45,15,FALSE)*Input!$G$28*-1 ->  | O12: =VLOOKUP(N12,'GEST 2.0'!$A$1:$O$45,15,FALSE)*Input!$G$28*-1 -> 
A13: 10 | B13: =Outcome!$D$10 ->  | C13: =VLOOKUP('DATA '!$C$43,'DATA '!$B$19:$C$40,2,FALSE) -> Choose your vegetation class | D13: =Outcome!$F$10 ->  | E13: =VLOOKUP('DATA '!$C$71,'DATA '!$B$47:$C$69,2,FALSE) -> Choose your vegetation class | F13: =(Outcome!$D$6-Outcome!$F$6)+(Outcome!$D$7-Outcome!$F$7)+(Outcome!$D$9-Outcome!$F$9) ->  | G13: =(Outcome!$D$5-Outcome!$F$5)+(Outcome!$D$4-Outcome!$F$4) -> 0 | H13: =Outcome!$D$8 - Outcome!$F$8 -> 0 | K13: =VLOOKUP(J13,'GEST 2.0'!$A$1:$O$45,15,FALSE)*Input!$G$28*-1 ->  | O13: =VLOOKUP(N13,'GEST 2.0'!$A$1:$O$45,15,FALSE)*Input!$G$28*-1 -> 
A14: 11 | B14: =Outcome!$D$10 ->  | C14: =VLOOKUP('DATA '!$C$43,'DATA '!$B$19:$C$40,2,FALSE) -> Choose your vegetation class | D14: =Outcome!$F$10 ->  | E14: =VLOOKUP('DATA '!$C$71,'DATA '!$B$47:$C$69,2,FALSE) -> Choose your vegetation class | F14: =(Outcome!$D$6-Outcome!$F$6)+(Outcome!$D$7-Outcome!$F$7)+(Outcome!$D$9-Outcome!$F$9) ->  | G14: =(Outcome!$D$5-Outcome!$F$5)+(Outcome!$D$4-Outcome!$F$4) -> 0 | H14: =Outcome!$D$8 - Outcome!$F$8 -> 0 | K14: =VLOOKUP(J14,'GEST 2.0'!$A$1:$O$45,15,FALSE)*Input!$G$28*-1 ->  | O14: =VLOOKUP(N14,'GEST 2.0'!$A$1:$O$45,15,FALSE)*Input!$G$28*-1 -> 
A15: 12 | B15: =Outcome!$D$10 ->  | C15: =VLOOKUP('DATA '!$C$43,'DATA '!$B$19:$C$40,2,FALSE) -> Choose your vegetation class | D15: =Outcome!$F$10 ->  | E15: =VLOOKUP('DATA '!$C$71,'DATA '!$B$47:$C$69,2,FALSE) -> Choose your vegetation class | F15: =(Outcome!$D$6-Outcome!$F$6)+(Outcome!$D$7-Outcome!$F$7)+(Outcome!$D$9-Outcome!$F$9) ->  | G15: =(Outcome!$D$5-Outcome!$F$5)+(Outcome!$D$4-Outcome!$F$4) -> 0 | H15: =Outcome!$D$8 - Outcome!$F$8 -> 0 | K15: =VLOOKUP(J15,'GEST 2.0'!$A$1:$O$45,15,FALSE)*Input!$G$28*-1 ->  | O15: =VLOOKUP(N15,'GEST 2.0'!$A$1:$O$45,15,FALSE)*Input!$G$28*-1 -> 
A16: 13 | B16: =Outcome!$D$10 ->  | C16: =VLOOKUP('DATA '!$C$43,'DATA '!$B$19:$C$40,2,FALSE) -> Choose your vegetation class | D16: =Outcome!$F$10 ->  | E16: =VLOOKUP('DATA '!$C$71,'DATA '!$B$47:$C$69,2,FALSE) -> Choose your vegetation class | F16: =(Outcome!$D$6-Outcome!$F$6)+(Outcome!$D$7-Outcome!$F$7)+(Outcome!$D$9-Outcome!$F$9) ->  | G16: =(Outcome!$D$5-Outcome!$F$5)+(Outcome!$D$4-Outcome!$F$4) -> 0 | H16: =Outcome!$D$8 - Outcome!$F$8 -> 0 | K16: =VLOOKUP(J16,'GEST 2.0'!$A$1:$O$45,15,FALSE)*Input!$G$28*-1 ->  | O16: =VLOOKUP(N16,'GEST 2.0'!$A$1:$O$45,15,FALSE)*Input!$G$28*-1 -> 
A17: 14 | B17: =Outcome!$D$10 ->  | C17: =VLOOKUP('DATA '!$C$43,'DATA '!$B$19:$C$40,2,FALSE) -> Choose your vegetation class | D17: =Outcome!$F$10 ->  | E17: =VLOOKUP('DATA '!$C$71,'DATA '!$B$47:$C$69,2,FALSE) -> Choose your vegetation class | F17: =(Outcome!$D$6-Outcome!$F$6)+(Outcome!$D$7-Outcome!$F$7)+(Outcome!$D$9-Outcome!$F$9) ->  | G17: =(Outcome!$D$5-Outcome!$F$5)+(Outcome!$D$4-Outcome!$F$4) -> 0 | H17: =Outcome!$D$8 - Outcome!$F$8 -> 0 | K17: =VLOOKUP(J17,'GEST 2.0'!$A$1:$O$45,15,FALSE)*Input!$G$28*-1 ->  | O17: =VLOOKUP(N17,'GEST 2.0'!$A$1:$O$45,15,FALSE)*Input!$G$28*-1 -> 
A18: 15 | B18: =Outcome!$D$10 ->  | C18: =VLOOKUP('DATA '!$C$43,'DATA '!$B$19:$C$40,2,FALSE) -> Choose your vegetation class | D18: =Outcome!$F$10 ->  | E18: =VLOOKUP('DATA '!$C$71,'DATA '!$B$47:$C$69,2,FALSE) -> Choose your vegetation class | F18: =(Outcome!$D$6-Outcome!$F$6)+(Outcome!$D$7-Outcome!$F$7)+(Outcome!$D$9-Outcome!$F$9) ->  | G18: =(Outcome!$D$5-Outcome!$F$5)+(Outcome!$D$4-Outcome!$F$4) -> 0 | H18: =Outcome!$D$8 - Outcome!$F$8 -> 0 | K18: =VLOOKUP(J18,'GEST 2.0'!$A$1:$O$45,15,FALSE)*Input!$G$28*-1 ->  | O18: =VLOOKUP(N18,'GEST 2.0'!$A$1:$O$45,15,FALSE)*Input!$G$28*-1 -> 
A19: 16 | B19: =Outcome!$D$10 ->  | C19: =VLOOKUP('DATA '!$C$43,'DATA '!$B$19:$C$40,2,FALSE) -> Choose your vegetation class | D19: =Outcome!$F$10 ->  | E19: =VLOOKUP('DATA '!$C$71,'DATA '!$B$47:$C$69,2,FALSE) -> Choose your vegetation class | F19: =(Outcome!$D$6-Outcome!$F$6)+(Outcome!$D$7-Outcome!$F$7)+(Outcome!$D$9-Outcome!$F$9) ->  | G19: =(Outcome!$D$5-Outcome!$F$5)+(Outcome!$D$4-Outcome!$F$4) -> 0 | H19: =Outcome!$D$8 - Outcome!$F$8 -> 0 | K19: =VLOOKUP(J19,'GEST 2.0'!$A$1:$O$45,15,FALSE)*Input!$G$28*-1 ->  | O19: =VLOOKUP(N19,'GEST 2.0'!$A$1:$O$45,15,FALSE)*Input!$G$28*-1 -> 
A20: 17 | B20: =Outcome!$D$10 ->  | C20: =VLOOKUP('DATA '!$C$43,'DATA '!$B$19:$C$40,2,FALSE) -> Choose your vegetation class | D20: =Outcome!$F$10 ->  | E20: =VLOOKUP('DATA '!$C$71,'DATA '!$B$47:$C$69,2,FALSE) -> Choose your vegetation class | F20: =(Outcome!$D$6-Outcome!$F$6)+(Outcome!$D$7-Outcome!$F$7)+(Outcome!$D$9-Outcome!$F$9) ->  | G20: =(Outcome!$D$5-Outcome!$F$5)+(Outcome!$D$4-Outcome!$F$4) -> 0 | H20: =Outcome!$D$8 - Outcome!$F$8 -> 0 | K20: =VLOOKUP(J20,'GEST 2.0'!$A$1:$O$45,15,FALSE)*Input!$G$28*-1 ->  | O20: =VLOOKUP(N20,'GEST 2.0'!$A$1:$O$45,15,FALSE)*Input!$G$28*-1 -> 
A21: 18 | B21: =Outcome!$D$10 ->  | C21: =VLOOKUP('DATA '!$C$43,'DATA '!$B$19:$C$40,2,FALSE) -> Choose your vegetation class | D21: =Outcome!$F$10 ->  | E21: =VLOOKUP('DATA '!$C$71,'DATA '!$B$47:$C$69,2,FALSE) -> Choose your vegetation class | F21: =(Outcome!$D$6-Outcome!$F$6)+(Outcome!$D$7-Outcome!$F$7)+(Outcome!$D$9-Outcome!$F$9) ->  | G21: =(Outcome!$D$5-Outcome!$F$5)+(Outcome!$D$4-Outcome!$F$4) -> 0 | H21: =Outcome!$D$8 - Outcome!$F$8 -> 0 | K21: =VLOOKUP(J21,'GEST 2.0'!$A$1:$O$45,15,FALSE)*Input!$G$28*-1 ->  | O21: =VLOOKUP(N21,'GEST 2.0'!$A$1:$O$45,15,FALSE)*Input!$G$28*-1 -> 
A22: 19 | B22: =Outcome!$D$10 ->  | C22: =VLOOKUP('DATA '!$C$43,'DATA '!$B$19:$C$40,2,FALSE) -> Choose your vegetation class | D22: =Outcome!$F$10 ->  | E22: =VLOOKUP('DATA '!$C$71,'DATA '!$B$47:$C$69,2,FALSE) -> Choose your vegetation class | F22: =(Outcome!$D$6-Outcome!$F$6)+(Outcome!$D$7-Outcome!$F$7)+(Outcome!$D$9-Outcome!$F$9) ->  | G22: =(Outcome!$D$5-Outcome!$F$5)+(Outcome!$D$4-Outcome!$F$4) -> 0 | H22: =Outcome!$D$8 - Outcome!$F$8 -> 0 | K22: =VLOOKUP(J22,'GEST 2.0'!$A$1:$O$45,15,FALSE)*Input!$G$28*-1 ->  | O22: =VLOOKUP(N22,'GEST 2.0'!$A$1:$O$45,15,FALSE)*Input!$G$28*-1 -> 
A23: 20 | B23: =Outcome!$D$10 ->  | C23: =VLOOKUP('DATA '!$C$43,'DATA '!$B$19:$C$40,2,FALSE) -> Choose your vegetation class | D23: =Outcome!$F$10 ->  | E23: =VLOOKUP('DATA '!$C$71,'DATA '!$B$47:$C$69,2,FALSE) -> Choose your vegetation class | F23: =(Outcome!$D$6-Outcome!$F$6)+(Outcome!$D$7-Outcome!$F$7)+(Outcome!$D$9-Outcome!$F$9) ->  | G23: =(Outcome!$D$5-Outcome!$F$5)+(Outcome!$D$4-Outcome!$F$4) -> 0 | H23: =Outcome!$D$8 - Outcome!$F$8 -> 0 | K23: =VLOOKUP(J23,'GEST 2.0'!$A$1:$O$45,15,FALSE)*Input!$G$28*-1 ->  | O23: =VLOOKUP(N23,'GEST 2.0'!$A$1:$O$45,15,FALSE)*Input!$G$28*-1 -> 
A24: 21 | B24: =Outcome!$D$10 ->  | C24: =VLOOKUP('DATA '!$C$43,'DATA '!$B$19:$C$40,2,FALSE) -> Choose your vegetation class | D24: =Outcome!$F$10 ->  | E24: =VLOOKUP('DATA '!$C$71,'DATA '!$B$47:$C$69,2,FALSE) -> Choose your vegetation class | F24: =(Outcome!$D$6-Outcome!$F$6)+(Outcome!$D$7-Outcome!$F$7)+(Outcome!$D$9-Outcome!$F$9) ->  | G24: =(Outcome!$D$5-Outcome!$F$5)+(Outcome!$D$4-Outcome!$F$4) -> 0 | H24: =Outcome!$D$8 - Outcome!$F$8 -> 0 | K24: =VLOOKUP(J24,'GEST 2.0'!$A$1:$O$45,15,FALSE)*Input!$G$28*-1 ->  | O24: =VLOOKUP(N24,'GEST 2.0'!$A$1:$O$45,15,FALSE)*Input!$G$28*-1 -> 
A25: 22 | B25: =Outcome!$D$10 ->  | C25: =VLOOKUP('DATA '!$C$43,'DATA '!$B$19:$C$40,2,FALSE) -> Choose your vegetation class | D25: =Outcome!$F$10 ->  | E25: =VLOOKUP('DATA '!$C$71,'DATA '!$B$47:$C$69,2,FALSE) -> Choose your vegetation class | F25: =(Outcome!$D$6-Outcome!$F$6)+(Outcome!$D$7-Outcome!$F$7)+(Outcome!$D$9-Outcome!$F$9) ->  | G25: =(Outcome!$D$5-Outcome!$F$5)+(Outcome!$D$4-Outcome!$F$4) -> 0 | H25: =Outcome!$D$8 - Outcome!$F$8 -> 0 | K25: =VLOOKUP(J25,'GEST 2.0'!$A$1:$O$45,15,FALSE)*Input!$G$28*-1 ->  | O25: =VLOOKUP(N25,'GEST 2.0'!$A$1:$O$45,15,FALSE)*Input!$G$28*-1 -> 
A26: 23 | B26: =Outcome!$D$10 ->  | C26: =VLOOKUP('DATA '!$C$43,'DATA '!$B$19:$C$40,2,FALSE) -> Choose your vegetation class | D26: =Outcome!$F$10 ->  | E26: =VLOOKUP('DATA '!$C$71,'DATA '!$B$47:$C$69,2,FALSE) -> Choose your vegetation class | F26: =(Outcome!$D$6-Outcome!$F$6)+(Outcome!$D$7-Outcome!$F$7)+(Outcome!$D$9-Outcome!$F$9) ->  | G26: =(Outcome!$D$5-Outcome!$F$5)+(Outcome!$D$4-Outcome!$F$4) -> 0 | H26: =Outcome!$D$8 - Outcome!$F$8 -> 0 | K26: =VLOOKUP(J26,'GEST 2.0'!$A$1:$O$45,15,FALSE)*Input!$G$28*-1 ->  | O26: =VLOOKUP(N26,'GEST 2.0'!$A$1:$O$45,15,FALSE)*Input!$G$28*-1 -> 
A27: 24 | B27: =Outcome!$D$10 ->  | C27: =VLOOKUP('DATA '!$C$43,'DATA '!$B$19:$C$40,2,FALSE) -> Choose your vegetation class | D27: =Outcome!$F$10 ->  | E27: =VLOOKUP('DATA '!$C$71,'DATA '!$B$47:$C$69,2,FALSE) -> Choose your vegetation class | F27: =(Outcome!$D$6-Outcome!$F$6)+(Outcome!$D$7-Outcome!$F$7)+(Outcome!$D$9-Outcome!$F$9) ->  | G27: =(Outcome!$D$5-Outcome!$F$5)+(Outcome!$D$4-Outcome!$F$4) -> 0 | H27: =Outcome!$D$8 - Outcome!$F$8 -> 0 | K27: =VLOOKUP(J27,'GEST 2.0'!$A$1:$O$45,15,FALSE)*Input!$G$28*-1 ->  | O27: =VLOOKUP(N27,'GEST 2.0'!$A$1:$O$45,15,FALSE)*Input!$G$28*-1 -> 
A28: 25 | B28: =Outcome!$D$10 ->  | C28: =VLOOKUP('DATA '!$C$43,'DATA '!$B$19:$C$40,2,FALSE) -> Choose your vegetation class | D28: =Outcome!$F$10 ->  | E28: =VLOOKUP('DATA '!$C$71,'DATA '!$B$47:$C$69,2,FALSE) -> Choose your vegetation class | F28: =(Outcome!$D$6-Outcome!$F$6)+(Outcome!$D$7-Outcome!$F$7)+(Outcome!$D$9-Outcome!$F$9) ->  | G28: =(Outcome!$D$5-Outcome!$F$5)+(Outcome!$D$4-Outcome!$F$4) -> 0 | H28: =Outcome!$D$8 - Outcome!$F$8 -> 0 | K28: =VLOOKUP(J28,'GEST 2.0'!$A$1:$O$45,15,FALSE)*Input!$G$28*-1 ->  | O28: =VLOOKUP(N28,'GEST 2.0'!$A$1:$O$45,15,FALSE)*Input!$G$28*-1 -> 
A29: 26 | B29: =Outcome!$D$10 ->  | C29: =VLOOKUP('DATA '!$C$43,'DATA '!$B$19:$C$40,2,FALSE) -> Choose your vegetation class | D29: =Outcome!$F$10 ->  | E29: =VLOOKUP('DATA '!$C$71,'DATA '!$B$47:$C$69,2,FALSE) -> Choose your vegetation class | F29: =(Outcome!$D$6-Outcome!$F$6)+(Outcome!$D$7-Outcome!$F$7)+(Outcome!$D$9-Outcome!$F$9) ->  | G29: =(Outcome!$D$5-Outcome!$F$5)+(Outcome!$D$4-Outcome!$F$4) -> 0 | H29: =Outcome!$D$8 - Outcome!$F$8 -> 0 | K29: =VLOOKUP(J29,'GEST 2.0'!$A$1:$O$45,15,FALSE)*Input!$G$28*-1 ->  | O29: =VLOOKUP(N29,'GEST 2.0'!$A$1:$O$45,15,FALSE)*Input!$G$28*-1 -> 
A30: 27 | B30: =Outcome!$D$10 ->  | C30: =VLOOKUP('DATA '!$C$43,'DATA '!$B$19:$C$40,2,FALSE) -> Choose your vegetation class | D30: =Outcome!$F$10 ->  | E30: =VLOOKUP('DATA '!$C$71,'DATA '!$B$47:$C$69,2,FALSE) -> Choose your vegetation class | F30: =(Outcome!$D$6-Outcome!$F$6)+(Outcome!$D$7-Outcome!$F$7)+(Outcome!$D$9-Outcome!$F$9) ->  | G30: =(Outcome!$D$5-Outcome!$F$5)+(Outcome!$D$4-Outcome!$F$4) -> 0 | H30: =Outcome!$D$8 - Outcome!$F$8 -> 0 | K30: =VLOOKUP(J30,'GEST 2.0'!$A$1:$O$45,15,FALSE)*Input!$G$28*-1 ->  | O30: =VLOOKUP(N30,'GEST 2.0'!$A$1:$O$45,15,FALSE)*Input!$G$28*-1 -> 
A31: 28 | B31: =Outcome!$D$10 ->  | C31: =VLOOKUP('DATA '!$C$43,'DATA '!$B$19:$C$40,2,FALSE) -> Choose your vegetation class | D31: =Outcome!$F$10 ->  | E31: =VLOOKUP('DATA '!$C$71,'DATA '!$B$47:$C$69,2,FALSE) -> Choose your vegetation class | F31: =(Outcome!$D$6-Outcome!$F$6)+(Outcome!$D$7-Outcome!$F$7)+(Outcome!$D$9-Outcome!$F$9) ->  | G31: =(Outcome!$D$5-Outcome!$F$5)+(Outcome!$D$4-Outcome!$F$4) -> 0 | H31: =Outcome!$D$8 - Outcome!$F$8 -> 0 | K31: =VLOOKUP(J31,'GEST 2.0'!$A$1:$O$45,15,FALSE)*Input!$G$28*-1 ->  | O31: =VLOOKUP(N31,'GEST 2.0'!$A$1:$O$45,15,FALSE)*Input!$G$28*-1 -> 
A32: 29 | B32: =Outcome!$D$10 ->  | C32: =VLOOKUP('DATA '!$C$43,'DATA '!$B$19:$C$40,2,FALSE) -> Choose your vegetation class | D32: =Outcome!$F$10 ->  | E32: =VLOOKUP('DATA '!$C$71,'DATA '!$B$47:$C$69,2,FALSE) -> Choose your vegetation class | F32: =(Outcome!$D$6-Outcome!$F$6)+(Outcome!$D$7-Outcome!$F$7)+(Outcome!$D$9-Outcome!$F$9) ->  | G32: =(Outcome!$D$5-Outcome!$F$5)+(Outcome!$D$4-Outcome!$F$4) -> 0 | H32: =Outcome!$D$8 - Outcome!$F$8 -> 0 | K32: =VLOOKUP(J32,'GEST 2.0'!$A$1:$O$45,15,FALSE)*Input!$G$28*-1 ->  | O32: =VLOOKUP(N32,'GEST 2.0'!$A$1:$O$45,15,FALSE)*Input!$G$28*-1 -> 
A33: 30 | B33: =Outcome!$D$10 ->  | C33: =VLOOKUP('DATA '!$C$43,'DATA '!$B$19:$C$40,2,FALSE) -> Choose your vegetation class | D33: =Outcome!$F$10 ->  | E33: =VLOOKUP('DATA '!$C$71,'DATA '!$B$47:$C$69,2,FALSE) -> Choose your vegetation class | F33: =(Outcome!$D$6-Outcome!$F$6)+(Outcome!$D$7-Outcome!$F$7)+(Outcome!$D$9-Outcome!$F$9) ->  | G33: =(Outcome!$D$5-Outcome!$F$5)+(Outcome!$D$4-Outcome!$F$4) -> 0 | H33: =Outcome!$D$8 - Outcome!$F$8 -> 0 | K33: =VLOOKUP(J33,'GEST 2.0'!$A$1:$O$45,15,FALSE)*Input!$G$28*-1 ->  | O33: =VLOOKUP(N33,'GEST 2.0'!$A$1:$O$45,15,FALSE)*Input!$G$28*-1 -> 
A34: 31 | B34: =Outcome!$D$10 ->  | C34: =VLOOKUP('DATA '!$C$43,'DATA '!$B$19:$C$40,2,FALSE) -> Choose your vegetation class | D34: =Outcome!$F$10 ->  | E34: =VLOOKUP('DATA '!$C$71,'DATA '!$B$47:$C$69,2,FALSE) -> Choose your vegetation class | F34: =(Outcome!$D$6-Outcome!$F$6)+(Outcome!$D$7-Outcome!$F$7)+(Outcome!$D$9-Outcome!$F$9) ->  | G34: =(Outcome!$D$5-Outcome!$F$5)+(Outcome!$D$4-Outcome!$F$4) -> 0 | H34: =Outcome!$D$8 - Outcome!$F$8 -> 0 | K34: =VLOOKUP(J34,'GEST 2.0'!$A$1:$O$45,15,FALSE)*Input!$G$28*-1 ->  | O34: =VLOOKUP(N34,'GEST 2.0'!$A$1:$O$45,15,FALSE)*Input!$G$28*-1 -> 
A35: 32 | B35: =Outcome!$D$10 ->  | C35: =VLOOKUP('DATA '!$C$43,'DATA '!$B$19:$C$40,2,FALSE) -> Choose your vegetation class | D35: =Outcome!$F$10 ->  | E35: =VLOOKUP('DATA '!$C$71,'DATA '!$B$47:$C$69,2,FALSE) -> Choose your vegetation class | F35: =(Outcome!$D$6-Outcome!$F$6)+(Outcome!$D$7-Outcome!$F$7)+(Outcome!$D$9-Outcome!$F$9) ->  | G35: =(Outcome!$D$5-Outcome!$F$5)+(Outcome!$D$4-Outcome!$F$4) -> 0 | H35: =Outcome!$D$8 - Outcome!$F$8 -> 0 | J35: =LEFT(C35, FIND(":",C35)-1) ->  | K35: =VLOOKUP(J35,'GEST 2.0'!$A$1:$O$45,15,FALSE)*Input!$G$28*-1 ->  | O35: =VLOOKUP(N35,'GEST 2.0'!$A$1:$O$45,15,FALSE)*Input!$G$28*-1 -> 
A36: 33 | B36: =Outcome!$D$10 ->  | C36: =VLOOKUP('DATA '!$C$43,'DATA '!$B$19:$C$40,2,FALSE) -> Choose your vegetation class | D36: =Outcome!$F$10 ->  | E36: =VLOOKUP('DATA '!$C$71,'DATA '!$B$47:$C$69,2,FALSE) -> Choose your vegetation class | F36: =(Outcome!$D$6-Outcome!$F$6)+(Outcome!$D$7-Outcome!$F$7)+(Outcome!$D$9-Outcome!$F$9) ->  | G36: =(Outcome!$D$5-Outcome!$F$5)+(Outcome!$D$4-Outcome!$F$4) -> 0 | H36: =Outcome!$D$8 - Outcome!$F$8 -> 0 | K36: =VLOOKUP(J36,'GEST 2.0'!$A$1:$O$45,15,FALSE)*Input!$G$28*-1 ->  | O36: =VLOOKUP(N36,'GEST 2.0'!$A$1:$O$45,15,FALSE)*Input!$G$28*-1 -> 
A37: 34 | B37: =Outcome!$D$10 ->  | C37: =VLOOKUP('DATA '!$C$43,'DATA '!$B$19:$C$40,2,FALSE) -> Choose your vegetation class | D37: =Outcome!$F$10 ->  | E37: =VLOOKUP('DATA '!$C$71,'DATA '!$B$47:$C$69,2,FALSE) -> Choose your vegetation class | F37: =(Outcome!$D$6-Outcome!$F$6)+(Outcome!$D$7-Outcome!$F$7)+(Outcome!$D$9-Outcome!$F$9) ->  | G37: =(Outcome!$D$5-Outcome!$F$5)+(Outcome!$D$4-Outcome!$F$4) -> 0 | H37: =Outcome!$D$8 - Outcome!$F$8 -> 0 | K37: =VLOOKUP(J37,'GEST 2.0'!$A$1:$O$45,15,FALSE)*Input!$G$28*-1 ->  | O37: =VLOOKUP(N37,'GEST 2.0'!$A$1:$O$45,15,FALSE)*Input!$G$28*-1 -> 
A38: 35 | B38: =Outcome!$D$10 ->  | C38: =VLOOKUP('DATA '!$C$43,'DATA '!$B$19:$C$40,2,FALSE) -> Choose your vegetation class | D38: =Outcome!$F$10 ->  | E38: =VLOOKUP('DATA '!$C$71,'DATA '!$B$47:$C$69,2,FALSE) -> Choose your vegetation class | F38: =(Outcome!$D$6-Outcome!$F$6)+(Outcome!$D$7-Outcome!$F$7)+(Outcome!$D$9-Outcome!$F$9) ->  | G38: =(Outcome!$D$5-Outcome!$F$5)+(Outcome!$D$4-Outcome!$F$4) -> 0 | H38: =Outcome!$D$8 - Outcome!$F$8 -> 0 | K38: =VLOOKUP(J38,'GEST 2.0'!$A$1:$O$45,15,FALSE)*Input!$G$28*-1 ->  | O38: =VLOOKUP(N38,'GEST 2.0'!$A$1:$O$45,15,FALSE)*Input!$G$28*-1 -> 
A39: 36 | B39: =Outcome!$D$10 ->  | C39: =VLOOKUP('DATA '!$C$43,'DATA '!$B$19:$C$40,2,FALSE) -> Choose your vegetation class | D39: =Outcome!$F$10 ->  | E39: =VLOOKUP('DATA '!$C$71,'DATA '!$B$47:$C$69,2,FALSE) -> Choose your vegetation class | F39: =(Outcome!$D$6-Outcome!$F$6)+(Outcome!$D$7-Outcome!$F$7)+(Outcome!$D$9-Outcome!$F$9) ->  | G39: =(Outcome!$D$5-Outcome!$F$5)+(Outcome!$D$4-Outcome!$F$4) -> 0 | H39: =Outcome!$D$8 - Outcome!$F$8 -> 0 | K39: =VLOOKUP(J39,'GEST 2.0'!$A$1:$O$45,15,FALSE)*Input!$G$28*-1 ->  | O39: =VLOOKUP(N39,'GEST 2.0'!$A$1:$O$45,15,FALSE)*Input!$G$28*-1 -> 
A40: 37 | B40: =Outcome!$D$10 ->  | C40: =VLOOKUP('DATA '!$C$43,'DATA '!$B$19:$C$40,2,FALSE) -> Choose your vegetation class | D40: =Outcome!$F$10 ->  | E40: =VLOOKUP('DATA '!$C$71,'DATA '!$B$47:$C$69,2,FALSE) -> Choose your vegetation class | F40: =(Outcome!$D$6-Outcome!$F$6)+(Outcome!$D$7-Outcome!$F$7)+(Outcome!$D$9-Outcome!$F$9) ->  | G40: =(Outcome!$D$5-Outcome!$F$5)+(Outcome!$D$4-Outcome!$F$4) -> 0 | H40: =Outcome!$D$8 - Outcome!$F$8 -> 0 | K40: =VLOOKUP(J40,'GEST 2.0'!$A$1:$O$45,15,FALSE)*Input!$G$28*-1 ->  | O40: =VLOOKUP(N40,'GEST 2.0'!$A$1:$O$45,15,FALSE)*Input!$G$28*-1 -> 
A41: 38 | B41: =Outcome!$D$10 ->  | C41: =VLOOKUP('DATA '!$C$43,'DATA '!$B$19:$C$40,2,FALSE) -> Choose your vegetation class | D41: =Outcome!$F$10 ->  | E41: =VLOOKUP('DATA '!$C$71,'DATA '!$B$47:$C$69,2,FALSE) -> Choose your vegetation class | F41: =(Outcome!$D$6-Outcome!$F$6)+(Outcome!$D$7-Outcome!$F$7)+(Outcome!$D$9-Outcome!$F$9) ->  | G41: =(Outcome!$D$5-Outcome!$F$5)+(Outcome!$D$4-Outcome!$F$4) -> 0 | H41: =Outcome!$D$8 - Outcome!$F$8 -> 0 | K41: =VLOOKUP(J41,'GEST 2.0'!$A$1:$O$45,15,FALSE)*Input!$G$28*-1 ->  | O41: =VLOOKUP(N41,'GEST 2.0'!$A$1:$O$45,15,FALSE)*Input!$G$28*-1 -> 
A42: 39 | B42: =Outcome!$D$10 ->  | C42: =VLOOKUP('DATA '!$C$43,'DATA '!$B$19:$C$40,2,FALSE) -> Choose your vegetation class | D42: =Outcome!$F$10 ->  | E42: =VLOOKUP('DATA '!$C$71,'DATA '!$B$47:$C$69,2,FALSE) -> Choose your vegetation class | F42: =(Outcome!$D$6-Outcome!$F$6)+(Outcome!$D$7-Outcome!$F$7)+(Outcome!$D$9-Outcome!$F$9) ->  | G42: =(Outcome!$D$5-Outcome!$F$5)+(Outcome!$D$4-Outcome!$F$4) -> 0 | H42: =Outcome!$D$8 - Outcome!$F$8 -> 0 | K42: =VLOOKUP(J42,'GEST 2.0'!$A$1:$O$45,15,FALSE)*Input!$G$28*-1 ->  | O42: =VLOOKUP(N42,'GEST 2.0'!$A$1:$O$45,15,FALSE)*Input!$G$28*-1 -> 
A43: 40 | B43: =Outcome!$D$10 ->  | C43: =VLOOKUP('DATA '!$C$43,'DATA '!$B$19:$C$40,2,FALSE) -> Choose your vegetation class | D43: =Outcome!$F$10 ->  | E43: =VLOOKUP('DATA '!$C$71,'DATA '!$B$47:$C$69,2,FALSE) -> Choose your vegetation class | F43: =(Outcome!$D$6-Outcome!$F$6)+(Outcome!$D$7-Outcome!$F$7)+(Outcome!$D$9-Outcome!$F$9) ->  | G43: =(Outcome!$D$5-Outcome!$F$5)+(Outcome!$D$4-Outcome!$F$4) -> 0 | H43: =Outcome!$D$8 - Outcome!$F$8 -> 0 | K43: =VLOOKUP(J43,'GEST 2.0'!$A$1:$O$45,15,FALSE)*Input!$G$28*-1 ->  | O43: =VLOOKUP(N43,'GEST 2.0'!$A$1:$O$45,15,FALSE)*Input!$G$28*-1 -> 
A44: 41 | B44: =Outcome!$D$10 ->  | C44: =VLOOKUP('DATA '!$C$43,'DATA '!$B$19:$C$40,2,FALSE) -> Choose your vegetation class | D44: =Outcome!$F$10 ->  | E44: =VLOOKUP('DATA '!$C$71,'DATA '!$B$47:$C$69,2,FALSE) -> Choose your vegetation class | F44: =(Outcome!$D$6-Outcome!$F$6)+(Outcome!$D$7-Outcome!$F$7)+(Outcome!$D$9-Outcome!$F$9) ->  | G44: =(Outcome!$D$5-Outcome!$F$5)+(Outcome!$D$4-Outcome!$F$4) -> 0 | H44: =Outcome!$D$8 - Outcome!$F$8 -> 0 | K44: =VLOOKUP(J44,'GEST 2.0'!$A$1:$O$45,15,FALSE)*Input!$G$28*-1 ->  | O44: =VLOOKUP(N44,'GEST 2.0'!$A$1:$O$45,15,FALSE)*Input!$G$28*-1 -> 
A45: 42 | B45: =Outcome!$D$10 ->  | C45: =VLOOKUP('DATA '!$C$43,'DATA '!$B$19:$C$40,2,FALSE) -> Choose your vegetation class | D45: =Outcome!$F$10 ->  | E45: =VLOOKUP('DATA '!$C$71,'DATA '!$B$47:$C$69,2,FALSE) -> Choose your vegetation class | F45: =(Outcome!$D$6-Outcome!$F$6)+(Outcome!$D$7-Outcome!$F$7)+(Outcome!$D$9-Outcome!$F$9) ->  | G45: =(Outcome!$D$5-Outcome!$F$5)+(Outcome!$D$4-Outcome!$F$4) -> 0 | H45: =Outcome!$D$8 - Outcome!$F$8 -> 0 | K45: =VLOOKUP(J45,'GEST 2.0'!$A$1:$O$45,15,FALSE)*Input!$G$28*-1 ->  | O45: =VLOOKUP(N45,'GEST 2.0'!$A$1:$O$45,15,FALSE)*Input!$G$28*-1 -> 
A46: 43 | B46: =Outcome!$D$10 ->  | C46: =VLOOKUP('DATA '!$C$43,'DATA '!$B$19:$C$40,2,FALSE) -> Choose your vegetation class | D46: =Outcome!$F$10 ->  | E46: =VLOOKUP('DATA '!$C$71,'DATA '!$B$47:$C$69,2,FALSE) -> Choose your vegetation class | F46: =(Outcome!$D$6-Outcome!$F$6)+(Outcome!$D$7-Outcome!$F$7)+(Outcome!$D$9-Outcome!$F$9) ->  | G46: =(Outcome!$D$5-Outcome!$F$5)+(Outcome!$D$4-Outcome!$F$4) -> 0 | H46: =Outcome!$D$8 - Outcome!$F$8 -> 0 | K46: =VLOOKUP(J46,'GEST 2.0'!$A$1:$O$45,15,FALSE)*Input!$G$28*-1 ->  | O46: =VLOOKUP(N46,'GEST 2.0'!$A$1:$O$45,15,FALSE)*Input!$G$28*-1 -> 
A47: 44 | B47: =Outcome!$D$10 ->  | C47: =VLOOKUP('DATA '!$C$43,'DATA '!$B$19:$C$40,2,FALSE) -> Choose your vegetation class | D47: =Outcome!$F$10 ->  | E47: =VLOOKUP('DATA '!$C$71,'DATA '!$B$47:$C$69,2,FALSE) -> Choose your vegetation class | F47: =(Outcome!$D$6-Outcome!$F$6)+(Outcome!$D$7-Outcome!$F$7)+(Outcome!$D$9-Outcome!$F$9) ->  | G47: =(Outcome!$D$5-Outcome!$F$5)+(Outcome!$D$4-Outcome!$F$4) -> 0 | H47: =Outcome!$D$8 - Outcome!$F$8 -> 0 | K47: =VLOOKUP(J47,'GEST 2.0'!$A$1:$O$45,15,FALSE)*Input!$G$28*-1 ->  | O47: =VLOOKUP(N47,'GEST 2.0'!$A$1:$O$45,15,FALSE)*Input!$G$28*-1 -> 
A48: 45 | B48: =Outcome!$D$10 ->  | C48: =VLOOKUP('DATA '!$C$43,'DATA '!$B$19:$C$40,2,FALSE) -> Choose your vegetation class | D48: =Outcome!$F$10 ->  | E48: =VLOOKUP('DATA '!$C$71,'DATA '!$B$47:$C$69,2,FALSE) -> Choose your vegetation class | F48: =(Outcome!$D$6-Outcome!$F$6)+(Outcome!$D$7-Outcome!$F$7)+(Outcome!$D$9-Outcome!$F$9) ->  | G48: =(Outcome!$D$5-Outcome!$F$5)+(Outcome!$D$4-Outcome!$F$4) -> 0 | H48: =Outcome!$D$8 - Outcome!$F$8 -> 0 | K48: =VLOOKUP(J48,'GEST 2.0'!$A$1:$O$45,15,FALSE)*Input!$G$28*-1 ->  | O48: =VLOOKUP(N48,'GEST 2.0'!$A$1:$O$45,15,FALSE)*Input!$G$28*-1 -> 
A49: 46 | B49: =Outcome!$D$10 ->  | C49: =VLOOKUP('DATA '!$C$43,'DATA '!$B$19:$C$40,2,FALSE) -> Choose your vegetation class | D49: =Outcome!$F$10 ->  | E49: =VLOOKUP('DATA '!$C$71,'DATA '!$B$47:$C$69,2,FALSE) -> Choose your vegetation class | F49: =(Outcome!$D$6-Outcome!$F$6)+(Outcome!$D$7-Outcome!$F$7)+(Outcome!$D$9-Outcome!$F$9) ->  | G49: =(Outcome!$D$5-Outcome!$F$5)+(Outcome!$D$4-Outcome!$F$4) -> 0 | H49: =Outcome!$D$8 - Outcome!$F$8 -> 0 | K49: =VLOOKUP(J49,'GEST 2.0'!$A$1:$O$45,15,FALSE)*Input!$G$28*-1 ->  | O49: =VLOOKUP(N49,'GEST 2.0'!$A$1:$O$45,15,FALSE)*Input!$G$28*-1 -> 
A50: 47 | B50: =Outcome!$D$10 ->  | C50: =VLOOKUP('DATA '!$C$43,'DATA '!$B$19:$C$40,2,FALSE) -> Choose your vegetation class | D50: =Outcome!$F$10 ->  | E50: =VLOOKUP('DATA '!$C$71,'DATA '!$B$47:$C$69,2,FALSE) -> Choose your vegetation class | F50: =(Outcome!$D$6-Outcome!$F$6)+(Outcome!$D$7-Outcome!$F$7)+(Outcome!$D$9-Outcome!$F$9) ->  | G50: =(Outcome!$D$5-Outcome!$F$5)+(Outcome!$D$4-Outcome!$F$4) -> 0 | H50: =Outcome!$D$8 - Outcome!$F$8 -> 0 | K50: =VLOOKUP(J50,'GEST 2.0'!$A$1:$O$45,15,FALSE)*Input!$G$28*-1 ->  | O50: =VLOOKUP(N50,'GEST 2.0'!$A$1:$O$45,15,FALSE)*Input!$G$28*-1 -> 
A51: 48 | B51: =Outcome!$D$10 ->  | C51: =VLOOKUP('DATA '!$C$43,'DATA '!$B$19:$C$40,2,FALSE) -> Choose your vegetation class | D51: =Outcome!$F$10 ->  | E51: =VLOOKUP('DATA '!$C$71,'DATA '!$B$47:$C$69,2,FALSE) -> Choose your vegetation class | F51: =(Outcome!$D$6-Outcome!$F$6)+(Outcome!$D$7-Outcome!$F$7)+(Outcome!$D$9-Outcome!$F$9) ->  | G51: =(Outcome!$D$5-Outcome!$F$5)+(Outcome!$D$4-Outcome!$F$4) -> 0 | H51: =Outcome!$D$8 - Outcome!$F$8 -> 0 | K51: =VLOOKUP(J51,'GEST 2.0'!$A$1:$O$45,15,FALSE)*Input!$G$28*-1 ->  | O51: =VLOOKUP(N51,'GEST 2.0'!$A$1:$O$45,15,FALSE)*Input!$G$28*-1 -> 
A52: 49 | B52: =Outcome!$D$10 ->  | C52: =VLOOKUP('DATA '!$C$43,'DATA '!$B$19:$C$40,2,FALSE) -> Choose your vegetation class | D52: =Outcome!$F$10 ->  | E52: =VLOOKUP('DATA '!$C$71,'DATA '!$B$47:$C$69,2,FALSE) -> Choose your vegetation class | F52: =(Outcome!$D$6-Outcome!$F$6)+(Outcome!$D$7-Outcome!$F$7)+(Outcome!$D$9-Outcome!$F$9) ->  | G52: =(Outcome!$D$5-Outcome!$F$5)+(Outcome!$D$4-Outcome!$F$4) -> 0 | H52: =Outcome!$D$8 - Outcome!$F$8 -> 0 | K52: =VLOOKUP(J52,'GEST 2.0'!$A$1:$O$45,15,FALSE)*Input!$G$28*-1 ->  | O52: =VLOOKUP(N52,'GEST 2.0'!$A$1:$O$45,15,FALSE)*Input!$G$28*-1 -> 

Sheet DATA (hidden)
C2: Soilmoisture
B3: 1 | C3: =CONCATENATE('soil moisture classes '!A3,'soil moisture classes '!L3,'soil moisture classes '!B3) -> 7+Upper sublitoral
B4: 2 | C4: =CONCATENATE('soil moisture classes '!A4,'soil moisture classes '!L4,'soil moisture classes '!B4) -> 6+Flooded (lower eulittoral)
B5: 3 | C5: =CONCATENATE('soil moisture classes '!A5,'soil moisture classes '!L5,'soil moisture classes '!B5) -> 5+Wet (upper eulittoral)
B6: 4 | C6: =CONCATENATE('soil moisture classes '!A6,'soil moisture classes '!L6,'soil moisture classes '!B6) -> 4+Semi wet (very moist)
B7: 5 | C7: =CONCATENATE('soil moisture classes '!A7,'soil moisture classes '!L7,'soil moisture classes '!B7) -> 3+moist
B8: 6 | C8: =CONCATENATE('soil moisture classes '!A8,'soil moisture classes '!L8,'soil moisture classes '!B8) -> 2+Moderate moist
B9: 7 | C9: =CONCATENATE('soil moisture classes '!A9,'soil moisture classes '!L9,'soil moisture classes '!B9) -> 2-Moderate dry
B10: 8 | C10: =CONCATENATE('soil moisture classes '!A10,'soil moisture classes '!L10,'soil moisture classes '!B10) -> 3-Dry
B11: 9 | C11: =CONCATENATE('soil moisture classes '!A11,'soil moisture classes '!L11,'soil moisture classes '!B11) -> 4-Very dry
B12: 10 | C12: =CONCATENATE('soil moisture classes '!A12,'soil moisture classes '!L12,'soil moisture classes '!B12) -> 5-Extremely dry
B14: output baseline | C14: 7
B15: output rewetting | C15: 5
F17: CH4 | H17: CO2 | J17: Total C-flux
F18: GWP | G18: n | H18: GWP | I18: n | J18: GWP | K18: baseline
B19: Baseline | C19: Vegetation | K19: CH4 | L19: CO2 | M19: Total GWP
B20: 1 | C20: Choose your vegetation class
B21: 2 | C21: ='GEST 2.0'!P71 -> U17: Very wet tall sedges and Typha | F21: ='GEST 2.0'!Q71 -> 6.81 | G21: ='GEST 2.0'!R71 -> 8 | H21: ='GEST 2.0'!S71 -> -1.08 | I21: ='GEST 2.0'!T71 -> 8 | J21: ='GEST 2.0'!U71 -> 5.5 | K21: =IF($C$43=B21,F21,0) -> 0 | L21: =IF($C$43=B21,H21,0) -> 0 | M21: =IF($C$43=B21,J21,0) -> 0
B22: 3 | C22: ='GEST 2.0'!P72 -> U18: Very wet Phragmites reeds | F22: ='GEST 2.0'!Q72 -> 12.44 | G22: ='GEST 2.0'!R72 -> 12 | H22: ='GEST 2.0'!S72 -> -12.38 | I22: ='GEST 2.0'!T72 -> 8 | J22: ='GEST 2.0'!U72 -> 0 | K22: 0 | L22: 0 | M22: 0
B23: 4 | C23: ='GEST 2.0'!P73 -> U19: Wet to very wet Sphagnum hollows | F23: ='GEST 2.0'!Q73 -> 11.81 | G23: ='GEST 2.0'!R73 -> 8 | H23: ='GEST 2.0'!S73 -> -4.58 | I23: ='GEST 2.0'!T73 -> 8 | J23: ='GEST 2.0'!U73 -> 7 | K23: 0 | L23: 0 | M23: 0
B24: 5 | C24: ='GEST 2.0'!P74 -> U20: Flooded tall reeds (> 20 cm above surface) | F24: ='GEST 2.0'!Q74 -> 28.29 | G24: ='GEST 2.0'!R74 -> 30 | H24: ='GEST 2.0'!S74 -> -32.74 | I24: ='GEST 2.0'!T74 -> 6 | J24: ='GEST 2.0'!U74 -> -4.5 | K24: 0 | L24: 0 | M24: 0
B25: 6 | C25: ='GEST 2.0'!P75 -> S8: Very wet reeds with lateral import of organic matter | F25: ='GEST 2.0'!Q75 -> 42.27 | G25: ='GEST 2.0'!R75 -> 18 | H25: ='GEST 2.0'!S75 -> 2.39 | I25: ='GEST 2.0'!T75 -> 18 | J25: ='GEST 2.0'!U75 -> 44.5 | K25: 0 | L25: 0 | M25: 0
B26: 7 | C26: ='GEST 2.0'!P76 -> S9: Ditches in low intensity grassland | F26: ='GEST 2.0'!Q76 -> 3.17 | G26: ='GEST 2.0'!R76 -> 3 | H26: ='GEST 2.0'!S76 -> +/- 0 | I26: ='GEST 2.0'!T76 -> - | J26: ='GEST 2.0'!U76 -> 3 | K26: 0 | L26: 0 | M26: 0
B27: 8 | C27: ='GEST 2.0'!P77 -> . | F27: ='GEST 2.0'!Q77 -> . | G27: ='GEST 2.0'!R77 -> . | H27: ='GEST 2.0'!S77 -> . | I27: ='GEST 2.0'!T77 -> . | J27: ='GEST 2.0'!U77 -> . | K27: 0 | L27: 0 | M27: 0
B28: 9 | C28: ='GEST 2.0'!P78 -> . | F28: ='GEST 2.0'!Q78 -> . | G28: ='GEST 2.0'!R78 -> . | H28: ='GEST 2.0'!S78 -> . | I28: ='GEST 2.0'!T78 -> . | J28: ='GEST 2.0'!U78 -> . | K28: 0 | L28: 0 | M28: 0
B29: 10 | C29: ='GEST 2.0'!P79 -> . | F29: ='GEST 2.0'!Q79 -> . | G29: ='GEST 2.0'!R79 -> . | H29: ='GEST 2.0'!S79 -> . | I29: ='GEST 2.0'!T79 -> . | J29: ='GEST 2.0'!U79 -> . | K29: 0 | L29: 0 | M29: 0
B30: 11 | C30: ='GEST 2.0'!P80 -> . | F30: ='GEST 2.0'!Q80 -> . | G30: ='GEST 2.0'!R80 -> . | H30: ='GEST 2.0'!S80 -> . | I30: ='GEST 2.0'!T80 -> . | J30: ='GEST 2.0'!U80 -> . | K30: 0 | L30: 0 | M30: 0
B31: 12 | C31: ='GEST 2.0'!P81 -> . | F31: ='GEST 2.0'!Q81 -> . | G31: ='GEST 2.0'!R81 -> . | H31: ='GEST 2.0'!S81 -> . | I31: ='GEST 2.0'!T81 -> . | J31: ='GEST 2.0'!U81 -> . | K31: 0 | L31: 0 | M31: 0
B32: 13 | C32: ='GEST 2.0'!P82 -> . | F32: ='GEST 2.0'!Q82 -> . | G32: ='GEST 2.0'!R82 -> . | H32: ='GEST 2.0'!S82 -> . | I32: ='GEST 2.0'!T82 -> . | J32: ='GEST 2.0'!U82 -> . | K32: 0 | L32: 0 | M32: 0
B33: 14 | C33: ='GEST 2.0'!P83 -> . | F33: ='GEST 2.0'!Q83 -> . | G33: ='GEST 2.0'!R83 -> . | H33: ='GEST 2.0'!S83 -> . | I33: ='GEST 2.0'!T83 -> . | J33: ='GEST 2.0'!U83 -> . | K33: 0 | L33: 0 | M33: 0
B34: 15 | C34: ='GEST 2.0'!P84 -> . | F34: ='GEST 2.0'!Q84 -> . | G34: ='GEST 2.0'!R84 -> . | H34: ='GEST 2.0'!S84 -> . | I34: ='GEST 2.0'!T84 -> . | J34: ='GEST 2.0'!U84 -> . | K34: 0 | L34: 0 | M34: 0
B35: 16 | C35: ='GEST 2.0'!P85 -> . | F35: ='GEST 2.0'!Q85 -> . | G35: ='GEST 2.0'!R85 -> . | H35: ='GEST 2.0'!S85 -> . | I35: ='GEST 2.0'!T85 -> . | J35: ='GEST 2.0'!U85 -> . | K35: 0 | L35: 0 | M35: 0
B36: 17 | C36: ='GEST 2.0'!P86 -> . | F36: ='GEST 2.0'!Q86 -> . | G36: ='GEST 2.0'!R86 -> . | H36: ='GEST 2.0'!S86 -> . | I36: ='GEST 2.0'!T86 -> . | J36: ='GEST 2.0'!U86 -> . | K36: 0 | L36: 0 | M36: 0
B37: 18 | C37: ='GEST 2.0'!P87 -> . | F37: ='GEST 2.0'!Q87 -> . | G37: ='GEST 2.0'!R87 -> . | H37: ='GEST 2.0'!S87 -> . | I37: ='GEST 2.0'!T87 -> . | J37: ='GEST 2.0'!U87 -> . | K37: 0 | L37: 0 | M37: 0
B38: 19 | C38: ='GEST 2.0'!P88 -> . | F38: ='GEST 2.0'!Q88 -> . | G38: ='GEST 2.0'!R88 -> . | H38: ='GEST 2.0'!S88 -> . | I38: ='GEST 2.0'!T88 -> . | J38: ='GEST 2.0'!U88 -> . | K38: 0 | L38: 0 | M38: 0
B39: 20 | C39: ='GEST 2.0'!P89 -> . | F39: ='GEST 2.0'!Q89 -> . | G39: ='GEST 2.0'!R89 -> . | H39: ='GEST 2.0'!S89 -> . | I39: ='GEST 2.0'!T89 -> . | J39: ='GEST 2.0'!U89 -> . | K39: 0 | L39: 0 | M39: 0
B40: 21 | C40: ='GEST 2.0'!P90 -> . | F40: ='GEST 2.0'!Q90 -> . | G40: ='GEST 2.0'!R90 -> . | H40: ='GEST 2.0'!S90 -> . | I40: ='GEST 2.0'!T90 -> . | J40: ='GEST 2.0'!U90 -> . | K40: 0 | L40: 0 | M40: 0
B41: 22 | C41: ='GEST 2.0'!P91 -> . | F41: ='GEST 2.0'!Q91 -> . | G41: ='GEST 2.0'!R91 -> . | H41: ='GEST 2.0'!S91 -> . | I41: ='GEST 2.0'!T91 -> . | J41: ='GEST 2.0'!U91 -> . | K41: 0 | L41: 0 | M41: 0
J42: Totaal | K42: =SUM(K21:K41) -> 0 | L42: =SUM(L21:L41) -> 0 | M42: =SUM(M21:M41) -> 0
B43: output baseline | C43: 1
C44: =VLOOKUP(C43,B20:C41,2,1) -> Choose your vegetation class
F45: CH4 | H45: CO2 | J45: Total C-flux
F46: GWP | G46: n | H46: GWP | I46: n | J46: GWP | K46: rewetting
B47: Rewetting | C47: Vegetation | K47: CH4 | L47: CO2 | M47: Total GWP
B48: 1 | C48: Choose your vegetation class
B49: 2 | C49: ='GEST 2.0'!V71 -> U17: Very wet tall sedges and Typha | F49: ='GEST 2.0'!W71 -> 6.81 | G49: ='GEST 2.0'!X71 -> 8 | H49: ='GEST 2.0'!Y71 -> -1.08 | I49: ='GEST 2.0'!Z71 -> 8 | J49: ='GEST 2.0'!AA71 -> 5.5 | K49: =IF($C$71=B49,F49,0) -> 0 | L49: =IF($C$71=B49,H49,0) -> 0 | M49: =IF($C$71=B49,J49,0) -> 0
B50: 3 | C50: ='GEST 2.0'!V72 -> U18: Very wet Phragmites reeds | F50: ='GEST 2.0'!W72 -> 12.44 | G50: ='GEST 2.0'!X72 -> 12 | H50: ='GEST 2.0'!Y72 -> -12.38 | I50: ='GEST 2.0'!Z72 -> 8 | J50: ='GEST 2.0'!AA72 -> 0 | K50: 0 | L50: 0 | M50: 0
B51: 4 | C51: ='GEST 2.0'!V73 -> U19: Wet to very wet Sphagnum hollows | F51: ='GEST 2.0'!W73 -> 11.81 | G51: ='GEST 2.0'!X73 -> 8 | H51: ='GEST 2.0'!Y73 -> -4.58 | I51: ='GEST 2.0'!Z73 -> 8 | J51: ='GEST 2.0'!AA73 -> 7 | K51: 0 | L51: 0 | M51: 0
B52: 5 | C52: ='GEST 2.0'!V74 -> U20: Flooded tall reeds (> 20 cm above surface) | F52: ='GEST 2.0'!W74 -> 28.29 | G52: ='GEST 2.0'!X74 -> 30 | H52: ='GEST 2.0'!Y74 -> -32.74 | I52: ='GEST 2.0'!Z74 -> 6 | J52: ='GEST 2.0'!AA74 -> -4.5 | K52: 0 | L52: 0 | M52: 0
B53: 6 | C53: ='GEST 2.0'!V75 -> S8: Very wet reeds with lateral import of organic matter | F53: ='GEST 2.0'!W75 -> 42.27 | G53: ='GEST 2.0'!X75 -> 18 | H53: ='GEST 2.0'!Y75 -> 2.39 | I53: ='GEST 2.0'!Z75 -> 18 | J53: ='GEST 2.0'!AA75 -> 44.5 | K53: 0 | L53: 0 | M53: 0
B54: 7 | C54: ='GEST 2.0'!V76 -> S9: Ditches in low intensity grassland | F54: ='GEST 2.0'!W76 -> 3.17 | G54: ='GEST 2.0'!X76 -> 3 | H54: ='GEST 2.0'!Y76 -> +/- 0 | I54: ='GEST 2.0'!Z76 -> - | J54: ='GEST 2.0'!AA76 -> 3 | K54: 0 | L54: 0 | M54: 0
B55: 8 | C55: ='GEST 2.0'!V77 -> . | F55: ='GEST 2.0'!W77 -> . | G55: ='GEST 2.0'!X77 -> . | H55: ='GEST 2.0'!Y77 -> . | I55: ='GEST 2.0'!Z77 -> . | J55: ='GEST 2.0'!AA77 -> . | K55: 0 | L55: 0 | M55: 0
B56: 9 | C56: ='GEST 2.0'!V78 -> . | F56: ='GEST 2.0'!W78 -> . | G56: ='GEST 2.0'!X78 -> . | H56: ='GEST 2.0'!Y78 -> . | I56: ='GEST 2.0'!Z78 -> . | J56: ='GEST 2.0'!AA78 -> . | K56: 0 | L56: 0 | M56: 0
B57: 10 | C57: ='GEST 2.0'!V79 -> . | F57: ='GEST 2.0'!W79 -> . | G57: ='GEST 2.0'!X79 -> . | H57: ='GEST 2.0'!Y79 -> . | I57: ='GEST 2.0'!Z79 -> . | J57: ='GEST 2.0'!AA79 -> . | K57: 0 | L57: 0 | M57: 0
B58: 11 | C58: ='GEST 2.0'!V80 -> . | F58: ='GEST 2.0'!W80 -> . | G58: ='GEST 2.0'!X80 -> . | H58: ='GEST 2.0'!Y80 -> . | I58: ='GEST 2.0'!Z80 -> . | J58: ='GEST 2.0'!AA80 -> . | K58: 0 | L58: 0 | M58: 0
B59: 12 | C59: ='GEST 2.0'!V81 -> . | F59: ='GEST 2.0'!W81 -> . | G59: ='GEST 2.0'!X81 -> . | H59: ='GEST 2.0'!Y81 -> . | I59: ='GEST 2.0'!Z81 -> . | J59: ='GEST 2.0'!AA81 -> . | K59: 0 | L59: 0 | M59: 0
B60: 13 | C60: ='GEST 2.0'!V82 -> . | F60: ='GEST 2.0'!W82 -> . | G60: ='GEST 2.0'!X82 -> . | H60: ='GEST 2.0'!Y82 -> . | I60: ='GEST 2.0'!Z82 -> . | J60: ='GEST 2.0'!AA82 -> . | K60: 0 | L60: 0 | M60: 0
B61: 14 | C61: ='GEST 2.0'!V83 -> . | F61: ='GEST 2.0'!W83 -> . | G61: ='GEST 2.0'!X83 -> . | H61: ='GEST 2.0'!Y83 -> . | I61: ='GEST 2.0'!Z83 -> . | J61: ='GEST 2.0'!AA83 -> . | K61: 0 | L61: 0 | M61: 0
B62: 15 | C62: ='GEST 2.0'!V84 -> . | F62: ='GEST 2.0'!W84 -> . | G62: ='GEST 2.0'!X84 -> . | H62: ='GEST 2.0'!Y84 -> . | I62: ='GEST 2.0'!Z84 -> . | J62: ='GEST 2.0'!AA84 -> . | K62: 0 | L62: 0 | M62: 0
B63: 16 | C63: ='GEST 2.0'!V85 -> . | F63: ='GEST 2.0'!W85 -> . | G63: ='GEST 2.0'!X85 -> . | H63: ='GEST 2.0'!Y85 -> . | I63: ='GEST 2.0'!Z85 -> . | J63: ='GEST 2.0'!AA85 -> . | K63: 0 | L63: 0 | M63: 0
B64: 17 | C64: ='GEST 2.0'!V86 -> . | F64: ='GEST 2.0'!W86 -> . | G64: ='GEST 2.0'!X86 -> . | H64: ='GEST 2.0'!Y86 -> . | I64: ='GEST 2.0'!Z86 -> . | J64: ='GEST 2.0'!AA86 -> . | K64: 0 | L64: 0 | M64: 0
B65: 18 | C65: ='GEST 2.0'!V87 -> . | F65: ='GEST 2.0'!W87 -> . | G65: ='GEST 2.0'!X87 -> . | H65: ='GEST 2.0'!Y87 -> . | I65: ='GEST 2.0'!Z87 -> . | J65: ='GEST 2.0'!AA87 -> . | K65: 0 | L65: 0 | M65: 0
B66: 19 | C66: ='GEST 2.0'!V88 -> . | F66: ='GEST 2.0'!W88 -> . | G66: ='GEST 2.0'!X88 -> . | H66: ='GEST 2.0'!Y88 -> . | I66: ='GEST 2.0'!Z88 -> . | J66: ='GEST 2.0'!AA88 -> . | K66: 0 | L66: 0 | M66: 0
B67: 20 | C67: ='GEST 2.0'!V89 -> . | F67: ='GEST 2.0'!W89 -> . | G67: ='GEST 2.0'!X89 -> . | H67: ='GEST 2.0'!Y89 -> . | I67: ='GEST 2.0'!Z89 -> . | J67: ='GEST 2.0'!AA89 -> . | K67: 0 | L67: 0 | M67: 0
B68: 21 | C68: ='GEST 2.0'!V90 -> . | F68: ='GEST 2.0'!W90 -> . | G68: ='GEST 2.0'!X90 -> . | H68: ='GEST 2.0'!Y90 -> . | I68: ='GEST 2.0'!Z90 -> . | J68: ='GEST 2.0'!AA90 -> . | K68: 0 | L68: 0 | M68: 0
B69: 22 | C69: ='GEST 2.0'!V91 -> . | F69: ='GEST 2.0'!W91 -> . | G69: ='GEST 2.0'!X91 -> . | H69: ='GEST 2.0'!Y91 -> . | I69: ='GEST 2.0'!Z91 -> . | J69: ='GEST 2.0'!AA91 -> . | K69: 0 | L69: 0 | M69: 0
K70: =SUM(K49:K69) -> 0 | L70: =SUM(L49:L69) -> 0 | M70: 0
B71: output rewetting | C71: 1
C72: =VLOOKUP(C71,B48:C69,2,1) -> Choose your vegetation class
C75: Grazing animals | D75: EF | E75: baseline | F75: rewetting | G75: N excretion/head/year | L75: N excretion/head/year
B76: 1 | C76: no animal
B77: 2 | C77: dairy cows | D77: 0.02 | E77: =IF(C$83=$B77,D77,0) -> 0 | F77: =IF(C$84=$B77,E77,0) -> 0 | G77: 130.1 | H77: =IF(C$83=$B77,G77,0) -> 0 | I77: =IF(C$84=$B77,H77,0) -> 0 | K77: Mature dairy cattle | L77: 130.1
B78: 3 | C78: beef cattle | D78: 0.02 | E78: =IF(C$83=$B78,D78,0) -> 0 | F78: =IF(C$84=$B78,E78,0) -> 0 | G78: 28.2 | H78: =IF(C$83=$B78,G78,0) -> 0 | I78: =IF(C$84=$B78,H78,0) -> 0 | K78: Other mature cattle | L78: 77.5
B79: 4 | C79: sheep | D79: 0.01 | E79: =IF(C$83=$B79,D79,0) -> 0 | F79: =IF(C$84=$B79,E79,0) -> 0 | G79: 9.9 | H79: =IF(C$83=$B79,G79,0) -> 0 | I79: =IF(C$84=$B79,H79,0) -> 0 | K79: Growing cattle | L79: 39
B80: 5 | C80: goat | D80: 0.01 | E80: =IF(C$83=$B80,D80,0) -> 0 | F80: =IF(C$84=$B80,E80,0) -> 0 | G80: 7.4 | H80: =IF(C$83=$B80,G80,0) -> 0 | I80: =IF(C$84=$B80,H80,0) -> 0
B81: 6 | C81: water buffalo | D81: 0.02 | E81: =IF(C$83=$B81,D81,0) -> 0 | F81: =IF(C$84=$B81,E81,0) -> 0 | G81: 76.5 | H81: =IF(C$83=$B81,G81,0) -> 0 | I81: =IF(C$84=$B81,H81,0) -> 0
E82: =SUM(E77:E81) -> 0 | F82: =SUM(F77:F81) -> 0 | H82: =SUM(H77:H81) -> 0 | I82: =SUM(I77:I81) -> 0
B83: output baseline | C83: 1
B84: output rewetting | C84: 1
C87: Fertilizer | F87: Ammonia EF
B88: 1 | C88: nitrate based | D88: 0.02 | F88: 0.015
B89: 2 | C89: ammonium based | D89: 0.01 | F89: 0.1
B91: output baseline | C91: 2
B92: output rewetting | C92: 1
C95: Crop residue
B96: 1 | C96: yes
B97: 2 | C97: no
B99: output baseline | C99: 2
B100: output rewetting | C100: 1
B101: crop name baseline | C101: 6
B103: productuse rewetting | C103: 9
B104: crop name rewetting | C104: 6
B106: crop residues

Sheet Outcome (hidden)
D3: Baseline | F3: Rewetting
C4: CH4 | D4: =Output!G45 -> 0 | E4: CO2-eq | F4: ='DATA '!K70*Input!G28 -> 0 | G4: CO2-eq
C5: CO2 | D5: =Output!G47 -> 0 | E5: CO2-eq | F5: ='DATA '!L70*Input!G28 -> 0 | G5: CO2-eq
C6: N20 direct | D6: ='N2O Fertilizer cattle cropresid'!C189 ->  | E6: CO2-eq | F6: ='N2O Fertilizer cattle cropresid'!E189 ->  | G6: CO2-eq
C7: N20 indirect | D7: ='N2O Fertilizer cattle cropresid'!C236 ->  | E7: CO2-eq | F7: ='N2O Fertilizer cattle cropresid'!E236 ->  | G7: CO2-eq
C8: product | F8: ='crop use'!F21 -> 0 | G8: CO2-eq
C9: activity | D9: ='fossil energy'!D20 -> 0 | E9: CO2-eq | F9: ='fossil energy'!F20 -> 0 | G9: CO2-eq
C10: total | D10: =SUM(D4:D9) ->  | F10: =SUM(F4:F9) -> 
C15: creditable year
C16: baseline scenario | D16: =('C content soil'!$E$13*Input!$G$28)/Timeline!$K$3*-1 ->  | E16: year
C17: Rewetting | D17: =IF(('C content soil'!$E$13*Input!$G$28)/Timeline!$O$3*-1>0,('C content soil'!$E$13*Input!$G$28)/Timeline!$O$3*-1,F17) ->  | E17: years | F17: ∞

Sheet soil moisture classes (hidden)
A1: Soil moisture class (GEST) | C1: Water tables in relation to surface (+ above, - below) | E1: Relevant classes | F1: winter | H1: zomer | J1: baseline | K1: Rewetting | M1: Soil moisture classes and associated water tables (modified after KOSKA et al. 2001). Soil moisture classes are characterised by: WLw: long-term median water table in the wet season; WLd: long-term median water table in the dry season; and WD: water supply deficit. Seasonally alternating wetness is indicated by a combination of different classes, e.g. 5+/4+ refers to a WLw within 5+ range and a WLd within 4+ range. Strongly alternating wetness is indicated by a tilde-sign, e.g. 3~ refers to a WLw within 4+ range and a WLd within 2+ range.
C2: WLw | D2: WLd | F2: hoogste | G2: laagste | H2: hoogste | I2: laagste | J2: Zomer | K2: Zomer
A3: 7+ | B3: Upper sublitoral | C3: +250 to +140 cm | D3: +250 to +140 cm
A4: 6+ | B4: Flooded (lower eulittoral) | C4: +150 to +10 cm | D4: +140 to +0 cm | E4: X | F4: 150 | G4: 10 | H4: =140.000000000001 -> 140 | I4: 0 | J4: =IF(AND(Input!$G$43<'soil moisture classes '!H4,Input!$G$43>='soil moisture classes '!I4),'soil moisture classes '!A4,"") -> 6+ | K4: =IF(AND(Input!$G$50<'soil moisture classes '!H4,Input!$G$50>='soil moisture classes '!I4),'soil moisture classes '!A4,"") -> 6+
A5: 5+ | B5: Wet (upper eulittoral) | C5: + 10 to – 5 cm | D5: +0 to -10 cm | E5: X | F5: 9.99999999 | G5: -5 | H5: -1e-12 | I5: -10 | J5: =IF(AND(Input!$G$43<'soil moisture classes '!H5,Input!$G$43>='soil moisture classes '!I5),'soil moisture classes '!A5,"") ->  | K5: =IF(AND(Input!$G$50<'soil moisture classes '!H5,Input!$G$50>='soil moisture classes '!I5),'soil moisture classes '!A5,"") -> 
A6: 4+ | B6: Semi wet (very moist) | C6: -5 -to -15 cm | D6: -10 to -20 cm | E6: X | F6: -5 | G6: -15 | H6: -10 | I6: -20 | J6: =IF(AND(Input!$G$43<'soil moisture classes '!H6,Input!$G$43>='soil moisture classes '!I6),'soil moisture classes '!A6,"") ->  | K6: =IF(AND(Input!$G$50<'soil moisture classes '!H6,Input!$G$50>='soil moisture classes '!I6),'soil moisture classes '!A6,"") -> 
A7: 3+ | B7: moist | C7: -15 to -35 cm | D7: -20 to -45 cm | E7: X | F7: -15 | G7: -35 | H7: -20 | I7: -45 | J7: =IF(AND(Input!$G$43<'soil moisture classes '!H7,Input!$G$43>='soil moisture classes '!I7),'soil moisture classes '!A7,"") ->  | K7: =IF(AND(Input!$G$50<'soil moisture classes '!H7,Input!$G$50>='soil moisture classes '!I7),'soil moisture classes '!A7,"") ->  | M7: Table from Joosten et al. 2015; who modified after Koska et al. 2001
A8: 2+ | B8: Moderate moist | C8: -35 to -70 cm | D8: -45 to -85 cm | E8: X | F8: -35 | G8: -70 | H8: -45 | I8: -85 | J8: =IF(AND(Input!$G$43<'soil moisture classes '!H8,Input!$G$43>='soil moisture classes '!I8),'soil moisture classes '!A8,"") ->  | K8: =IF(AND(Input!$G$50<'soil moisture classes '!H8,Input!$G$50>='soil moisture classes '!I8),'soil moisture classes '!A8,"") ->  | M8: Sources:
A9: 2- | B9: Moderate dry | C9: < 60 l / m2 | D9: < -85 cm | E9: X | F9: -70 | G9: -1000000000000 | H9: -85 | J9: =IF(Input!$G$43<'soil moisture classes '!H9,'soil moisture classes '!A9,"") ->  | K9: =IF(Input!$G$50<'soil moisture classes '!H9,'soil moisture classes '!A9,"") -> 
A10: 3- | B10: Dry | C10: 60 – 100 l / m2 | J10: =SUBSTITUTE(TRIM(J4&" "&J5&" "&J6&" "&J7&" "&J8&" "&J9)," ",";") -> 6+ | K10: =SUBSTITUTE(TRIM(K4&" "&K5&" "&K6&" "&K7&" "&K8&" "&K9)," ",";") -> 6+ | M10: Joosten, H., K. Brsut, J. Couwenberg, A. Gerner, B. Holsten, T. Permien, A. Schäfer, F. Tanneberger, M. Trepel & A. Wahren 2015. MoorFutures. Integration of additional ecosystem services (including biodiversity) into carbon crdits - standard, methodology and transferability to other regions. BfN-Skripten 407. Federal Agency for Nature Conservation, Bonn, Germany
A11: 4- | B11: Very dry | C11: 100 – 140 l / m2 | M11: Koska, I, Succow, M, Clausnitzer, U., Timmermann, T., Roth, S. (2001): Vegetationskundliche Kennzeichnung von Mooren (topische Betrachtung). In: Succow, M., Joosten, H. (eds.): Landschaftsökologische Moorkunde. Schweizerbarth, Stuttgart. Pp. 112 – 184.
A12: 5- | B12: Extremely dry | C12: >140 l / m2
B15: uitkomst baseline Soil moisture class | C15: =J10 -> 6+ | D15: =IF(C$15=A4,B4,IF(C$15=A5,B5,IF(C$15=A6,B6,IF(C$15=A7,B7,IF(C$15=A8,B8,"FOUT"))))) -> Flooded (lower eulittoral) | E15: =CONCATENATE(C15,":"," ",D15) -> 6+: Flooded (lower eulittoral)
B16: uitkomst rewetting Soil moisture class | C16: =K10 -> 6+ | D16: =IF(C$16=A4,B4,IF(C$16=A5,B5,IF(C$16=A6,B6,IF(C$16=A7,B7,IF(C$16=A8,B8,"FOUT"))))) -> Flooded (lower eulittoral) | E16: =CONCATENATE(C16,":"," ",D16) -> 6+: Flooded (lower eulittoral)

Sheet GEST 2.0 (hidden)
A1: N° | B1: GEST | C1: Soil Moisture Classes | D1: Summer Moisture classes disaggregate | J1: CH4 | L1: CO2 | N1: Total C-flux | O1: Total C-flux | P1: ='soil moisture classes '!J10 -> 6+ | Q1: CH4 | S1: CO2 | U1: Total C-flux | W1: CH4 | Y1: CO2 | AA1: Total C-flux | AC1: CH4 | AE1: CO2 | AG1: Total C-flux | AI1: CH4 | AK1: CO2 | AM1: Total C-flux | AO1: CH4 | AQ1: CO2 | AS1: Total C-flux | AU1: CH4 | AW1: CO2 | AY1: Total C-flux | AZ1: List of aggregated GESTs as a result of clustering CH4 and CO2 flux measurements (CH4 & CO2 emissions averaged as GWP in t CO2e·ha-1·a-1; bold – measured; italic – estimate of similar GEST; Trend: (+) – higher than, (-) – lower than, (~) – nearly the same as in Couwenberg et al. 2008, 2011, (*) – new GEST)
D2: 6+ | E2: 5+ | F2: 4+ | G2: 3+ | H2: 2+ | I2: 2- | J2: GWP | K2: n | L2: GWP | M2: n | N2: GWP | O2: ton C/ha | P2: =D2 -> 6+ | Q2: GWP | R2: n | S2: GWP | T2: n | U2: GWP | V2: =E2 -> 5+ | W2: GWP | X2: n | Y2: GWP | Z2: n | AA2: GWP | AB2: =F2 -> 4+ | AC2: GWP | AD2: n | AE2: GWP | AF2: n | AG2: GWP | AH2: =G2 -> 3+ | AI2: GWP | AJ2: n | AK2: GWP | AL2: n | AM2: GWP | AN2: =H2 -> 2+ | AO2: GWP | AP2: n | AQ2: GWP | AR2: n | AS2: GWP | AT2: =I2 -> 2- | AU2: GWP | AV2: n | AW2: GWP | AX2: n | AY2: GWP
B3: Grassland
A4: G1 | B4: Dry to moderately moist grassland | C4: (2~), 2+, 2- | H4: 2+ | I4: 2- | J4: -0.01 | K4: 24 | L4: 31.44 | M4: 16 | N4: 31.5 | O4: 8.574245455 | P4: =IF(D4=D$2,CONCATENATE($A4,":"," ",$B4),"") ->  | Q4: =IF($D4=$D$2,J4,"") ->  | R4: =IF($D4=$D$2,K4,"") ->  | S4: =IF($D4=$D$2,L4,"") ->  | T4: =IF($D4=$D$2,M4,"") ->  | U4: =IF($D4=$D$2,N4,"") ->  | V4: =IF(E4=E$2,CONCATENATE($A4,":"," ",$B4),"") ->  | W4: =IF($E4=$E$2,J4,"") ->  | X4: =IF($E4=$E$2,K4,"") ->  | Y4: =IF($E4=$E$2,L4,"") ->  | Z4: =IF($E4=$E$2,M4,"") ->  | AA4: =IF($E4=$E$2,N4,"") ->  | AB4: =IF(F4=F$2,CONCATENATE($A4,":"," ",$B4),"") ->  | AC4: =IF($F4=$F$2,J4,"") ->  | AD4: =IF($F4=$F$2,K4,"") ->  | AE4: =IF($F4=$F$2,L4,"") ->  | AF4: =IF($F4=$F$2,M4,"") ->  | AG4: =IF($F4=$F$2,N4,"") ->  | AH4: =IF(G4=G$2,CONCATENATE($A4,":"," ",$B4),"") ->  | AI4: =IF($G4=$G$2,J4,"") ->  | AJ4: =IF($G4=$G$2,K4,"") ->  | AK4: =IF($G4=$G$2,L4,"") ->  | AL4: =IF($G4=$G$2,M4,"") ->  | AM4: =IF($G4=$G$2,N4,"") ->  | AN4: =IF(H4=H$2,CONCATENATE($A4,":"," ",$B4),"") -> G1: Dry to moderately moist grassland | AO4: =IF($H4=$H$2,J4,"") -> -0.01 | AP4: =IF($H4=$H$2,K4,"") -> 24 | AQ4: =IF($H4=$H$2,L4,"") -> 31.44 | AR4: =IF($H4=$H$2,M4,"") -> 16 | AS4: =IF($H4=$H$2,N4,"") -> 31.5 | AT4: =IF(I4=I$2,CONCATENATE($A4,":"," ",$B4),"") -> G1: Dry to moderately moist grassland | AU4: =IF($I4=$I$2,J4,"") -> -0.01 | AV4: =IF($I4=$I$2,K4,"") -> 24 | AW4: =IF($I4=$I$2,L4,"") -> 31.44 | AX4: =IF($I4=$I$2,M4,"") -> 16
A5: G2 | B5: Moist grassland | C5: 3+, 3+/2+ | G5: 3+ | H5: 2+ | J5: 0.01 | K5: 48 | L5: 19.37 | M5: 38 | N5: 19.5 | O5: 5.283027273 | P5: =IF(D5=D$2,CONCATENATE($A5,":"," ",$B5),"") ->  | V5: =IF(E5=E$2,CONCATENATE($A5,":"," ",$B5),"") ->  | AB5: =IF(F5=F$2,CONCATENATE($A5,":"," ",$B5),"") ->  | AH5: =IF(G5=G$2,CONCATENATE($A5,":"," ",$B5),"") -> G2: Moist grassland | AI5: 0.01 | AJ5: 48 | AK5: 19.37 | AL5: 38 | AM5: 19.5 | AN5: =IF(H5=H$2,CONCATENATE($A5,":"," ",$B5),"") -> G2: Moist grassland | AO5: 0.01 | AP5: 48 | AQ5: 19.37 | AR5: 38 | AS5: 19.5 | AT5: =IF(I5=I$2,CONCATENATE($A5,":"," ",$B5),"") -> 
A6: G3 | B6: Moist to very moist grassland | C6: 4+/3+ | G6: 3+ | J6: 0.03 | K6: 3 | L6: 13.46 | M6: 4 | N6: 13.5 | O6: 3.671809091 | AH6: G3: Moist to very moist grassland | AI6: 0.03 | AJ6: 3 | AK6: 13.46 | AL6: 4 | AM6: 13.5
A7: G3f | B7: Periodically flooded grasslands | C7: 4~, 3~ | F7: 4+ | G7: 3+ | H7: 2+ | J7: -0.05 | K7: 3 | L7: 13.46 | M7: - | N7: 13 | O7: 3.669409091 | AB7: G3f: Periodically flooded grasslands | AC7: -0.05 | AD7: 3 | AE7: 13.46 | AF7: - | AG7: 13 | AH7: G3f: Periodically flooded grasslands | AI7: -0.05 | AJ7: 3 | AK7: 13.46 | AL7: - | AM7: 13 | AN7: G3f: Periodically flooded grasslands | AO7: -0.05 | AP7: 3 | AQ7: 13.46 | AR7: - | AS7: 13
A8: G3s | B8: Moist to very moist grassland with shunt species | C8: 4+/3+, 3~, (3+, 3+/2+) | G8: 3+ | H8: 2+ | J8: 0.75 | K8: 7 | L8: 13.46 | M8: - | N8: 14 | O8: 3.693409091 | AH8: G3s: Moist to very moist grassland with shunt species | AI8: 0.75 | AJ8: 7 | AK8: 13.46 | AL8: - | AM8: 14 | AN8: G3s: Moist to very moist grassland with shunt species | AO8: 0.75 | AP8: 7 | AQ8: 13.46 | AR8: - | AS8: 14 | AY8: shunt species here is Juncus
A9: G3m | B9: Moist to very moist acidic Molinia meadows | C9: 4+/3+ | G9: 3+ | J9: 4.85 | K9: 6 | L9: 6.45 | M9: - | N9: 11.5 | O9: 1.904590909 | AH9: G3m: Moist to very moist acidic Molinia meadows | AI9: 4.85 | AJ9: 6 | AK9: 6.45 | AL9: - | AM9: 11.5 | AY9: CO2 changed from 13.46 to 6.45, because it is effectively just very moist grassland (G4)
A10: G4 | B10: Very moist grassland | C10: 4+, 4~ | F10: 4+ | G10: 3+ | J10: 0.39 | K10: 7 | L10: 6.45 | M10: 3 | N10: 7 | O10: 1.770790909 | AB10: G4: Very moist grassland | AC10: 0.39 | AD10: 7 | AE10: 6.45 | AF10: 3 | AG10: 7 | AH10: G4: Very moist grassland | AI10: 0.39 | AJ10: 7 | AK10: 6.45 | AL10: 3 | AM10: 7
A11: G4s | B11: Very moist grassland with shunt species | C11: 4+ | F11: 4+ | J11: 2.1 | K11: 4 | L11: 6.45 | M11: - | N11: 8.5 | O11: 1.822090909 | AB11: G4s: Very moist grassland with shunt species | AC11: 2.1 | AD11: 4 | AE11: 6.45 | AF11: - | AG11: 8.5 | AY11: shunt species here is Juncus (very deep roots!)
A12: G5 | B12: Wet grassland | C12: 5+/4+ | F12: 4+ | J12: 0.05 | K12: 3 | L12: -3.89 | M12: 5 | N12: -4 | O12: -1.059409091 | AB12: G5: Wet grassland | AC12: 0.05 | AD12: 3 | AE12: -3.89 | AF12: 5 | AG12: -4
A13: G5s | B13: Wet grassland with shunt species | C13: 5+, 5+/4+, (4~) | E13: 5+ | F13: 4+ | G13: 3+ | J13: 2.93 | K13: 4 | L13: -3.89 | M13: - | N13: -1 | O13: -0.9730090909 | V13: G5s: Wet grassland with shunt species | W13: =IF($E13=$E$2,J13,"") -> 2.93 | X13: =IF($E13=$E$2,K13,"") -> 4 | Y13: =IF($E13=$E$2,L13,"") -> -3.89 | Z13: =IF($E13=$E$2,M13,"") -> - | AA13: =IF($E13=$E$2,N13,"") -> -1 | AB13: G5s: Wet grassland with shunt species | AC13: =IF($F13=$F$2,J13,"") -> 2.93 | AD13: =IF($F13=$F$2,K13,"") -> 4 | AE13: =IF($F13=$F$2,L13,"") -> -3.89 | AF13: =IF($F13=$F$2,M13,"") -> - | AG13: =IF($F13=$F$2,N13,"") -> -1 | AH13: G5s: Wet grassland with shunt species | AI13: =IF($G13=$G$2,J13,"") -> 2.93 | AJ13: =IF($G13=$G$2,K13,"") -> 4 | AK13: =IF($G13=$G$2,L13,"") -> -3.89 | AL13: =IF($G13=$G$2,M13,"") -> - | AM13: =IF($G13=$G$2,N13,"") -> -1 | AO13: =IF($H13=$H$2,J13,"") ->  | AP13: =IF($H13=$H$2,K13,"") ->  | AQ13: =IF($H13=$H$2,L13,"") ->  | AR13: =IF($H13=$H$2,M13,"") ->  | AS13: =IF($H13=$H$2,N13,"") ->  | AU13: =IF($I13=$I$2,J13,"") ->  | AV13: =IF($I13=$I$2,K13,"") ->  | AW13: =IF($I13=$I$2,L13,"") ->  | AX13: =IF($I13=$I$2,M13,"") -> 
B14: Cropland | W14: =IF($E14=$E$2,J14,"") ->  | X14: =IF($E14=$E$2,K14,"") ->  | Y14: =IF($E14=$E$2,L14,"") ->  | Z14: =IF($E14=$E$2,M14,"") ->  | AA14: =IF($E14=$E$2,N14,"") ->  | AC14: =IF($F14=$F$2,J14,"") ->  | AD14: =IF($F14=$F$2,K14,"") ->  | AE14: =IF($F14=$F$2,L14,"") ->  | AF14: =IF($F14=$F$2,M14,"") ->  | AG14: =IF($F14=$F$2,N14,"") ->  | AI14: =IF($G14=$G$2,J14,"") ->  | AJ14: =IF($G14=$G$2,K14,"") ->  | AK14: =IF($G14=$G$2,L14,"") ->  | AL14: =IF($G14=$G$2,M14,"") ->  | AM14: =IF($G14=$G$2,N14,"") ->  | AO14: =IF($H14=$H$2,J14,"") ->  | AP14: =IF($H14=$H$2,K14,"") ->  | AQ14: =IF($H14=$H$2,L14,"") ->  | AR14: =IF($H14=$H$2,M14,"") ->  | AS14: =IF($H14=$H$2,N14,"") ->  | AU14: =IF($I14=$I$2,J14,"") ->  | AV14: =IF($I14=$I$2,K14,"") ->  | AW14: =IF($I14=$I$2,L14,"") ->  | AX14: =IF($I14=$I$2,M14,"") -> 
A15: A1 | B15: Dry to moderately moist arable land | C15: 2+, 2- | H15: 2+ | I15: 2- | J15: 0.08 | K15: 11 | L15: 41.69 | M15: 10 | N15: 42 | O15: 11.3724 | AN15: A1: Dry to moderately moist arable land | AO15: 0.08 | AP15: 11 | AQ15: 41.69 | AR15: 10 | AS15: 42 | AT15: A1: Dry to moderately moist arable land | AU15: 0.08 | AV15: 11 | AW15: 41.69 | AX15: 10
A16: A2 | B16: Moist arable land | C16: 3+, 3+/2+ | G16: 3+ | H16: 2+ | J16: 0.17 | K16: 6 | L16: 23.44 | M16: 4 | N16: 23.5 | O16: 6.397827273 | AH16: A2: Moist arable land | AI16: 0.17 | AJ16: 6 | AK16: 23.44 | AL16: 4 | AM16: 23.5 | AN16: A2: Moist arable land | AO16: 0.17 | AP16: 6 | AQ16: 23.44 | AR16: 4 | AS16: 23.5
B17: Unmanaged
A18: U1 | B18: Moist bare peat | C18: 3~, 3+ | G18: 3+ | H18: 2+ | J18: 0.03 | K18: 2 | L18: 8.99 | M18: 2 | N18: 9 | O18: 2.452718182 | AH18: U1: Moist bare peat | AI18: 0.03 | AJ18: 2 | AK18: 8.99 | AL18: 2 | AM18: 9 | AN18: U1: Moist bare peat | AO18: 0.03 | AP18: 2 | AQ18: 8.99 | AR18: 2 | AS18: 9
A19: U2 | B19: Moist bog heath | C19: 3+ | G19: 3+ | J19: 0.25 | K19: 10 | L19: 12.33 | M19: 5 | N19: 12.5 | O19: 3.370227273 | AH19: U2: Moist bog heath | AI19: 0.25 | AJ19: 10 | AK19: 12.33 | AL19: 5 | AM19: 12.5
A20: U3 | B20: Moist Reeds | C20: 3+, (3~) | G20: 3+ | H20: 2+ | J20: 0.04 | K20: 1 | L20: 2.77 | M20: 2 | N20: 3 | O20: 0.7566545455 | AH20: U3: Moist Reeds | AI20: 0.04 | AJ20: 1 | AK20: 2.77 | AL20: 2 | AM20: 3 | AN20: U3: Moist Reeds | AO20: 0.04 | AP20: 1 | AQ20: 2.77 | AR20: 2 | AS20: 3
A21: U6 | B21: Very moist bog heath | C21: (5+/4+), 4+ | F21: 4+ | J21: 0.92 | K21: 6 | L21: 4.67 | M21: 5 | N21: 5.5 | O21: 1.301236364 | AB21: U6: Very moist bog heath | AC21: 0.92 | AD21: 6 | AE21: 4.67 | AF21: 5 | AG21: 5.5
A22: U7 | B22: Very moist forbs and sedges | C22: (5+/4+), 4+, (4+/3+) | F22: 4+ | G22: 3+ | J22: 0.25 | K22: 5 | L22: 12.56 | M22: 6 | N22: 13 | O22: 3.432954545 | AB22: U7: Very moist forbs and sedges | AC22: 0.25 | AD22: 5 | AE22: 12.56 | AF22: 6 | AG22: 13 | AH22: U7: Very moist forbs and sedges | AI22: 0.25 | AJ22: 5 | AK22: 12.56 | AL22: 6 | AM22: 13
A23: U8 | B23: Very moist Sphagnum lawn | C23: (5+/4+), 4+ | F23: 4+ | J23: 1.5 | K23: 12 | L23: -4.3 | M23: 11 | N23: -3 | O23: -1.127727273 | AB23: U8: Very moist Sphagnum lawn | AC23: 1.5 | AD23: 12 | AE23: -4.3 | AF23: 11 | AG23: -3 | AJ23: =IF($G23=$G$2,K23,"") ->  | AK23: =IF($G23=$G$2,L23,"") ->  | AL23: =IF($G23=$G$2,M23,"") ->  | AM23: =IF($G23=$G$2,N23,"") ->  | AP23: =IF($H23=$H$2,K23,"") ->  | AQ23: =IF($H23=$H$2,L23,"") ->  | AR23: =IF($H23=$H$2,M23,"") ->  | AS23: =IF($H23=$H$2,N23,"") ->  | AV23: =IF($I23=$I$2,K23,"") ->  | AW23: =IF($I23=$I$2,L23,"") ->  | AX23: =IF($I23=$I$2,M23,"") -> 
A24: U9 | B24: Very moist tall sedges | C24: (5+/4+), 4~, 4+, (4+/3+) | F24: 4+ | G24: 3+ | J24: 1.6 | K24: 12 | L24: 10.72 | M24: 4 | N24: 12.5 | O24: 2.971636364 | AB24: U9: Very moist tall sedges | AC24: 1.6 | AD24: 12 | AE24: 10.72 | AF24: 4 | AG24: 12.5 | AH24: U9: Very moist tall sedges | AI24: 1.6 | AJ24: 12 | AK24: 10.72 | AL24: 4 | AM24: 12.5
A25: U10 | B25: Wet bare peat | C25: 5+/4+ | F25: 4+ | J25: 0.22 | K25: 3 | L25: 1.34 | M25: 3 | N25: 1.5 | O25: 0.3720545455 | AB25: U10: Wet bare peat | AC25: 0.22 | AD25: 3 | AE25: 1.34 | AF25: 3 | AG25: 1.5
A26: U11 | B26: Wet meadows and forbs | C26: 5+ | E26: 5+ | J26: 7.35 | K26: 2 | L26: -3.89 | M26: - | N26: 3.5 | O26: -0.8404090909 | V26: U11: Wet meadows and forbs | W26: 7.35 | X26: 2 | Y26: -3.89 | Z26: - | AA26: 3.5
A27: U12 | B27: Wet small sedges with mosses | C27: 5+ (4+) | E27: 5+ | F27: 4+ | J27: 4.72 | K27: 23 | L27: -1.99 | M27: 15 | N27: 2.5 | O27: -0.4011272727 | V27: U12: Wet small sedges with mosses | W27: 4.72 | X27: 23 | Y27: -1.99 | Z27: 15 | AA27: 2.5 | AB27: U12: Wet small sedges with mosses | AC27: 4.72 | AD27: 23 | AE27: -1.99 | AF27: 15 | AG27: 2.5
A28: U13 | B28: Wet sphagnum lawn | C28: 5+, (5+/4+) | E28: 5+ | F28: 4+ | J28: 5.25 | K28: 6 | L28: -3.02 | M28: 6 | N28: 2 | O28: -0.6661363636 | V28: U13: Wet sphagnum lawn | W28: 5.25 | X28: 6 | Y28: -3.02 | Z28: 6 | AA28: 2 | AB28: U13: Wet sphagnum lawn | AC28: 5.25 | AD28: 6 | AE28: -3.02 | AF28: 6 | AG28: 2
A29: U14 | B29: Wet tall reeds | C29: (5~), 5+, (5+/4+) | E29: 5+ | F29: 4+ | J29: 6.47 | K29: 10 | L29: 0.21 | M29: 2 | N29: 6.5 | O29: 0.2513727273 | V29: U14: Wet tall reeds | W29: 6.47 | X29: 10 | Y29: 0.21 | Z29: 2 | AA29: 6.5 | AB29: U14: Wet tall reeds | AC29: 6.47 | AD29: 10 | AE29: 0.21 | AF29: 2 | AG29: 6.5
A30: U15 | B30: Wet tall sedges | C30: 5~, 5+, (5+/4+) | E30: 5+ | F30: 4+ | J30: 9.49 | K30: 3 | L30: 1.03 | M30: 2 | N30: 10.5 | O30: 0.5656090909 | V30: U15: Wet tall sedges | W30: 9.49 | X30: 3 | Y30: 1.03 | Z30: 2 | AA30: 10.5 | AB30: U15: Wet tall sedges | AC30: 9.49 | AD30: 3 | AE30: 1.03 | AF30: 2 | AG30: 10.5
A31: U16 | B31: Wet bog heath | C31: 6+/5+, 5+, (5+/4+) | E31: 5+ | F31: 4+ | J31: 17.8 | K31: 1 | L31: -0.01 | M31: 7 | N31: 18 | O31: 0.5312727273 | V31: U16: Wet bog heath | W31: 17.8 | X31: 1 | Y31: -0.01 | Z31: 7 | AA31: 18 | AB31: U16: Wet bog heath | AC31: 17.8 | AD31: 1 | AE31: -0.01 | AF31: 7 | AG31: 18
A32: U17 | B32: Very wet tall sedges and Typha | C32: 6+, 6+/5+ | D32: 6+ | E32: 5+ | J32: 6.81 | K32: 8 | L32: -1.08 | M32: 8 | N32: 5.5 | O32: -0.09024545455 | P32: =IF(D32=D$2,CONCATENATE($A32,":"," ",$B32),"") -> U17: Very wet tall sedges and Typha | Q32: =IF($D32=$D$2,J32,"") -> 6.81 | R32: =IF($D32=$D$2,K32,"") -> 8 | S32: =IF($D32=$D$2,L32,"") -> -1.08 | T32: =IF($D32=$D$2,M32,"") -> 8 | U32: =IF($D32=$D$2,N32,"") -> 5.5 | V32: U17: Very wet tall sedges and Typha | W32: 6.81 | X32: 8 | Y32: -1.08 | Z32: 8 | AA32: 5.5
A33: U18 | B33: Very wet Phragmites reeds | C33: 6+, (6+/5+, 5~) | D33: 6+ | E33: 5+ | F33: 4+ | J33: 12.44 | K33: 12 | L33: -12.38 | M33: 8 | N33: 0 | O33: -3.003163636 | P33: U18: Very wet Phragmites reeds | Q33: =IF($D33=$D$2,J33,"") -> 12.44 | R33: =IF($D33=$D$2,K33,"") -> 12 | S33: =IF($D33=$D$2,L33,"") -> -12.38 | T33: =IF($D33=$D$2,M33,"") -> 8 | U33: =IF($D33=$D$2,N33,"") -> 0 | V33: U18: Very wet Phragmites reeds | W33: 12.44 | X33: 12 | Y33: -12.38 | Z33: 8 | AA33: 0 | AB33: U18: Very wet Phragmites reeds | AC33: 12.44 | AD33: 12 | AE33: -12.38 | AF33: 8 | AG33: 0
A34: U19 | B34: Wet to very wet Sphagnum hollows | C34: 6+, (5+) | D34: 6+ | E34: 5+ | J34: 11.81 | K34: 8 | L34: -4.58 | M34: 8 | N34: 7 | O34: -0.8947909091 | P34: U19: Wet to very wet Sphagnum hollows | Q34: 11.81 | R34: 8 | S34: -4.58 | T34: 8 | U34: 7 | V34: U19: Wet to very wet Sphagnum hollows | W34: 11.81 | X34: 8 | Y34: -4.58 | Z34: 8 | AA34: 7
A35: U20 | B35: Flooded tall reeds (> 20 cm above surface) | C35: 6+ | D35: 6+ | J35: 28.29 | K35: 30 | L35: -32.74 | M35: 6 | N35: -4.5 | O35: -8.080390909 | P35: U20: Flooded tall reeds (> 20 cm above surface) | Q35: 28.29 | R35: 30 | S35: -32.74 | T35: 6 | U35: -4.5
B36: Special GESTs
A37: S1 | B37: Dry to moderately moist grassland on peaty soils (Anmoor) | C37: 2-, 2+/2-, 2+ | H37: 2+ | I37: 2- | J37: -0.05 | K37: 9 | L37: 46.09 | M37: 14 | N37: 46 | O37: 12.5685 | AN37: S1: Dry to moderately moist grassland on peaty soils (Anmoor) | AO37: -0.05 | AP37: 9 | AQ37: 46.09 | AR37: 14 | AS37: 46 | AT37: S1: Dry to moderately moist grassland on peaty soils (Anmoor) | AU37: -0.05 | AV37: 9 | AW37: 46.09 | AX37: 14
A38: S2 | B38: Dry to moderately moist arable land on peaty soils(Anmoor) | C38: 2+, 2- | H38: 2+ | I38: 2- | J38: 0.07 | K38: 8 | L38: 35.11 | M38: 12 | N38: 35 | O38: 9.577554545 | AN38: S2: Dry to moderately moist arable land on peaty soils(Anmoor) | AO38: 0.07 | AP38: 8 | AQ38: 35.11 | AR38: 12 | AS38: 35 | AT38: S2: Dry to moderately moist arable land on peaty soils(Anmoor) | AU38: 0.07 | AV38: 8 | AW38: 35.11 | AX38: 12
A39: S3 | B39: Cropland (2+) flooded in summer (wet year) | C39: 3+ | G39: 3+ | J39: 10.29 | K39: 1 | L39: 22.61 | M39: 1 | N39: 33 | O39: 6.475063636 | AH39: S3: Cropland (2+) flooded in summer (wet year) | AI39: 10.29 | AJ39: 1 | AK39: 22.61 | AL39: 1 | AM39: 33
A40: S4 | B40: Grassland (2+/3+) flooded in summer (wet year) | C40: (5+), 5+/4+, (4+) | E40: 5+ | F40: 4+ | J40: 26.02 | K40: 7 | L40: -0.13 | M40: 6 | N40: 26 | O40: 0.7451454545 | V40: S4: Grassland (2+/3+) flooded in summer (wet year) | W40: 26.02 | X40: 7 | Y40: -0.13 | Z40: 6 | AA40: 26 | AB40: S4: Grassland (2+/3+) flooded in summer (wet year) | AC40: 26.02 | AD40: 7 | AE40: -0.13 | AF40: 6 | AG40: 26 | AY40: perhaps combine S3 and S4
A41: S5 | B41: Simulated harvest (Paludiculture) | C41: (5+), 5+/4+ | E41: 5+ | F41: 4+ | J41: 3.08 | K41: 3 | L41: 11.46 | M41: 3 | N41: 14.5 | O41: 3.217854545 | V41: S5: Simulated harvest (Paludiculture) | W41: 3.08 | X41: 3 | Y41: 11.46 | Z41: 3 | AA41: 14.5 | AB41: S5: Simulated harvest (Paludiculture) | AC41: 3.08 | AD41: 3 | AE41: 11.46 | AF41: 3 | AG41: 14.5
A42: S6 | B42: Wet tall reeds (dry year) | C42: (5+/4+), 4~, 4+ | F42: 4+ | G42: 3+ | J42: 0.79 | K42: 7 | L42: 10.72 | M42: - | N42: 11.5 | O42: 2.947336364 | AB42: S6: Wet tall reeds (dry year) | AC42: 0.79 | AD42: 7 | AE42: 10.72 | AF42: - | AG42: 11.5 | AH42: S6: Wet tall reeds (dry year) | AI42: 0.79 | AJ42: 7 | AK42: 10.72 | AL42: - | AM42: 11.5
A43: S7 | B43: Sphagnum lawn at former peat cut areas | C43: 5+, 5+/4+ | E43: 5+ | F43: 4+ | J43: 37.27 | K43: 3 | L43: 2.83 | M43: 2 | N43: 40 | O43: 1.889918182 | V43: S7: Sphagnum lawn at former peat cut areas | W43: 37.27 | X43: 3 | Y43: 2.83 | Z43: 2 | AA43: 40 | AB43: S7: Sphagnum lawn at former peat cut areas | AC43: 37.27 | AD43: 3 | AE43: 2.83 | AF43: 2 | AG43: 40 | AY43: Das ist doch kein Sph. lawn, sondern eher wet bog sites? Ich habe diese Messungen jetzt bei den bog sites diskutiert und angegeben, dass niemand weiß, warum die Werte so hoch sind. S7 kann damit weg.
A44: S8 | B44: Very wet reeds with lateral import of organic matter | C44: 6+, 6+/5+, (5~, 5+) | D44: 6+ | E44: 5+ | F44: 4+ | J44: 42.27 | K44: 18 | L44: 2.39 | M44: 18 | N44: 44.5 | O44: 1.919918182 | P44: S8: Very wet reeds with lateral import of organic matter | Q44: 42.27 | R44: 18 | S44: 2.39 | T44: 18 | U44: 44.5 | V44: S8: Very wet reeds with lateral import of organic matter | W44: 42.27 | X44: 18 | Y44: 2.39 | Z44: 18 | AA44: 44.5 | AB44: S8: Very wet reeds with lateral import of organic matter | AC44: 42.27 | AD44: 18 | AE44: 2.39 | AF44: 18 | AG44: 44.5
A45: S9 | B45: Ditches in low intensity grassland | C45: 6+ | D45: 6+ | J45: 3.17 | K45: 3 | L45: +/- 0 | M45: - | N45: 3 | O45: 0.0951 | P45: S9: Ditches in low intensity grassland | Q45: 3.17 | R45: 3 | S45: +/- 0 | T45: - | U45: 3
N48: 1 | P48: =P32 -> U17: Very wet tall sedges and Typha | Q48: =Q32 -> 6.81 | R48: 8 | S48: -1.08 | T48: 8 | U48: 5.5 | V48: =V13 -> G5s: Wet grassland with shunt species | W48: =W13 -> 2.93 | X48: 4 | Y48: -3.89 | Z48: - | AA48: -1 | AB48: =AB7 -> G3f: Periodically flooded grasslands | AC48: =AC7 -> -0.05 | AD48: 3 | AE48: 13.46 | AF48: - | AG48: 13 | AH48: =AH5 -> G2: Moist grassland | AI48: =AI5 -> 0.01 | AJ48: 48 | AK48: 19.37 | AL48: 38 | AM48: 19.5 | AN48: =AN4 -> G1: Dry to moderately moist grassland | AO48: =AO4 -> -0.01 | AP48: 24 | AQ48: 31.44 | AR48: 16 | AS48: 31.5 | AT48: =AT4 -> G1: Dry to moderately moist grassland | AU48: =AU4 -> -0.01 | AV48: 24 | AW48: 31.44 | AX48: 16
N49: 2 | P49: =P33 -> U18: Very wet Phragmites reeds | Q49: =Q33 -> 12.44 | R49: 12 | S49: -12.38 | T49: 8 | U49: 0 | V49: =V26 -> U11: Wet meadows and forbs | W49: =W26 -> 7.35 | X49: 2 | Y49: -3.89 | Z49: - | AA49: 3.5 | AB49: =AB10 -> G4: Very moist grassland | AC49: =AC10 -> 0.39 | AD49: 7 | AE49: 6.45 | AF49: 3 | AG49: 7 | AH49: G3: Moist to very moist grassland | AI49: =AI6 -> 0.03 | AJ49: 3 | AK49: 13.46 | AL49: 4 | AM49: 13.5 | AN49: =AN5 -> G2: Moist grassland | AO49: =AO5 -> 0.01 | AP49: 48 | AQ49: 19.37 | AR49: 38 | AS49: 19.5 | AT49: =AT15 -> A1: Dry to moderately moist arable land | AU49: =AU15 -> 0.08 | AV49: 11 | AW49: 41.69 | AX49: 10
C50: Grassland | N50: 3 | P50: =P34 -> U19: Wet to very wet Sphagnum hollows | Q50: =Q34 -> 11.81 | R50: 8 | S50: -4.58 | T50: 8 | U50: 7 | V50: U12: Wet small sedges with mosses | W50: =W27 -> 4.72 | X50: 23 | Y50: -1.99 | Z50: 15 | AA50: 2.5 | AB50: =AB11 -> G4s: Very moist grassland with shunt species | AC50: =AC11 -> 2.1 | AD50: 4 | AE50: 6.45 | AF50: - | AG50: 8.5 | AH50: G3f: Periodically flooded grasslands | AI50: =AI7 -> -0.05 | AJ50: 3 | AK50: 13.46 | AL50: - | AM50: 13 | AN50: =AN7 -> G3f: Periodically flooded grasslands | AO50: =AO7 -> -0.05 | AP50: 3 | AQ50: 13.46 | AR50: - | AS50: 13 | AT50: =AT37 -> S1: Dry to moderately moist grassland on peaty soils (Anmoor) | AU50: =AU37 -> -0.05 | AV50: 9 | AW50: 46.09 | AX50: 14
A51: : | B51: G1 | C51: Dry to moderately moist grassland | N51: 4 | P51: =P35 -> U20: Flooded tall reeds (> 20 cm above surface) | Q51: =Q35 -> 28.29 | R51: 30 | S51: -32.74 | T51: 6 | U51: -4.5 | V51: U13: Wet sphagnum lawn | W51: =W28 -> 5.25 | X51: 6 | Y51: -3.02 | Z51: 6 | AA51: 2 | AB51: =AB12 -> G5: Wet grassland | AC51: =AC12 -> 0.05 | AD51: 3 | AE51: -3.89 | AF51: 5 | AG51: -4 | AH51: G3s: Moist to very moist grassland with shunt species | AI51: =AI8 -> 0.75 | AJ51: 7 | AK51: 13.46 | AL51: - | AM51: 14 | AN51: =AN8 -> G3s: Moist to very moist grassland with shunt species | AO51: =AO8 -> 0.75 | AP51: 7 | AQ51: 13.46 | AR51: - | AS51: 14 | AT51: =AT38 -> S2: Dry to moderately moist arable land on peaty soils(Anmoor) | AU51: =AU38 -> 0.07 | AV51: 8 | AW51: 35.11 | AX51: 12
A52: : | B52: G2 | C52: Moist grassland | N52: 5 | P52: =P44 -> S8: Very wet reeds with lateral import of organic matter | Q52: =Q44 -> 42.27 | R52: 18 | S52: 2.39 | T52: 18 | U52: 44.5 | V52: U14: Wet tall reeds | W52: =W29 -> 6.47 | X52: 10 | Y52: 0.21 | Z52: 2 | AA52: 6.5 | AB52: =AB13 -> G5s: Wet grassland with shunt species | AC52: =AC13 -> 2.93 | AD52: 4 | AE52: -3.89 | AF52: - | AG52: -1 | AH52: G3m: Moist to very moist acidic Molinia meadows | AI52: =AI9 -> 4.85 | AJ52: 6 | AK52: 6.45 | AL52: - | AM52: 11.5 | AN52: =AN15 -> A1: Dry to moderately moist arable land | AO52: =AO15 -> 0.08 | AP52: 11 | AQ52: 41.69 | AR52: 10 | AS52: 42 | AT52: . | AU52: . | AV52: . | AW52: . | AX52: .
A53: : | B53: G3 | C53: Moist to very moist grassland | N53: 6 | P53: =P45 -> S9: Ditches in low intensity grassland | Q53: =Q45 -> 3.17 | R53: 3 | S53: +/- 0 | T53: - | U53: 3 | V53: U15: Wet tall sedges | W53: =W30 -> 9.49 | X53: 3 | Y53: 1.03 | Z53: 2 | AA53: 10.5 | AB53: =AB21 -> U6: Very moist bog heath | AC53: =AC21 -> 0.92 | AD53: 6 | AE53: 4.67 | AF53: 5 | AG53: 5.5 | AH53: G4: Very moist grassland | AI53: =AI10 -> 0.39 | AJ53: 7 | AK53: 6.45 | AL53: 3 | AM53: 7 | AN53: =AN16 -> A2: Moist arable land | AO53: =AO16 -> 0.17 | AP53: 6 | AQ53: 23.44 | AR53: 4 | AS53: 23.5 | AT53: . | AU53: . | AV53: . | AW53: . | AX53: .
A54: : | B54: G3f | C54: Periodically flooded grasslands | N54: 7 | P54: . | Q54: . | R54: . | S54: . | T54: . | U54: . | V54: U16: Wet bog heath | W54: =W31 -> 17.8 | X54: 1 | Y54: -0.01 | Z54: 7 | AA54: 18 | AB54: =AB22 -> U7: Very moist forbs and sedges | AC54: =AC22 -> 0.25 | AD54: 5 | AE54: 12.56 | AF54: 6 | AG54: 13 | AH54: =AH13 -> G5s: Wet grassland with shunt species | AI54: =AI13 -> 2.93 | AJ54: 4 | AK54: -3.89 | AL54: - | AM54: -1 | AN54: =AN18 -> U1: Moist bare peat | AO54: =AO18 -> 0.03 | AP54: 2 | AQ54: 8.99 | AR54: 2 | AS54: 9 | AT54: . | AU54: . | AV54: . | AW54: . | AX54: .
A55: : | B55: G3s | C55: Moist to very moist grassland with shunt species | N55: 8 | P55: . | Q55: . | R55: . | S55: . | T55: . | U55: . | V55: U17: Very wet tall sedges and Typha | W55: =W32 -> 6.81 | X55: 8 | Y55: -1.08 | Z55: 8 | AA55: 5.5 | AB55: =AB23 -> U8: Very moist Sphagnum lawn | AC55: =AC23 -> 1.5 | AD55: 12 | AE55: -4.3 | AF55: 11 | AG55: -3 | AH55: =AH16 -> A2: Moist arable land | AI55: =AI16 -> 0.17 | AJ55: 6 | AK55: 23.44 | AL55: 4 | AM55: 23.5 | AN55: =AN20 -> U3: Moist Reeds | AO55: =AO20 -> 0.04 | AP55: 1 | AQ55: 2.77 | AR55: 2 | AS55: 3 | AT55: . | AU55: . | AV55: . | AW55: . | AX55: .
A56: : | B56: G3m | C56: Moist to very moist acidic Molinia meadows | N56: 9 | P56: . | Q56: . | R56: . | S56: . | T56: . | U56: . | V56: U18: Very wet Phragmites reeds | W56: =W33 -> 12.44 | X56: 12 | Y56: -12.38 | Z56: 8 | AA56: 0 | AB56: =AB24 -> U9: Very moist tall sedges | AC56: =AC24 -> 1.6 | AD56: 12 | AE56: 10.72 | AF56: 4 | AG56: 12.5 | AH56: =AH18 -> U1: Moist bare peat | AI56: =AI18 -> 0.03 | AJ56: 2 | AK56: 8.99 | AL56: 2 | AM56: 9 | AN56: =AN37 -> S1: Dry to moderately moist grassland on peaty soils (Anmoor) | AO56: =AO37 -> -0.05 | AP56: 9 | AQ56: 46.09 | AR56: 14 | AS56: 46 | AT56: . | AU56: . | AV56: . | AW56: . | AX56: .
A57: : | B57: G4 | C57: Very moist grassland | N57: 10 | P57: . | Q57: . | R57: . | S57: . | T57: . | U57: . | V57: U19: Wet to very wet Sphagnum hollows | W57: =W34 -> 11.81 | X57: 8 | Y57: -4.58 | Z57: 8 | AA57: 7 | AB57: =AB25 -> U10: Wet bare peat | AC57: =AC25 -> 0.22 | AD57: 3 | AE57: 1.34 | AF57: 3 | AG57: 1.5 | AH57: =AH19 -> U2: Moist bog heath | AI57: =AI19 -> 0.25 | AJ57: 10 | AK57: 12.33 | AL57: 5 | AM57: 12.5 | AN57: =AN38 -> S2: Dry to moderately moist arable land on peaty soils(Anmoor) | AO57: =AO38 -> 0.07 | AP57: 8 | AQ57: 35.11 | AR57: 12 | AS57: 35 | AT57: . | AU57: . | AV57: . | AW57: . | AX57: .
A58: : | B58: G4s | C58: Very moist grassland with shunt species | N58: 11 | P58: . | Q58: . | R58: . | S58: . | T58: . | U58: . | V58: . | W58: . | X58: . | Y58: . | Z58: . | AA58: . | AB58: =AB27 -> U12: Wet small sedges with mosses | AC58: =AC27 -> 4.72 | AD58: 23 | AE58: -1.99 | AF58: 15 | AG58: 2.5 | AH58: =AH20 -> U3: Moist Reeds | AI58: =AI20 -> 0.04 | AJ58: 1 | AK58: 2.77 | AL58: 2 | AM58: 3 | AN58: . | AO58: . | AP58: . | AQ58: . | AR58: . | AS58: . | AT58: . | AU58: . | AV58: . | AW58: . | AX58: .
A59: : | B59: G5 | C59: Wet grassland | N59: 12 | P59: . | Q59: . | R59: . | S59: . | T59: . | U59: . | V59: . | W59: . | X59: . | Y59: . | Z59: . | AA59: . | AB59: =AB28 -> U13: Wet sphagnum lawn | AC59: =AC28 -> 5.25 | AD59: 6 | AE59: -3.02 | AF59: 6 | AG59: 2 | AH59: =AH22 -> U7: Very moist forbs and sedges | AI59: =AI22 -> 0.25 | AJ59: 5 | AK59: 12.56 | AL59: 6 | AM59: 13 | AN59: . | AO59: . | AP59: . | AQ59: . | AR59: . | AS59: . | AT59: . | AU59: . | AV59: . | AW59: . | AX59: .
A60: : | B60: G5s | C60: Wet grassland with shunt species | N60: 13 | P60: . | Q60: . | R60: . | S60: . | T60: . | U60: . | V60: . | W60: . | X60: . | Y60: . | Z60: . | AA60: . | AB60: =AB29 -> U14: Wet tall reeds | AC60: =AC29 -> 6.47 | AD60: 10 | AE60: 0.21 | AF60: 2 | AG60: 6.5 | AH60: =AH24 -> U9: Very moist tall sedges | AI60: =AI24 -> 1.6 | AJ60: 12 | AK60: 10.72 | AL60: 4 | AM60: 12.5 | AN60: . | AO60: . | AP60: . | AQ60: . | AR60: . | AS60: . | AT60: . | AU60: . | AV60: . | AW60: . | AX60: .
A61: : | B61: A1 | C61: Dry to moderately moist arable land | N61: 14 | P61: . | Q61: . | R61: . | S61: . | T61: . | U61: . | V61: . | W61: . | X61: . | Y61: . | Z61: . | AA61: . | AB61: =AB30 -> U15: Wet tall sedges | AC61: =AC30 -> 9.49 | AD61: 3 | AE61: 1.03 | AF61: 2 | AG61: 10.5 | AH61: =AH39 -> S3: Cropland (2+) flooded in summer (wet year) | AI61: =AI39 -> 10.29 | AJ61: 1 | AK61: 22.61 | AL61: 1 | AM61: 33 | AN61: . | AO61: . | AP61: . | AQ61: . | AR61: . | AS61: . | AT61: . | AU61: . | AV61: . | AW61: . | AX61: .
A62: : | B62: A2 | C62: Moist arable land | N62: 15 | P62: . | Q62: . | R62: . | S62: . | T62: . | U62: . | V62: . | W62: . | X62: . | Y62: . | Z62: . | AA62: . | AB62: =AB31 -> U16: Wet bog heath | AC62: =AC31 -> 17.8 | AD62: 1 | AE62: -0.01 | AF62: 7 | AG62: 18 | AH62: =AH42 -> S6: Wet tall reeds (dry year) | AI62: =AI42 -> 0.79 | AJ62: 7 | AK62: 10.72 | AL62: - | AM62: 11.5 | AN62: . | AO62: . | AP62: . | AQ62: . | AR62: . | AS62: . | AT62: . | AU62: . | AV62: . | AW62: . | AX62: .
A63: : | B63: U1 | C63: Moist bare peat | N63: 16 | P63: . | Q63: . | R63: . | S63: . | T63: . | U63: . | V63: . | W63: . | X63: . | Y63: . | Z63: . | AA63: . | AB63: =AB33 -> U18: Very wet Phragmites reeds | AC63: =AC33 -> 12.44 | AD63: 12 | AE63: -12.38 | AF63: 8 | AG63: 0 | AH63: . | AI63: . | AJ63: . | AK63: . | AL63: . | AM63: . | AN63: . | AO63: . | AP63: . | AQ63: . | AR63: . | AS63: . | AT63: . | AU63: . | AV63: . | AW63: . | AX63: .
A64: : | B64: U2 | C64: Moist bog heath | N64: 17 | P64: . | Q64: . | R64: . | S64: . | T64: . | U64: . | V64: . | W64: . | X64: . | Y64: . | Z64: . | AA64: . | AB64: =AB40 -> S4: Grassland (2+/3+) flooded in summer (wet year) | AC64: =AC40 -> 26.02 | AD64: 7 | AE64: -0.13 | AF64: 6 | AG64: 26 | AH64: . | AI64: . | AJ64: . | AK64: . | AL64: . | AM64: . | AN64: . | AO64: . | AP64: . | AQ64: . | AR64: . | AS64: . | AT64: . | AU64: . | AV64: . | AW64: . | AX64: .
A65: : | B65: U3 | C65: Moist Reeds | N65: 18 | P65: . | Q65: . | R65: . | S65: . | T65: . | U65: . | V65: . | W65: . | X65: . | Y65: . | Z65: . | AA65: . | AB65: =AB41 -> S5: Simulated harvest (Paludiculture) | AC65: =AC41 -> 3.08 | AD65: 3 | AE65: 11.46 | AF65: 3 | AG65: 14.5 | AH65: . | AI65: . | AJ65: . | AK65: . | AL65: . | AM65: . | AN65: . | AO65: . | AP65: . | AQ65: . | AR65: . | AS65: . | AT65: . | AU65: . | AV65: . | AW65: . | AX65: .
A66: : | B66: U6 | C66: Very moist bog heath | N66: 19 | P66: . | Q66: . | R66: . | S66: . | T66: . | U66: . | V66: . | W66: . | X66: . | Y66: . | Z66: . | AA66: . | AB66: =AB42 -> S6: Wet tall reeds (dry year) | AC66: =AC42 -> 0.79 | AD66: 7 | AE66: 10.72 | AF66: - | AG66: 11.5 | AH66: . | AI66: . | AJ66: . | AK66: . | AL66: . | AM66: . | AN66: . | AO66: . | AP66: . | AQ66: . | AR66: . | AS66: . | AT66: . | AU66: . | AV66: . | AW66: . | AX66: .
A67: : | B67: U7 | C67: Very moist forbs and sedges | N67: 20 | P67: . | Q67: . | R67: . | S67: . | T67: . | U67: . | V67: . | W67: . | X67: . | Y67: . | Z67: . | AA67: . | AB67: =AB43 -> S7: Sphagnum lawn at former peat cut areas | AC67: =AC43 -> 37.27 | AD67: 3 | AE67: 2.83 | AF67: 2 | AG67: 40 | AH67: . | AI67: . | AJ67: . | AK67: . | AL67: . | AM67: . | AN67: . | AO67: . | AP67: . | AQ67: . | AR67: . | AS67: . | AT67: . | AU67: . | AV67: . | AW67: . | AX67: .
A68: : | B68: U8 | C68: Very moist Sphagnum lawn | N68: 21 | P68: . | Q68: . | R68: . | S68: . | T68: . | U68: . | V68: . | W68: . | X68: . | Y68: . | Z68: . | AA68: . | AB68: =AB44 -> S8: Very wet reeds with lateral import of organic matter | AC68: =AC44 -> 42.27 | AD68: 18 | AE68: 2.39 | AF68: 18 | AG68: 44.5 | AH68: . | AI68: . | AJ68: . | AK68: . | AL68: . | AM68: . | AN68: . | AO68: . | AP68: . | AQ68: . | AR68: . | AS68: . | AT68: . | AU68: . | AV68: . | AW68: . | AX68: .
A69: : | B69: U9 | C69: Very moist tall sedges | P69: FOUT
A70: : | B70: U10 | C70: Wet bare peat | N70: Baseline | V70: Rewetting
A71: : | B71: U11 | C71: Wet meadows and forbs | N71: 1 | P71: =IF('soil moisture classes '!$C$15='GEST 2.0'!$P$2,'GEST 2.0'!P48,IF('soil moisture classes '!$C$15='GEST 2.0'!$V$2,'GEST 2.0'!V48,IF('soil moisture classes '!$C$15='GEST 2.0'!$AB$2,'GEST 2.0'!AB48,IF('soil moisture classes '!$C$15='GEST 2.0'!$AH$2,'GEST 2.0'!AH48,IF('soil moisture classes '!$C$15='GEST 2.0'!$AN$2,'GEST 2.0'!AN48,IF('soil moisture classes '!$C$15='GEST 2.0'!$AT$2,'GEST 2.0'!AT48,"")))))) -> U17: Very wet tall sedges and Typha | Q71: =IF('soil moisture classes '!$C$15='GEST 2.0'!$P$2,'GEST 2.0'!Q48,IF('soil moisture classes '!$C$15='GEST 2.0'!$V$2,'GEST 2.0'!W48,IF('soil moisture classes '!$C$15='GEST 2.0'!$AB$2,'GEST 2.0'!AC48,IF('soil moisture classes '!$C$15='GEST 2.0'!$AH$2,'GEST 2.0'!AI48,IF('soil moisture classes '!$C$15='GEST 2.0'!$AN$2,'GEST 2.0'!AO48,IF('soil moisture classes '!$C$15='GEST 2.0'!$AT$2,'GEST 2.0'!AU48,"")))))) -> 6.81 | R71: =IF('soil moisture classes '!$C$15='GEST 2.0'!$P$2,'GEST 2.0'!R48,IF('soil moisture classes '!$C$15='GEST 2.0'!$V$2,'GEST 2.0'!X48,IF('soil moisture classes '!$C$15='GEST 2.0'!$AB$2,'GEST 2.0'!AD48,IF('soil moisture classes '!$C$15='GEST 2.0'!$AH$2,'GEST 2.0'!AJ48,IF('soil moisture classes '!$C$15='GEST 2.0'!$AN$2,'GEST 2.0'!AP48,IF('soil moisture classes '!$C$15='GEST 2.0'!$AT$2,'GEST 2.0'!AV48,"")))))) -> 8 | S71: =IF('soil moisture classes '!$C$15='GEST 2.0'!$P$2,'GEST 2.0'!S48,IF('soil moisture classes '!$C$15='GEST 2.0'!$V$2,'GEST 2.0'!Y48,IF('soil moisture classes '!$C$15='GEST 2.0'!$AB$2,'GEST 2.0'!AE48,IF('soil moisture classes '!$C$15='GEST 2.0'!$AH$2,'GEST 2.0'!AK48,IF('soil moisture classes '!$C$15='GEST 2.0'!$AN$2,'GEST 2.0'!AQ48,IF('soil moisture classes '!$C$15='GEST 2.0'!$AT$2,'GEST 2.0'!AW48,"")))))) -> -1.08 | T71: =IF('soil moisture classes '!$C$15='GEST 2.0'!$P$2,'GEST 2.0'!T48,IF('soil moisture classes '!$C$15='GEST 2.0'!$V$2,'GEST 2.0'!Z48,IF('soil moisture classes '!$C$15='GEST 2.0'!$AB$2,'GEST 2.0'!AF48,IF('soil moisture classes '!$C$15='GEST 2.0'!$AH$2,'GEST 2.0'!AL48,IF('soil moisture classes '!$C$15='GEST 2.0'!$AN$2,'GEST 2.0'!AR48,IF('soil moisture classes '!$C$15='GEST 2.0'!$AT$2,'GEST 2.0'!AX48,"")))))) -> 8 | U71: =IF('soil moisture classes '!$C$15='GEST 2.0'!$P$2,'GEST 2.0'!U48,IF('soil moisture classes '!$C$15='GEST 2.0'!$V$2,'GEST 2.0'!AA48,IF('soil moisture classes '!$C$15='GEST 2.0'!$AB$2,'GEST 2.0'!AG48,IF('soil moisture classes '!$C$15='GEST 2.0'!$AH$2,'GEST 2.0'!AM48,IF('soil moisture classes '!$C$15='GEST 2.0'!$AN$2,'GEST 2.0'!AS48,IF('soil moisture classes '!$C$15='GEST 2.0'!$AT$2,'GEST 2.0'!AY48,"")))))) -> 5.5 | V71: =IF('soil moisture classes '!$C$16='GEST 2.0'!$P$2,'GEST 2.0'!P48,IF('soil moisture classes '!$C$16='GEST 2.0'!$V$2,'GEST 2.0'!V48,IF('soil moisture classes '!$C$16='GEST 2.0'!$AB$2,'GEST 2.0'!AB48,IF('soil moisture classes '!$C$16='GEST 2.0'!$AH$2,'GEST 2.0'!AH48,IF('soil moisture classes '!$C$16='GEST 2.0'!$AN$2,'GEST 2.0'!AN48,IF('soil moisture classes '!$C$16='GEST 2.0'!$AT$2,'GEST 2.0'!AT48,"")))))) -> U17: Very wet tall sedges and Typha | W71: =IF('soil moisture classes '!$C$16='GEST 2.0'!$P$2,'GEST 2.0'!Q48,IF('soil moisture classes '!$C$16='GEST 2.0'!$V$2,'GEST 2.0'!W48,IF('soil moisture classes '!$C$16='GEST 2.0'!$AB$2,'GEST 2.0'!AC48,IF('soil moisture classes '!$C$16='GEST 2.0'!$AH$2,'GEST 2.0'!AI48,IF('soil moisture classes '!$C$16='GEST 2.0'!$AN$2,'GEST 2.0'!AO48,IF('soil moisture classes '!$C$16='GEST 2.0'!$AT$2,'GEST 2.0'!AU48,"")))))) -> 6.81 | X71: =IF('soil moisture classes '!$C$16='GEST 2.0'!$P$2,'GEST 2.0'!R48,IF('soil moisture classes '!$C$16='GEST 2.0'!$V$2,'GEST 2.0'!X48,IF('soil moisture classes '!$C$16='GEST 2.0'!$AB$2,'GEST 2.0'!AD48,IF('soil moisture classes '!$C$16='GEST 2.0'!$AH$2,'GEST 2.0'!AJ48,IF('soil moisture classes '!$C$16='GEST 2.0'!$AN$2,'GEST 2.0'!AP48,IF('soil moisture classes '!$C$16='GEST 2.0'!$AT$2,'GEST 2.0'!AV48,"")))))) -> 8 | Y71: =IF('soil moisture classes '!$C$16='GEST 2.0'!$P$2,'GEST 2.0'!S48,IF('soil moisture classes '!$C$16='GEST 2.0'!$V$2,'GEST 2.0'!Y48,IF('soil moisture classes '!$C$16='GEST 2.0'!$AB$2,'GEST 2.0'!AE48,IF('soil moisture classes '!$C$16='GEST 2.0'!$AH$2,'GEST 2.0'!AK48,IF('soil moisture classes '!$C$16='GEST 2.0'!$AN$2,'GEST 2.0'!AQ48,IF('soil moisture classes '!$C$16='GEST 2.0'!$AT$2,'GEST 2.0'!AW48,"")))))) -> -1.08 | Z71: =IF('soil moisture classes '!$C$16='GEST 2.0'!$P$2,'GEST 2.0'!T48,IF('soil moisture classes '!$C$16='GEST 2.0'!$V$2,'GEST 2.0'!Z48,IF('soil moisture classes '!$C$16='GEST 2.0'!$AB$2,'GEST 2.0'!AF48,IF('soil moisture classes '!$C$16='GEST 2.0'!$AH$2,'GEST 2.0'!AL48,IF('soil moisture classes '!$C$16='GEST 2.0'!$AN$2,'GEST 2.0'!AR48,IF('soil moisture classes '!$C$16='GEST 2.0'!$AT$2,'GEST 2.0'!AX48,"")))))) -> 8 | AA71: =IF('soil moisture classes '!$C$16='GEST 2.0'!$P$2,'GEST 2.0'!U48,IF('soil moisture classes '!$C$16='GEST 2.0'!$V$2,'GEST 2.0'!AA48,IF('soil moisture classes '!$C$16='GEST 2.0'!$AB$2,'GEST 2.0'!AG48,IF('soil moisture classes '!$C$16='GEST 2.0'!$AH$2,'GEST 2.0'!AM48,IF('soil moisture classes '!$C$16='GEST 2.0'!$AN$2,'GEST 2.0'!AS48,IF('soil moisture classes '!$C$16='GEST 2.0'!$AT$2,'GEST 2.0'!AY48,"")))))) -> 5.5
A72: : | B72: U12 | C72: Wet small sedges with mosses | N72: 2 | P72: =IF('soil moisture classes '!$C$15='GEST 2.0'!$P$2,'GEST 2.0'!P49,IF('soil moisture classes '!$C$15='GEST 2.0'!$V$2,'GEST 2.0'!V49,IF('soil moisture classes '!$C$15='GEST 2.0'!$AB$2,'GEST 2.0'!AB49,IF('soil moisture classes '!$C$15='GEST 2.0'!$AH$2,'GEST 2.0'!AH49,IF('soil moisture classes '!$C$15='GEST 2.0'!$AN$2,'GEST 2.0'!AN49,IF('soil moisture classes '!$C$15='GEST 2.0'!$AT$2,'GEST 2.0'!AT49,"")))))) -> U18: Very wet Phragmites reeds | Q72: =IF('soil moisture classes '!$C$15='GEST 2.0'!$P$2,'GEST 2.0'!Q49,IF('soil moisture classes '!$C$15='GEST 2.0'!$V$2,'GEST 2.0'!W49,IF('soil moisture classes '!$C$15='GEST 2.0'!$AB$2,'GEST 2.0'!AC49,IF('soil moisture classes '!$C$15='GEST 2.0'!$AH$2,'GEST 2.0'!AI49,IF('soil moisture classes '!$C$15='GEST 2.0'!$AN$2,'GEST 2.0'!AO49,IF('soil moisture classes '!$C$15='GEST 2.0'!$AT$2,'GEST 2.0'!AU49,"")))))) -> 12.44 | R72: =IF('soil moisture classes '!$C$15='GEST 2.0'!$P$2,'GEST 2.0'!R49,IF('soil moisture classes '!$C$15='GEST 2.0'!$V$2,'GEST 2.0'!X49,IF('soil moisture classes '!$C$15='GEST 2.0'!$AB$2,'GEST 2.0'!AD49,IF('soil moisture classes '!$C$15='GEST 2.0'!$AH$2,'GEST 2.0'!AJ49,IF('soil moisture classes '!$C$15='GEST 2.0'!$AN$2,'GEST 2.0'!AP49,IF('soil moisture classes '!$C$15='GEST 2.0'!$AT$2,'GEST 2.0'!AV49,"")))))) -> 12 | S72: =IF('soil moisture classes '!$C$15='GEST 2.0'!$P$2,'GEST 2.0'!S49,IF('soil moisture classes '!$C$15='GEST 2.0'!$V$2,'GEST 2.0'!Y49,IF('soil moisture classes '!$C$15='GEST 2.0'!$AB$2,'GEST 2.0'!AE49,IF('soil moisture classes '!$C$15='GEST 2.0'!$AH$2,'GEST 2.0'!AK49,IF('soil moisture classes '!$C$15='GEST 2.0'!$AN$2,'GEST 2.0'!AQ49,IF('soil moisture classes '!$C$15='GEST 2.0'!$AT$2,'GEST 2.0'!AW49,"")))))) -> -12.38 | T72: =IF('soil moisture classes '!$C$15='GEST 2.0'!$P$2,'GEST 2.0'!T49,IF('soil moisture classes '!$C$15='GEST 2.0'!$V$2,'GEST 2.0'!Z49,IF('soil moisture classes '!$C$15='GEST 2.0'!$AB$2,'GEST 2.0'!AF49,IF('soil moisture classes '!$C$15='GEST 2.0'!$AH$2,'GEST 2.0'!AL49,IF('soil moisture classes '!$C$15='GEST 2.0'!$AN$2,'GEST 2.0'!AR49,IF('soil moisture classes '!$C$15='GEST 2.0'!$AT$2,'GEST 2.0'!AX49,"")))))) -> 8 | U72: =IF('soil moisture classes '!$C$15='GEST 2.0'!$P$2,'GEST 2.0'!U49,IF('soil moisture classes '!$C$15='GEST 2.0'!$V$2,'GEST 2.0'!AA49,IF('soil moisture classes '!$C$15='GEST 2.0'!$AB$2,'GEST 2.0'!AG49,IF('soil moisture classes '!$C$15='GEST 2.0'!$AH$2,'GEST 2.0'!AM49,IF('soil moisture classes '!$C$15='GEST 2.0'!$AN$2,'GEST 2.0'!AS49,IF('soil moisture classes '!$C$15='GEST 2.0'!$AT$2,'GEST 2.0'!AY49,"")))))) -> 0 | V72: =IF('soil moisture classes '!$C$16='GEST 2.0'!$P$2,'GEST 2.0'!P49,IF('soil moisture classes '!$C$16='GEST 2.0'!$V$2,'GEST 2.0'!V49,IF('soil moisture classes '!$C$16='GEST 2.0'!$AB$2,'GEST 2.0'!AB49,IF('soil moisture classes '!$C$16='GEST 2.0'!$AH$2,'GEST 2.0'!AH49,IF('soil moisture classes '!$C$16='GEST 2.0'!$AN$2,'GEST 2.0'!AN49,IF('soil moisture classes '!$C$16='GEST 2.0'!$AT$2,'GEST 2.0'!AT49,"")))))) -> U18: Very wet Phragmites reeds | W72: =IF('soil moisture classes '!$C$16='GEST 2.0'!$P$2,'GEST 2.0'!Q49,IF('soil moisture classes '!$C$16='GEST 2.0'!$V$2,'GEST 2.0'!W49,IF('soil moisture classes '!$C$16='GEST 2.0'!$AB$2,'GEST 2.0'!AC49,IF('soil moisture classes '!$C$16='GEST 2.0'!$AH$2,'GEST 2.0'!AI49,IF('soil moisture classes '!$C$16='GEST 2.0'!$AN$2,'GEST 2.0'!AO49,IF('soil moisture classes '!$C$16='GEST 2.0'!$AT$2,'GEST 2.0'!AU49,"")))))) -> 12.44 | X72: =IF('soil moisture classes '!$C$16='GEST 2.0'!$P$2,'GEST 2.0'!R49,IF('soil moisture classes '!$C$16='GEST 2.0'!$V$2,'GEST 2.0'!X49,IF('soil moisture classes '!$C$16='GEST 2.0'!$AB$2,'GEST 2.0'!AD49,IF('soil moisture classes '!$C$16='GEST 2.0'!$AH$2,'GEST 2.0'!AJ49,IF('soil moisture classes '!$C$16='GEST 2.0'!$AN$2,'GEST 2.0'!AP49,IF('soil moisture classes '!$C$16='GEST 2.0'!$AT$2,'GEST 2.0'!AV49,"")))))) -> 12 | Y72: =IF('soil moisture classes '!$C$16='GEST 2.0'!$P$2,'GEST 2.0'!S49,IF('soil moisture classes '!$C$16='GEST 2.0'!$V$2,'GEST 2.0'!Y49,IF('soil moisture classes '!$C$16='GEST 2.0'!$AB$2,'GEST 2.0'!AE49,IF('soil moisture classes '!$C$16='GEST 2.0'!$AH$2,'GEST 2.0'!AK49,IF('soil moisture classes '!$C$16='GEST 2.0'!$AN$2,'GEST 2.0'!AQ49,IF('soil moisture classes '!$C$16='GEST 2.0'!$AT$2,'GEST 2.0'!AW49,"")))))) -> -12.38 | Z72: =IF('soil moisture classes '!$C$16='GEST 2.0'!$P$2,'GEST 2.0'!T49,IF('soil moisture classes '!$C$16='GEST 2.0'!$V$2,'GEST 2.0'!Z49,IF('soil moisture classes '!$C$16='GEST 2.0'!$AB$2,'GEST 2.0'!AF49,IF('soil moisture classes '!$C$16='GEST 2.0'!$AH$2,'GEST 2.0'!AL49,IF('soil moisture classes '!$C$16='GEST 2.0'!$AN$2,'GEST 2.0'!AR49,IF('soil moisture classes '!$C$16='GEST 2.0'!$AT$2,'GEST 2.0'!AX49,"")))))) -> 8 | AA72: =IF('soil moisture classes '!$C$16='GEST 2.0'!$P$2,'GEST 2.0'!U49,IF('soil moisture classes '!$C$16='GEST 2.0'!$V$2,'GEST 2.0'!AA49,IF('soil moisture classes '!$C$16='GEST 2.0'!$AB$2,'GEST 2.0'!AG49,IF('soil moisture classes '!$C$16='GEST 2.0'!$AH$2,'GEST 2.0'!AM49,IF('soil moisture classes '!$C$16='GEST 2.0'!$AN$2,'GEST 2.0'!AS49,IF('soil moisture classes '!$C$16='GEST 2.0'!$AT$2,'GEST 2.0'!AY49,"")))))) -> 0
A73: : | B73: U13 | C73: Wet sphagnum lawn | N73: 3 | P73: =IF('soil moisture classes '!$C$15='GEST 2.0'!$P$2,'GEST 2.0'!P50,IF('soil moisture classes '!$C$15='GEST 2.0'!$V$2,'GEST 2.0'!V50,IF('soil moisture classes '!$C$15='GEST 2.0'!$AB$2,'GEST 2.0'!AB50,IF('soil moisture classes '!$C$15='GEST 2.0'!$AH$2,'GEST 2.0'!AH50,IF('soil moisture classes '!$C$15='GEST 2.0'!$AN$2,'GEST 2.0'!AN50,IF('soil moisture classes '!$C$15='GEST 2.0'!$AT$2,'GEST 2.0'!AT50,"")))))) -> U19: Wet to very wet Sphagnum hollows | Q73: =IF('soil moisture classes '!$C$15='GEST 2.0'!$P$2,'GEST 2.0'!Q50,IF('soil moisture classes '!$C$15='GEST 2.0'!$V$2,'GEST 2.0'!W50,IF('soil moisture classes '!$C$15='GEST 2.0'!$AB$2,'GEST 2.0'!AC50,IF('soil moisture classes '!$C$15='GEST 2.0'!$AH$2,'GEST 2.0'!AI50,IF('soil moisture classes '!$C$15='GEST 2.0'!$AN$2,'GEST 2.0'!AO50,IF('soil moisture classes '!$C$15='GEST 2.0'!$AT$2,'GEST 2.0'!AU50,"")))))) -> 11.81 | R73: =IF('soil moisture classes '!$C$15='GEST 2.0'!$P$2,'GEST 2.0'!R50,IF('soil moisture classes '!$C$15='GEST 2.0'!$V$2,'GEST 2.0'!X50,IF('soil moisture classes '!$C$15='GEST 2.0'!$AB$2,'GEST 2.0'!AD50,IF('soil moisture classes '!$C$15='GEST 2.0'!$AH$2,'GEST 2.0'!AJ50,IF('soil moisture classes '!$C$15='GEST 2.0'!$AN$2,'GEST 2.0'!AP50,IF('soil moisture classes '!$C$15='GEST 2.0'!$AT$2,'GEST 2.0'!AV50,"")))))) -> 8 | S73: =IF('soil moisture classes '!$C$15='GEST 2.0'!$P$2,'GEST 2.0'!S50,IF('soil moisture classes '!$C$15='GEST 2.0'!$V$2,'GEST 2.0'!Y50,IF('soil moisture classes '!$C$15='GEST 2.0'!$AB$2,'GEST 2.0'!AE50,IF('soil moisture classes '!$C$15='GEST 2.0'!$AH$2,'GEST 2.0'!AK50,IF('soil moisture classes '!$C$15='GEST 2.0'!$AN$2,'GEST 2.0'!AQ50,IF('soil moisture classes '!$C$15='GEST 2.0'!$AT$2,'GEST 2.0'!AW50,"")))))) -> -4.58 | T73: =IF('soil moisture classes '!$C$15='GEST 2.0'!$P$2,'GEST 2.0'!T50,IF('soil moisture classes '!$C$15='GEST 2.0'!$V$2,'GEST 2.0'!Z50,IF('soil moisture classes '!$C$15='GEST 2.0'!$AB$2,'GEST 2.0'!AF50,IF('soil moisture classes '!$C$15='GEST 2.0'!$AH$2,'GEST 2.0'!AL50,IF('soil moisture classes '!$C$15='GEST 2.0'!$AN$2,'GEST 2.0'!AR50,IF('soil moisture classes '!$C$15='GEST 2.0'!$AT$2,'GEST 2.0'!AX50,"")))))) -> 8 | U73: =IF('soil moisture classes '!$C$15='GEST 2.0'!$P$2,'GEST 2.0'!U50,IF('soil moisture classes '!$C$15='GEST 2.0'!$V$2,'GEST 2.0'!AA50,IF('soil moisture classes '!$C$15='GEST 2.0'!$AB$2,'GEST 2.0'!AG50,IF('soil moisture classes '!$C$15='GEST 2.0'!$AH$2,'GEST 2.0'!AM50,IF('soil moisture classes '!$C$15='GEST 2.0'!$AN$2,'GEST 2.0'!AS50,IF('soil moisture classes '!$C$15='GEST 2.0'!$AT$2,'GEST 2.0'!AY50,"")))))) -> 7 | V73: =IF('soil moisture classes '!$C$16='GEST 2.0'!$P$2,'GEST 2.0'!P50,IF('soil moisture classes '!$C$16='GEST 2.0'!$V$2,'GEST 2.0'!V50,IF('soil moisture classes '!$C$16='GEST 2.0'!$AB$2,'GEST 2.0'!AB50,IF('soil moisture classes '!$C$16='GEST 2.0'!$AH$2,'GEST 2.0'!AH50,IF('soil moisture classes '!$C$16='GEST 2.0'!$AN$2,'GEST 2.0'!AN50,IF('soil moisture classes '!$C$16='GEST 2.0'!$AT$2,'GEST 2.0'!AT50,"")))))) -> U19: Wet to very wet Sphagnum hollows | W73: =IF('soil moisture classes '!$C$16='GEST 2.0'!$P$2,'GEST 2.0'!Q50,IF('soil moisture classes '!$C$16='GEST 2.0'!$V$2,'GEST 2.0'!W50,IF('soil moisture classes '!$C$16='GEST 2.0'!$AB$2,'GEST 2.0'!AC50,IF('soil moisture classes '!$C$16='GEST 2.0'!$AH$2,'GEST 2.0'!AI50,IF('soil moisture classes '!$C$16='GEST 2.0'!$AN$2,'GEST 2.0'!AO50,IF('soil moisture classes '!$C$16='GEST 2.0'!$AT$2,'GEST 2.0'!AU50,"")))))) -> 11.81 | X73: =IF('soil moisture classes '!$C$16='GEST 2.0'!$P$2,'GEST 2.0'!R50,IF('soil moisture classes '!$C$16='GEST 2.0'!$V$2,'GEST 2.0'!X50,IF('soil moisture classes '!$C$16='GEST 2.0'!$AB$2,'GEST 2.0'!AD50,IF('soil moisture classes '!$C$16='GEST 2.0'!$AH$2,'GEST 2.0'!AJ50,IF('soil moisture classes '!$C$16='GEST 2.0'!$AN$2,'GEST 2.0'!AP50,IF('soil moisture classes '!$C$16='GEST 2.0'!$AT$2,'GEST 2.0'!AV50,"")))))) -> 8 | Y73: =IF('soil moisture classes '!$C$16='GEST 2.0'!$P$2,'GEST 2.0'!S50,IF('soil moisture classes '!$C$16='GEST 2.0'!$V$2,'GEST 2.0'!Y50,IF('soil moisture classes '!$C$16='GEST 2.0'!$AB$2,'GEST 2.0'!AE50,IF('soil moisture classes '!$C$16='GEST 2.0'!$AH$2,'GEST 2.0'!AK50,IF('soil moisture classes '!$C$16='GEST 2.0'!$AN$2,'GEST 2.0'!AQ50,IF('soil moisture classes '!$C$16='GEST 2.0'!$AT$2,'GEST 2.0'!AW50,"")))))) -> -4.58 | Z73: =IF('soil moisture classes '!$C$16='GEST 2.0'!$P$2,'GEST 2.0'!T50,IF('soil moisture classes '!$C$16='GEST 2.0'!$V$2,'GEST 2.0'!Z50,IF('soil moisture classes '!$C$16='GEST 2.0'!$AB$2,'GEST 2.0'!AF50,IF('soil moisture classes '!$C$16='GEST 2.0'!$AH$2,'GEST 2.0'!AL50,IF('soil moisture classes '!$C$16='GEST 2.0'!$AN$2,'GEST 2.0'!AR50,IF('soil moisture classes '!$C$16='GEST 2.0'!$AT$2,'GEST 2.0'!AX50,"")))))) -> 8 | AA73: =IF('soil moisture classes '!$C$16='GEST 2.0'!$P$2,'GEST 2.0'!U50,IF('soil moisture classes '!$C$16='GEST 2.0'!$V$2,'GEST 2.0'!AA50,IF('soil moisture classes '!$C$16='GEST 2.0'!$AB$2,'GEST 2.0'!AG50,IF('soil moisture classes '!$C$16='GEST 2.0'!$AH$2,'GEST 2.0'!AM50,IF('soil moisture classes '!$C$16='GEST 2.0'!$AN$2,'GEST 2.0'!AS50,IF('soil moisture classes '!$C$16='GEST 2.0'!$AT$2,'GEST 2.0'!AY50,"")))))) -> 7
A74: : | B74: U14 | C74: Wet tall reeds | N74: 4 | P74: =IF('soil moisture classes '!$C$15='GEST 2.0'!$P$2,'GEST 2.0'!P51,IF('soil moisture classes '!$C$15='GEST 2.0'!$V$2,'GEST 2.0'!V51,IF('soil moisture classes '!$C$15='GEST 2.0'!$AB$2,'GEST 2.0'!AB51,IF('soil moisture classes '!$C$15='GEST 2.0'!$AH$2,'GEST 2.0'!AH51,IF('soil moisture classes '!$C$15='GEST 2.0'!$AN$2,'GEST 2.0'!AN51,IF('soil moisture classes '!$C$15='GEST 2.0'!$AT$2,'GEST 2.0'!AT51,"")))))) -> U20: Flooded tall reeds (> 20 cm above surface) | Q74: =IF('soil moisture classes '!$C$15='GEST 2.0'!$P$2,'GEST 2.0'!Q51,IF('soil moisture classes '!$C$15='GEST 2.0'!$V$2,'GEST 2.0'!W51,IF('soil moisture classes '!$C$15='GEST 2.0'!$AB$2,'GEST 2.0'!AC51,IF('soil moisture classes '!$C$15='GEST 2.0'!$AH$2,'GEST 2.0'!AI51,IF('soil moisture classes '!$C$15='GEST 2.0'!$AN$2,'GEST 2.0'!AO51,IF('soil moisture classes '!$C$15='GEST 2.0'!$AT$2,'GEST 2.0'!AU51,"")))))) -> 28.29 | R74: =IF('soil moisture classes '!$C$15='GEST 2.0'!$P$2,'GEST 2.0'!R51,IF('soil moisture classes '!$C$15='GEST 2.0'!$V$2,'GEST 2.0'!X51,IF('soil moisture classes '!$C$15='GEST 2.0'!$AB$2,'GEST 2.0'!AD51,IF('soil moisture classes '!$C$15='GEST 2.0'!$AH$2,'GEST 2.0'!AJ51,IF('soil moisture classes '!$C$15='GEST 2.0'!$AN$2,'GEST 2.0'!AP51,IF('soil moisture classes '!$C$15='GEST 2.0'!$AT$2,'GEST 2.0'!AV51,"")))))) -> 30 | S74: =IF('soil moisture classes '!$C$15='GEST 2.0'!$P$2,'GEST 2.0'!S51,IF('soil moisture classes '!$C$15='GEST 2.0'!$V$2,'GEST 2.0'!Y51,IF('soil moisture classes '!$C$15='GEST 2.0'!$AB$2,'GEST 2.0'!AE51,IF('soil moisture classes '!$C$15='GEST 2.0'!$AH$2,'GEST 2.0'!AK51,IF('soil moisture classes '!$C$15='GEST 2.0'!$AN$2,'GEST 2.0'!AQ51,IF('soil moisture classes '!$C$15='GEST 2.0'!$AT$2,'GEST 2.0'!AW51,"")))))) -> -32.74 | T74: =IF('soil moisture classes '!$C$15='GEST 2.0'!$P$2,'GEST 2.0'!T51,IF('soil moisture classes '!$C$15='GEST 2.0'!$V$2,'GEST 2.0'!Z51,IF('soil moisture classes '!$C$15='GEST 2.0'!$AB$2,'GEST 2.0'!AF51,IF('soil moisture classes '!$C$15='GEST 2.0'!$AH$2,'GEST 2.0'!AL51,IF('soil moisture classes '!$C$15='GEST 2.0'!$AN$2,'GEST 2.0'!AR51,IF('soil moisture classes '!$C$15='GEST 2.0'!$AT$2,'GEST 2.0'!AX51,"")))))) -> 6 | U74: =IF('soil moisture classes '!$C$15='GEST 2.0'!$P$2,'GEST 2.0'!U51,IF('soil moisture classes '!$C$15='GEST 2.0'!$V$2,'GEST 2.0'!AA51,IF('soil moisture classes '!$C$15='GEST 2.0'!$AB$2,'GEST 2.0'!AG51,IF('soil moisture classes '!$C$15='GEST 2.0'!$AH$2,'GEST 2.0'!AM51,IF('soil moisture classes '!$C$15='GEST 2.0'!$AN$2,'GEST 2.0'!AS51,IF('soil moisture classes '!$C$15='GEST 2.0'!$AT$2,'GEST 2.0'!AY51,"")))))) -> -4.5 | V74: =IF('soil moisture classes '!$C$16='GEST 2.0'!$P$2,'GEST 2.0'!P51,IF('soil moisture classes '!$C$16='GEST 2.0'!$V$2,'GEST 2.0'!V51,IF('soil moisture classes '!$C$16='GEST 2.0'!$AB$2,'GEST 2.0'!AB51,IF('soil moisture classes '!$C$16='GEST 2.0'!$AH$2,'GEST 2.0'!AH51,IF('soil moisture classes '!$C$16='GEST 2.0'!$AN$2,'GEST 2.0'!AN51,IF('soil moisture classes '!$C$16='GEST 2.0'!$AT$2,'GEST 2.0'!AT51,"")))))) -> U20: Flooded tall reeds (> 20 cm above surface) | W74: =IF('soil moisture classes '!$C$16='GEST 2.0'!$P$2,'GEST 2.0'!Q51,IF('soil moisture classes '!$C$16='GEST 2.0'!$V$2,'GEST 2.0'!W51,IF('soil moisture classes '!$C$16='GEST 2.0'!$AB$2,'GEST 2.0'!AC51,IF('soil moisture classes '!$C$16='GEST 2.0'!$AH$2,'GEST 2.0'!AI51,IF('soil moisture classes '!$C$16='GEST 2.0'!$AN$2,'GEST 2.0'!AO51,IF('soil moisture classes '!$C$16='GEST 2.0'!$AT$2,'GEST 2.0'!AU51,"")))))) -> 28.29 | X74: =IF('soil moisture classes '!$C$16='GEST 2.0'!$P$2,'GEST 2.0'!R51,IF('soil moisture classes '!$C$16='GEST 2.0'!$V$2,'GEST 2.0'!X51,IF('soil moisture classes '!$C$16='GEST 2.0'!$AB$2,'GEST 2.0'!AD51,IF('soil moisture classes '!$C$16='GEST 2.0'!$AH$2,'GEST 2.0'!AJ51,IF('soil moisture classes '!$C$16='GEST 2.0'!$AN$2,'GEST 2.0'!AP51,IF('soil moisture classes '!$C$16='GEST 2.0'!$AT$2,'GEST 2.0'!AV51,"")))))) -> 30 | Y74: =IF('soil moisture classes '!$C$16='GEST 2.0'!$P$2,'GEST 2.0'!S51,IF('soil moisture classes '!$C$16='GEST 2.0'!$V$2,'GEST 2.0'!Y51,IF('soil moisture classes '!$C$16='GEST 2.0'!$AB$2,'GEST 2.0'!AE51,IF('soil moisture classes '!$C$16='GEST 2.0'!$AH$2,'GEST 2.0'!AK51,IF('soil moisture classes '!$C$16='GEST 2.0'!$AN$2,'GEST 2.0'!AQ51,IF('soil moisture classes '!$C$16='GEST 2.0'!$AT$2,'GEST 2.0'!AW51,"")))))) -> -32.74 | Z74: =IF('soil moisture classes '!$C$16='GEST 2.0'!$P$2,'GEST 2.0'!T51,IF('soil moisture classes '!$C$16='GEST 2.0'!$V$2,'GEST 2.0'!Z51,IF('soil moisture classes '!$C$16='GEST 2.0'!$AB$2,'GEST 2.0'!AF51,IF('soil moisture classes '!$C$16='GEST 2.0'!$AH$2,'GEST 2.0'!AL51,IF('soil moisture classes '!$C$16='GEST 2.0'!$AN$2,'GEST 2.0'!AR51,IF('soil moisture classes '!$C$16='GEST 2.0'!$AT$2,'GEST 2.0'!AX51,"")))))) -> 6 | AA74: =IF('soil moisture classes '!$C$16='GEST 2.0'!$P$2,'GEST 2.0'!U51,IF('soil moisture classes '!$C$16='GEST 2.0'!$V$2,'GEST 2.0'!AA51,IF('soil moisture classes '!$C$16='GEST 2.0'!$AB$2,'GEST 2.0'!AG51,IF('soil moisture classes '!$C$16='GEST 2.0'!$AH$2,'GEST 2.0'!AM51,IF('soil moisture classes '!$C$16='GEST 2.0'!$AN$2,'GEST 2.0'!AS51,IF('soil moisture classes '!$C$16='GEST 2.0'!$AT$2,'GEST 2.0'!AY51,"")))))) -> -4.5
A75: : | B75: U15 | C75: Wet tall sedges | N75: 5 | P75: =IF('soil moisture classes '!$C$15='GEST 2.0'!$P$2,'GEST 2.0'!P52,IF('soil moisture classes '!$C$15='GEST 2.0'!$V$2,'GEST 2.0'!V52,IF('soil moisture classes '!$C$15='GEST 2.0'!$AB$2,'GEST 2.0'!AB52,IF('soil moisture classes '!$C$15='GEST 2.0'!$AH$2,'GEST 2.0'!AH52,IF('soil moisture classes '!$C$15='GEST 2.0'!$AN$2,'GEST 2.0'!AN52,IF('soil moisture classes '!$C$15='GEST 2.0'!$AT$2,'GEST 2.0'!AT52,"")))))) -> S8: Very wet reeds with lateral import of organic matter | Q75: =IF('soil moisture classes '!$C$15='GEST 2.0'!$P$2,'GEST 2.0'!Q52,IF('soil moisture classes '!$C$15='GEST 2.0'!$V$2,'GEST 2.0'!W52,IF('soil moisture classes '!$C$15='GEST 2.0'!$AB$2,'GEST 2.0'!AC52,IF('soil moisture classes '!$C$15='GEST 2.0'!$AH$2,'GEST 2.0'!AI52,IF('soil moisture classes '!$C$15='GEST 2.0'!$AN$2,'GEST 2.0'!AO52,IF('soil moisture classes '!$C$15='GEST 2.0'!$AT$2,'GEST 2.0'!AU52,"")))))) -> 42.27 | R75: =IF('soil moisture classes '!$C$15='GEST 2.0'!$P$2,'GEST 2.0'!R52,IF('soil moisture classes '!$C$15='GEST 2.0'!$V$2,'GEST 2.0'!X52,IF('soil moisture classes '!$C$15='GEST 2.0'!$AB$2,'GEST 2.0'!AD52,IF('soil moisture classes '!$C$15='GEST 2.0'!$AH$2,'GEST 2.0'!AJ52,IF('soil moisture classes '!$C$15='GEST 2.0'!$AN$2,'GEST 2.0'!AP52,IF('soil moisture classes '!$C$15='GEST 2.0'!$AT$2,'GEST 2.0'!AV52,"")))))) -> 18 | S75: =IF('soil moisture classes '!$C$15='GEST 2.0'!$P$2,'GEST 2.0'!S52,IF('soil moisture classes '!$C$15='GEST 2.0'!$V$2,'GEST 2.0'!Y52,IF('soil moisture classes '!$C$15='GEST 2.0'!$AB$2,'GEST 2.0'!AE52,IF('soil moisture classes '!$C$15='GEST 2.0'!$AH$2,'GEST 2.0'!AK52,IF('soil moisture classes '!$C$15='GEST 2.0'!$AN$2,'GEST 2.0'!AQ52,IF('soil moisture classes '!$C$15='GEST 2.0'!$AT$2,'GEST 2.0'!AW52,"")))))) -> 2.39 | T75: =IF('soil moisture classes '!$C$15='GEST 2.0'!$P$2,'GEST 2.0'!T52,IF('soil moisture classes '!$C$15='GEST 2.0'!$V$2,'GEST 2.0'!Z52,IF('soil moisture classes '!$C$15='GEST 2.0'!$AB$2,'GEST 2.0'!AF52,IF('soil moisture classes '!$C$15='GEST 2.0'!$AH$2,'GEST 2.0'!AL52,IF('soil moisture classes '!$C$15='GEST 2.0'!$AN$2,'GEST 2.0'!AR52,IF('soil moisture classes '!$C$15='GEST 2.0'!$AT$2,'GEST 2.0'!AX52,"")))))) -> 18 | U75: =IF('soil moisture classes '!$C$15='GEST 2.0'!$P$2,'GEST 2.0'!U52,IF('soil moisture classes '!$C$15='GEST 2.0'!$V$2,'GEST 2.0'!AA52,IF('soil moisture classes '!$C$15='GEST 2.0'!$AB$2,'GEST 2.0'!AG52,IF('soil moisture classes '!$C$15='GEST 2.0'!$AH$2,'GEST 2.0'!AM52,IF('soil moisture classes '!$C$15='GEST 2.0'!$AN$2,'GEST 2.0'!AS52,IF('soil moisture classes '!$C$15='GEST 2.0'!$AT$2,'GEST 2.0'!AY52,"")))))) -> 44.5 | V75: =IF('soil moisture classes '!$C$16='GEST 2.0'!$P$2,'GEST 2.0'!P52,IF('soil moisture classes '!$C$16='GEST 2.0'!$V$2,'GEST 2.0'!V52,IF('soil moisture classes '!$C$16='GEST 2.0'!$AB$2,'GEST 2.0'!AB52,IF('soil moisture classes '!$C$16='GEST 2.0'!$AH$2,'GEST 2.0'!AH52,IF('soil moisture classes '!$C$16='GEST 2.0'!$AN$2,'GEST 2.0'!AN52,IF('soil moisture classes '!$C$16='GEST 2.0'!$AT$2,'GEST 2.0'!AT52,"")))))) -> S8: Very wet reeds with lateral import of organic matter | W75: =IF('soil moisture classes '!$C$16='GEST 2.0'!$P$2,'GEST 2.0'!Q52,IF('soil moisture classes '!$C$16='GEST 2.0'!$V$2,'GEST 2.0'!W52,IF('soil moisture classes '!$C$16='GEST 2.0'!$AB$2,'GEST 2.0'!AC52,IF('soil moisture classes '!$C$16='GEST 2.0'!$AH$2,'GEST 2.0'!AI52,IF('soil moisture classes '!$C$16='GEST 2.0'!$AN$2,'GEST 2.0'!AO52,IF('soil moisture classes '!$C$16='GEST 2.0'!$AT$2,'GEST 2.0'!AU52,"")))))) -> 42.27 | X75: =IF('soil moisture classes '!$C$16='GEST 2.0'!$P$2,'GEST 2.0'!R52,IF('soil moisture classes '!$C$16='GEST 2.0'!$V$2,'GEST 2.0'!X52,IF('soil moisture classes '!$C$16='GEST 2.0'!$AB$2,'GEST 2.0'!AD52,IF('soil moisture classes '!$C$16='GEST 2.0'!$AH$2,'GEST 2.0'!AJ52,IF('soil moisture classes '!$C$16='GEST 2.0'!$AN$2,'GEST 2.0'!AP52,IF('soil moisture classes '!$C$16='GEST 2.0'!$AT$2,'GEST 2.0'!AV52,"")))))) -> 18 | Y75: =IF('soil moisture classes '!$C$16='GEST 2.0'!$P$2,'GEST 2.0'!S52,IF('soil moisture classes '!$C$16='GEST 2.0'!$V$2,'GEST 2.0'!Y52,IF('soil moisture classes '!$C$16='GEST 2.0'!$AB$2,'GEST 2.0'!AE52,IF('soil moisture classes '!$C$16='GEST 2.0'!$AH$2,'GEST 2.0'!AK52,IF('soil moisture classes '!$C$16='GEST 2.0'!$AN$2,'GEST 2.0'!AQ52,IF('soil moisture classes '!$C$16='GEST 2.0'!$AT$2,'GEST 2.0'!AW52,"")))))) -> 2.39 | Z75: =IF('soil moisture classes '!$C$16='GEST 2.0'!$P$2,'GEST 2.0'!T52,IF('soil moisture classes '!$C$16='GEST 2.0'!$V$2,'GEST 2.0'!Z52,IF('soil moisture classes '!$C$16='GEST 2.0'!$AB$2,'GEST 2.0'!AF52,IF('soil moisture classes '!$C$16='GEST 2.0'!$AH$2,'GEST 2.0'!AL52,IF('soil moisture classes '!$C$16='GEST 2.0'!$AN$2,'GEST 2.0'!AR52,IF('soil moisture classes '!$C$16='GEST 2.0'!$AT$2,'GEST 2.0'!AX52,"")))))) -> 18 | AA75: =IF('soil moisture classes '!$C$16='GEST 2.0'!$P$2,'GEST 2.0'!U52,IF('soil moisture classes '!$C$16='GEST 2.0'!$V$2,'GEST 2.0'!AA52,IF('soil moisture classes '!$C$16='GEST 2.0'!$AB$2,'GEST 2.0'!AG52,IF('soil moisture classes '!$C$16='GEST 2.0'!$AH$2,'GEST 2.0'!AM52,IF('soil moisture classes '!$C$16='GEST 2.0'!$AN$2,'GEST 2.0'!AS52,IF('soil moisture classes '!$C$16='GEST 2.0'!$AT$2,'GEST 2.0'!AY52,"")))))) -> 44.5
A76: : | B76: U16 | C76: Wet bog heath | N76: 6 | P76: =IF('soil moisture classes '!$C$15='GEST 2.0'!$P$2,'GEST 2.0'!P53,IF('soil moisture classes '!$C$15='GEST 2.0'!$V$2,'GEST 2.0'!V53,IF('soil moisture classes '!$C$15='GEST 2.0'!$AB$2,'GEST 2.0'!AB53,IF('soil moisture classes '!$C$15='GEST 2.0'!$AH$2,'GEST 2.0'!AH53,IF('soil moisture classes '!$C$15='GEST 2.0'!$AN$2,'GEST 2.0'!AN53,IF('soil moisture classes '!$C$15='GEST 2.0'!$AT$2,'GEST 2.0'!AT53,"")))))) -> S9: Ditches in low intensity grassland | Q76: =IF('soil moisture classes '!$C$15='GEST 2.0'!$P$2,'GEST 2.0'!Q53,IF('soil moisture classes '!$C$15='GEST 2.0'!$V$2,'GEST 2.0'!W53,IF('soil moisture classes '!$C$15='GEST 2.0'!$AB$2,'GEST 2.0'!AC53,IF('soil moisture classes '!$C$15='GEST 2.0'!$AH$2,'GEST 2.0'!AI53,IF('soil moisture classes '!$C$15='GEST 2.0'!$AN$2,'GEST 2.0'!AO53,IF('soil moisture classes '!$C$15='GEST 2.0'!$AT$2,'GEST 2.0'!AU53,"")))))) -> 3.17 | R76: =IF('soil moisture classes '!$C$15='GEST 2.0'!$P$2,'GEST 2.0'!R53,IF('soil moisture classes '!$C$15='GEST 2.0'!$V$2,'GEST 2.0'!X53,IF('soil moisture classes '!$C$15='GEST 2.0'!$AB$2,'GEST 2.0'!AD53,IF('soil moisture classes '!$C$15='GEST 2.0'!$AH$2,'GEST 2.0'!AJ53,IF('soil moisture classes '!$C$15='GEST 2.0'!$AN$2,'GEST 2.0'!AP53,IF('soil moisture classes '!$C$15='GEST 2.0'!$AT$2,'GEST 2.0'!AV53,"")))))) -> 3 | S76: =IF('soil moisture classes '!$C$15='GEST 2.0'!$P$2,'GEST 2.0'!S53,IF('soil moisture classes '!$C$15='GEST 2.0'!$V$2,'GEST 2.0'!Y53,IF('soil moisture classes '!$C$15='GEST 2.0'!$AB$2,'GEST 2.0'!AE53,IF('soil moisture classes '!$C$15='GEST 2.0'!$AH$2,'GEST 2.0'!AK53,IF('soil moisture classes '!$C$15='GEST 2.0'!$AN$2,'GEST 2.0'!AQ53,IF('soil moisture classes '!$C$15='GEST 2.0'!$AT$2,'GEST 2.0'!AW53,"")))))) -> +/- 0 | T76: =IF('soil moisture classes '!$C$15='GEST 2.0'!$P$2,'GEST 2.0'!T53,IF('soil moisture classes '!$C$15='GEST 2.0'!$V$2,'GEST 2.0'!Z53,IF('soil moisture classes '!$C$15='GEST 2.0'!$AB$2,'GEST 2.0'!AF53,IF('soil moisture classes '!$C$15='GEST 2.0'!$AH$2,'GEST 2.0'!AL53,IF('soil moisture classes '!$C$15='GEST 2.0'!$AN$2,'GEST 2.0'!AR53,IF('soil moisture classes '!$C$15='GEST 2.0'!$AT$2,'GEST 2.0'!AX53,"")))))) -> - | U76: =IF('soil moisture classes '!$C$15='GEST 2.0'!$P$2,'GEST 2.0'!U53,IF('soil moisture classes '!$C$15='GEST 2.0'!$V$2,'GEST 2.0'!AA53,IF('soil moisture classes '!$C$15='GEST 2.0'!$AB$2,'GEST 2.0'!AG53,IF('soil moisture classes '!$C$15='GEST 2.0'!$AH$2,'GEST 2.0'!AM53,IF('soil moisture classes '!$C$15='GEST 2.0'!$AN$2,'GEST 2.0'!AS53,IF('soil moisture classes '!$C$15='GEST 2.0'!$AT$2,'GEST 2.0'!AY53,"")))))) -> 3 | V76: =IF('soil moisture classes '!$C$16='GEST 2.0'!$P$2,'GEST 2.0'!P53,IF('soil moisture classes '!$C$16='GEST 2.0'!$V$2,'GEST 2.0'!V53,IF('soil moisture classes '!$C$16='GEST 2.0'!$AB$2,'GEST 2.0'!AB53,IF('soil moisture classes '!$C$16='GEST 2.0'!$AH$2,'GEST 2.0'!AH53,IF('soil moisture classes '!$C$16='GEST 2.0'!$AN$2,'GEST 2.0'!AN53,IF('soil moisture classes '!$C$16='GEST 2.0'!$AT$2,'GEST 2.0'!AT53,"")))))) -> S9: Ditches in low intensity grassland | W76: =IF('soil moisture classes '!$C$16='GEST 2.0'!$P$2,'GEST 2.0'!Q53,IF('soil moisture classes '!$C$16='GEST 2.0'!$V$2,'GEST 2.0'!W53,IF('soil moisture classes '!$C$16='GEST 2.0'!$AB$2,'GEST 2.0'!AC53,IF('soil moisture classes '!$C$16='GEST 2.0'!$AH$2,'GEST 2.0'!AI53,IF('soil moisture classes '!$C$16='GEST 2.0'!$AN$2,'GEST 2.0'!AO53,IF('soil moisture classes '!$C$16='GEST 2.0'!$AT$2,'GEST 2.0'!AU53,"")))))) -> 3.17 | X76: =IF('soil moisture classes '!$C$16='GEST 2.0'!$P$2,'GEST 2.0'!R53,IF('soil moisture classes '!$C$16='GEST 2.0'!$V$2,'GEST 2.0'!X53,IF('soil moisture classes '!$C$16='GEST 2.0'!$AB$2,'GEST 2.0'!AD53,IF('soil moisture classes '!$C$16='GEST 2.0'!$AH$2,'GEST 2.0'!AJ53,IF('soil moisture classes '!$C$16='GEST 2.0'!$AN$2,'GEST 2.0'!AP53,IF('soil moisture classes '!$C$16='GEST 2.0'!$AT$2,'GEST 2.0'!AV53,"")))))) -> 3 | Y76: =IF('soil moisture classes '!$C$16='GEST 2.0'!$P$2,'GEST 2.0'!S53,IF('soil moisture classes '!$C$16='GEST 2.0'!$V$2,'GEST 2.0'!Y53,IF('soil moisture classes '!$C$16='GEST 2.0'!$AB$2,'GEST 2.0'!AE53,IF('soil moisture classes '!$C$16='GEST 2.0'!$AH$2,'GEST 2.0'!AK53,IF('soil moisture classes '!$C$16='GEST 2.0'!$AN$2,'GEST 2.0'!AQ53,IF('soil moisture classes '!$C$16='GEST 2.0'!$AT$2,'GEST 2.0'!AW53,"")))))) -> +/- 0 | Z76: =IF('soil moisture classes '!$C$16='GEST 2.0'!$P$2,'GEST 2.0'!T53,IF('soil moisture classes '!$C$16='GEST 2.0'!$V$2,'GEST 2.0'!Z53,IF('soil moisture classes '!$C$16='GEST 2.0'!$AB$2,'GEST 2.0'!AF53,IF('soil moisture classes '!$C$16='GEST 2.0'!$AH$2,'GEST 2.0'!AL53,IF('soil moisture classes '!$C$16='GEST 2.0'!$AN$2,'GEST 2.0'!AR53,IF('soil moisture classes '!$C$16='GEST 2.0'!$AT$2,'GEST 2.0'!AX53,"")))))) -> - | AA76: =IF('soil moisture classes '!$C$16='GEST 2.0'!$P$2,'GEST 2.0'!U53,IF('soil moisture classes '!$C$16='GEST 2.0'!$V$2,'GEST 2.0'!AA53,IF('soil moisture classes '!$C$16='GEST 2.0'!$AB$2,'GEST 2.0'!AG53,IF('soil moisture classes '!$C$16='GEST 2.0'!$AH$2,'GEST 2.0'!AM53,IF('soil moisture classes '!$C$16='GEST 2.0'!$AN$2,'GEST 2.0'!AS53,IF('soil moisture classes '!$C$16='GEST 2.0'!$AT$2,'GEST 2.0'!AY53,"")))))) -> 3
A77: : | B77: U17 | C77: Very wet tall sedges and Typha | N77: 7 | P77: =IF('soil moisture classes '!$C$15='GEST 2.0'!$P$2,'GEST 2.0'!P54,IF('soil moisture classes '!$C$15='GEST 2.0'!$V$2,'GEST 2.0'!V54,IF('soil moisture classes '!$C$15='GEST 2.0'!$AB$2,'GEST 2.0'!AB54,IF('soil moisture classes '!$C$15='GEST 2.0'!$AH$2,'GEST 2.0'!AH54,IF('soil moisture classes '!$C$15='GEST 2.0'!$AN$2,'GEST 2.0'!AN54,IF('soil moisture classes '!$C$15='GEST 2.0'!$AT$2,'GEST 2.0'!AT54,"")))))) -> . | Q77: =IF('soil moisture classes '!$C$15='GEST 2.0'!$P$2,'GEST 2.0'!Q54,IF('soil moisture classes '!$C$15='GEST 2.0'!$V$2,'GEST 2.0'!W54,IF('soil moisture classes '!$C$15='GEST 2.0'!$AB$2,'GEST 2.0'!AC54,IF('soil moisture classes '!$C$15='GEST 2.0'!$AH$2,'GEST 2.0'!AI54,IF('soil moisture classes '!$C$15='GEST 2.0'!$AN$2,'GEST 2.0'!AO54,IF('soil moisture classes '!$C$15='GEST 2.0'!$AT$2,'GEST 2.0'!AU54,"")))))) -> . | R77: =IF('soil moisture classes '!$C$15='GEST 2.0'!$P$2,'GEST 2.0'!R54,IF('soil moisture classes '!$C$15='GEST 2.0'!$V$2,'GEST 2.0'!X54,IF('soil moisture classes '!$C$15='GEST 2.0'!$AB$2,'GEST 2.0'!AD54,IF('soil moisture classes '!$C$15='GEST 2.0'!$AH$2,'GEST 2.0'!AJ54,IF('soil moisture classes '!$C$15='GEST 2.0'!$AN$2,'GEST 2.0'!AP54,IF('soil moisture classes '!$C$15='GEST 2.0'!$AT$2,'GEST 2.0'!AV54,"")))))) -> . | S77: =IF('soil moisture classes '!$C$15='GEST 2.0'!$P$2,'GEST 2.0'!S54,IF('soil moisture classes '!$C$15='GEST 2.0'!$V$2,'GEST 2.0'!Y54,IF('soil moisture classes '!$C$15='GEST 2.0'!$AB$2,'GEST 2.0'!AE54,IF('soil moisture classes '!$C$15='GEST 2.0'!$AH$2,'GEST 2.0'!AK54,IF('soil moisture classes '!$C$15='GEST 2.0'!$AN$2,'GEST 2.0'!AQ54,IF('soil moisture classes '!$C$15='GEST 2.0'!$AT$2,'GEST 2.0'!AW54,"")))))) -> . | T77: =IF('soil moisture classes '!$C$15='GEST 2.0'!$P$2,'GEST 2.0'!T54,IF('soil moisture classes '!$C$15='GEST 2.0'!$V$2,'GEST 2.0'!Z54,IF('soil moisture classes '!$C$15='GEST 2.0'!$AB$2,'GEST 2.0'!AF54,IF('soil moisture classes '!$C$15='GEST 2.0'!$AH$2,'GEST 2.0'!AL54,IF('soil moisture classes '!$C$15='GEST 2.0'!$AN$2,'GEST 2.0'!AR54,IF('soil moisture classes '!$C$15='GEST 2.0'!$AT$2,'GEST 2.0'!AX54,"")))))) -> . | U77: =IF('soil moisture classes '!$C$15='GEST 2.0'!$P$2,'GEST 2.0'!U54,IF('soil moisture classes '!$C$15='GEST 2.0'!$V$2,'GEST 2.0'!AA54,IF('soil moisture classes '!$C$15='GEST 2.0'!$AB$2,'GEST 2.0'!AG54,IF('soil moisture classes '!$C$15='GEST 2.0'!$AH$2,'GEST 2.0'!AM54,IF('soil moisture classes '!$C$15='GEST 2.0'!$AN$2,'GEST 2.0'!AS54,IF('soil moisture classes '!$C$15='GEST 2.0'!$AT$2,'GEST 2.0'!AY54,"")))))) -> . | V77: =IF('soil moisture classes '!$C$16='GEST 2.0'!$P$2,'GEST 2.0'!P54,IF('soil moisture classes '!$C$16='GEST 2.0'!$V$2,'GEST 2.0'!V54,IF('soil moisture classes '!$C$16='GEST 2.0'!$AB$2,'GEST 2.0'!AB54,IF('soil moisture classes '!$C$16='GEST 2.0'!$AH$2,'GEST 2.0'!AH54,IF('soil moisture classes '!$C$16='GEST 2.0'!$AN$2,'GEST 2.0'!AN54,IF('soil moisture classes '!$C$16='GEST 2.0'!$AT$2,'GEST 2.0'!AT54,"")))))) -> . | W77: =IF('soil moisture classes '!$C$16='GEST 2.0'!$P$2,'GEST 2.0'!Q54,IF('soil moisture classes '!$C$16='GEST 2.0'!$V$2,'GEST 2.0'!W54,IF('soil moisture classes '!$C$16='GEST 2.0'!$AB$2,'GEST 2.0'!AC54,IF('soil moisture classes '!$C$16='GEST 2.0'!$AH$2,'GEST 2.0'!AI54,IF('soil moisture classes '!$C$16='GEST 2.0'!$AN$2,'GEST 2.0'!AO54,IF('soil moisture classes '!$C$16='GEST 2.0'!$AT$2,'GEST 2.0'!AU54,"")))))) -> . | X77: =IF('soil moisture classes '!$C$16='GEST 2.0'!$P$2,'GEST 2.0'!R54,IF('soil moisture classes '!$C$16='GEST 2.0'!$V$2,'GEST 2.0'!X54,IF('soil moisture classes '!$C$16='GEST 2.0'!$AB$2,'GEST 2.0'!AD54,IF('soil moisture classes '!$C$16='GEST 2.0'!$AH$2,'GEST 2.0'!AJ54,IF('soil moisture classes '!$C$16='GEST 2.0'!$AN$2,'GEST 2.0'!AP54,IF('soil moisture classes '!$C$16='GEST 2.0'!$AT$2,'GEST 2.0'!AV54,"")))))) -> . | Y77: =IF('soil moisture classes '!$C$16='GEST 2.0'!$P$2,'GEST 2.0'!S54,IF('soil moisture classes '!$C$16='GEST 2.0'!$V$2,'GEST 2.0'!Y54,IF('soil moisture classes '!$C$16='GEST 2.0'!$AB$2,'GEST 2.0'!AE54,IF('soil moisture classes '!$C$16='GEST 2.0'!$AH$2,'GEST 2.0'!AK54,IF('soil moisture classes '!$C$16='GEST 2.0'!$AN$2,'GEST 2.0'!AQ54,IF('soil moisture classes '!$C$16='GEST 2.0'!$AT$2,'GEST 2.0'!AW54,"")))))) -> . | Z77: =IF('soil moisture classes '!$C$16='GEST 2.0'!$P$2,'GEST 2.0'!T54,IF('soil moisture classes '!$C$16='GEST 2.0'!$V$2,'GEST 2.0'!Z54,IF('soil moisture classes '!$C$16='GEST 2.0'!$AB$2,'GEST 2.0'!AF54,IF('soil moisture classes '!$C$16='GEST 2.0'!$AH$2,'GEST 2.0'!AL54,IF('soil moisture classes '!$C$16='GEST 2.0'!$AN$2,'GEST 2.0'!AR54,IF('soil moisture classes '!$C$16='GEST 2.0'!$AT$2,'GEST 2.0'!AX54,"")))))) -> . | AA77: =IF('soil moisture classes '!$C$16='GEST 2.0'!$P$2,'GEST 2.0'!U54,IF('soil moisture classes '!$C$16='GEST 2.0'!$V$2,'GEST 2.0'!AA54,IF('soil moisture classes '!$C$16='GEST 2.0'!$AB$2,'GEST 2.0'!AG54,IF('soil moisture classes '!$C$16='GEST 2.0'!$AH$2,'GEST 2.0'!AM54,IF('soil moisture classes '!$C$16='GEST 2.0'!$AN$2,'GEST 2.0'!AS54,IF('soil moisture classes '!$C$16='GEST 2.0'!$AT$2,'GEST 2.0'!AY54,"")))))) -> .
A78: : | B78: U18 | C78: Very wet Phragmites reeds | N78: 8 | P78: =IF('soil moisture classes '!$C$15='GEST 2.0'!$P$2,'GEST 2.0'!P55,IF('soil moisture classes '!$C$15='GEST 2.0'!$V$2,'GEST 2.0'!V55,IF('soil moisture classes '!$C$15='GEST 2.0'!$AB$2,'GEST 2.0'!AB55,IF('soil moisture classes '!$C$15='GEST 2.0'!$AH$2,'GEST 2.0'!AH55,IF('soil moisture classes '!$C$15='GEST 2.0'!$AN$2,'GEST 2.0'!AN55,IF('soil moisture classes '!$C$15='GEST 2.0'!$AT$2,'GEST 2.0'!AT55,"")))))) -> . | Q78: =IF('soil moisture classes '!$C$15='GEST 2.0'!$P$2,'GEST 2.0'!Q55,IF('soil moisture classes '!$C$15='GEST 2.0'!$V$2,'GEST 2.0'!W55,IF('soil moisture classes '!$C$15='GEST 2.0'!$AB$2,'GEST 2.0'!AC55,IF('soil moisture classes '!$C$15='GEST 2.0'!$AH$2,'GEST 2.0'!AI55,IF('soil moisture classes '!$C$15='GEST 2.0'!$AN$2,'GEST 2.0'!AO55,IF('soil moisture classes '!$C$15='GEST 2.0'!$AT$2,'GEST 2.0'!AU55,"")))))) -> . | R78: =IF('soil moisture classes '!$C$15='GEST 2.0'!$P$2,'GEST 2.0'!R55,IF('soil moisture classes '!$C$15='GEST 2.0'!$V$2,'GEST 2.0'!X55,IF('soil moisture classes '!$C$15='GEST 2.0'!$AB$2,'GEST 2.0'!AD55,IF('soil moisture classes '!$C$15='GEST 2.0'!$AH$2,'GEST 2.0'!AJ55,IF('soil moisture classes '!$C$15='GEST 2.0'!$AN$2,'GEST 2.0'!AP55,IF('soil moisture classes '!$C$15='GEST 2.0'!$AT$2,'GEST 2.0'!AV55,"")))))) -> . | S78: =IF('soil moisture classes '!$C$15='GEST 2.0'!$P$2,'GEST 2.0'!S55,IF('soil moisture classes '!$C$15='GEST 2.0'!$V$2,'GEST 2.0'!Y55,IF('soil moisture classes '!$C$15='GEST 2.0'!$AB$2,'GEST 2.0'!AE55,IF('soil moisture classes '!$C$15='GEST 2.0'!$AH$2,'GEST 2.0'!AK55,IF('soil moisture classes '!$C$15='GEST 2.0'!$AN$2,'GEST 2.0'!AQ55,IF('soil moisture classes '!$C$15='GEST 2.0'!$AT$2,'GEST 2.0'!AW55,"")))))) -> . | T78: =IF('soil moisture classes '!$C$15='GEST 2.0'!$P$2,'GEST 2.0'!T55,IF('soil moisture classes '!$C$15='GEST 2.0'!$V$2,'GEST 2.0'!Z55,IF('soil moisture classes '!$C$15='GEST 2.0'!$AB$2,'GEST 2.0'!AF55,IF('soil moisture classes '!$C$15='GEST 2.0'!$AH$2,'GEST 2.0'!AL55,IF('soil moisture classes '!$C$15='GEST 2.0'!$AN$2,'GEST 2.0'!AR55,IF('soil moisture classes '!$C$15='GEST 2.0'!$AT$2,'GEST 2.0'!AX55,"")))))) -> . | U78: =IF('soil moisture classes '!$C$15='GEST 2.0'!$P$2,'GEST 2.0'!U55,IF('soil moisture classes '!$C$15='GEST 2.0'!$V$2,'GEST 2.0'!AA55,IF('soil moisture classes '!$C$15='GEST 2.0'!$AB$2,'GEST 2.0'!AG55,IF('soil moisture classes '!$C$15='GEST 2.0'!$AH$2,'GEST 2.0'!AM55,IF('soil moisture classes '!$C$15='GEST 2.0'!$AN$2,'GEST 2.0'!AS55,IF('soil moisture classes '!$C$15='GEST 2.0'!$AT$2,'GEST 2.0'!AY55,"")))))) -> . | V78: =IF('soil moisture classes '!$C$16='GEST 2.0'!$P$2,'GEST 2.0'!P55,IF('soil moisture classes '!$C$16='GEST 2.0'!$V$2,'GEST 2.0'!V55,IF('soil moisture classes '!$C$16='GEST 2.0'!$AB$2,'GEST 2.0'!AB55,IF('soil moisture classes '!$C$16='GEST 2.0'!$AH$2,'GEST 2.0'!AH55,IF('soil moisture classes '!$C$16='GEST 2.0'!$AN$2,'GEST 2.0'!AN55,IF('soil moisture classes '!$C$16='GEST 2.0'!$AT$2,'GEST 2.0'!AT55,"")))))) -> . | W78: =IF('soil moisture classes '!$C$16='GEST 2.0'!$P$2,'GEST 2.0'!Q55,IF('soil moisture classes '!$C$16='GEST 2.0'!$V$2,'GEST 2.0'!W55,IF('soil moisture classes '!$C$16='GEST 2.0'!$AB$2,'GEST 2.0'!AC55,IF('soil moisture classes '!$C$16='GEST 2.0'!$AH$2,'GEST 2.0'!AI55,IF('soil moisture classes '!$C$16='GEST 2.0'!$AN$2,'GEST 2.0'!AO55,IF('soil moisture classes '!$C$16='GEST 2.0'!$AT$2,'GEST 2.0'!AU55,"")))))) -> . | X78: =IF('soil moisture classes '!$C$16='GEST 2.0'!$P$2,'GEST 2.0'!R55,IF('soil moisture classes '!$C$16='GEST 2.0'!$V$2,'GEST 2.0'!X55,IF('soil moisture classes '!$C$16='GEST 2.0'!$AB$2,'GEST 2.0'!AD55,IF('soil moisture classes '!$C$16='GEST 2.0'!$AH$2,'GEST 2.0'!AJ55,IF('soil moisture classes '!$C$16='GEST 2.0'!$AN$2,'GEST 2.0'!AP55,IF('soil moisture classes '!$C$16='GEST 2.0'!$AT$2,'GEST 2.0'!AV55,"")))))) -> . | Y78: =IF('soil moisture classes '!$C$16='GEST 2.0'!$P$2,'GEST 2.0'!S55,IF('soil moisture classes '!$C$16='GEST 2.0'!$V$2,'GEST 2.0'!Y55,IF('soil moisture classes '!$C$16='GEST 2.0'!$AB$2,'GEST 2.0'!AE55,IF('soil moisture classes '!$C$16='GEST 2.0'!$AH$2,'GEST 2.0'!AK55,IF('soil moisture classes '!$C$16='GEST 2.0'!$AN$2,'GEST 2.0'!AQ55,IF('soil moisture classes '!$C$16='GEST 2.0'!$AT$2,'GEST 2.0'!AW55,"")))))) -> . | Z78: =IF('soil moisture classes '!$C$16='GEST 2.0'!$P$2,'GEST 2.0'!T55,IF('soil moisture classes '!$C$16='GEST 2.0'!$V$2,'GEST 2.0'!Z55,IF('soil moisture classes '!$C$16='GEST 2.0'!$AB$2,'GEST 2.0'!AF55,IF('soil moisture classes '!$C$16='GEST 2.0'!$AH$2,'GEST 2.0'!AL55,IF('soil moisture classes '!$C$16='GEST 2.0'!$AN$2,'GEST 2.0'!AR55,IF('soil moisture classes '!$C$16='GEST 2.0'!$AT$2,'GEST 2.0'!AX55,"")))))) -> . | AA78: =IF('soil moisture classes '!$C$16='GEST 2.0'!$P$2,'GEST 2.0'!U55,IF('soil moisture classes '!$C$16='GEST 2.0'!$V$2,'GEST 2.0'!AA55,IF('soil moisture classes '!$C$16='GEST 2.0'!$AB$2,'GEST 2.0'!AG55,IF('soil moisture classes '!$C$16='GEST 2.0'!$AH$2,'GEST 2.0'!AM55,IF('soil moisture classes '!$C$16='GEST 2.0'!$AN$2,'GEST 2.0'!AS55,IF('soil moisture classes '!$C$16='GEST 2.0'!$AT$2,'GEST 2.0'!AY55,"")))))) -> .
A79: : | B79: U19 | C79: Wet to very wet Sphagnum hollows | N79: 9 | P79: =IF('soil moisture classes '!$C$15='GEST 2.0'!$P$2,'GEST 2.0'!P56,IF('soil moisture classes '!$C$15='GEST 2.0'!$V$2,'GEST 2.0'!V56,IF('soil moisture classes '!$C$15='GEST 2.0'!$AB$2,'GEST 2.0'!AB56,IF('soil moisture classes '!$C$15='GEST 2.0'!$AH$2,'GEST 2.0'!AH56,IF('soil moisture classes '!$C$15='GEST 2.0'!$AN$2,'GEST 2.0'!AN56,IF('soil moisture classes '!$C$15='GEST 2.0'!$AT$2,'GEST 2.0'!AT56,"")))))) -> . | Q79: =IF('soil moisture classes '!$C$15='GEST 2.0'!$P$2,'GEST 2.0'!Q56,IF('soil moisture classes '!$C$15='GEST 2.0'!$V$2,'GEST 2.0'!W56,IF('soil moisture classes '!$C$15='GEST 2.0'!$AB$2,'GEST 2.0'!AC56,IF('soil moisture classes '!$C$15='GEST 2.0'!$AH$2,'GEST 2.0'!AI56,IF('soil moisture classes '!$C$15='GEST 2.0'!$AN$2,'GEST 2.0'!AO56,IF('soil moisture classes '!$C$15='GEST 2.0'!$AT$2,'GEST 2.0'!AU56,"")))))) -> . | R79: =IF('soil moisture classes '!$C$15='GEST 2.0'!$P$2,'GEST 2.0'!R56,IF('soil moisture classes '!$C$15='GEST 2.0'!$V$2,'GEST 2.0'!X56,IF('soil moisture classes '!$C$15='GEST 2.0'!$AB$2,'GEST 2.0'!AD56,IF('soil moisture classes '!$C$15='GEST 2.0'!$AH$2,'GEST 2.0'!AJ56,IF('soil moisture classes '!$C$15='GEST 2.0'!$AN$2,'GEST 2.0'!AP56,IF('soil moisture classes '!$C$15='GEST 2.0'!$AT$2,'GEST 2.0'!AV56,"")))))) -> . | S79: =IF('soil moisture classes '!$C$15='GEST 2.0'!$P$2,'GEST 2.0'!S56,IF('soil moisture classes '!$C$15='GEST 2.0'!$V$2,'GEST 2.0'!Y56,IF('soil moisture classes '!$C$15='GEST 2.0'!$AB$2,'GEST 2.0'!AE56,IF('soil moisture classes '!$C$15='GEST 2.0'!$AH$2,'GEST 2.0'!AK56,IF('soil moisture classes '!$C$15='GEST 2.0'!$AN$2,'GEST 2.0'!AQ56,IF('soil moisture classes '!$C$15='GEST 2.0'!$AT$2,'GEST 2.0'!AW56,"")))))) -> . | T79: =IF('soil moisture classes '!$C$15='GEST 2.0'!$P$2,'GEST 2.0'!T56,IF('soil moisture classes '!$C$15='GEST 2.0'!$V$2,'GEST 2.0'!Z56,IF('soil moisture classes '!$C$15='GEST 2.0'!$AB$2,'GEST 2.0'!AF56,IF('soil moisture classes '!$C$15='GEST 2.0'!$AH$2,'GEST 2.0'!AL56,IF('soil moisture classes '!$C$15='GEST 2.0'!$AN$2,'GEST 2.0'!AR56,IF('soil moisture classes '!$C$15='GEST 2.0'!$AT$2,'GEST 2.0'!AX56,"")))))) -> . | U79: =IF('soil moisture classes '!$C$15='GEST 2.0'!$P$2,'GEST 2.0'!U56,IF('soil moisture classes '!$C$15='GEST 2.0'!$V$2,'GEST 2.0'!AA56,IF('soil moisture classes '!$C$15='GEST 2.0'!$AB$2,'GEST 2.0'!AG56,IF('soil moisture classes '!$C$15='GEST 2.0'!$AH$2,'GEST 2.0'!AM56,IF('soil moisture classes '!$C$15='GEST 2.0'!$AN$2,'GEST 2.0'!AS56,IF('soil moisture classes '!$C$15='GEST 2.0'!$AT$2,'GEST 2.0'!AY56,"")))))) -> . | V79: =IF('soil moisture classes '!$C$16='GEST 2.0'!$P$2,'GEST 2.0'!P56,IF('soil moisture classes '!$C$16='GEST 2.0'!$V$2,'GEST 2.0'!V56,IF('soil moisture classes '!$C$16='GEST 2.0'!$AB$2,'GEST 2.0'!AB56,IF('soil moisture classes '!$C$16='GEST 2.0'!$AH$2,'GEST 2.0'!AH56,IF('soil moisture classes '!$C$16='GEST 2.0'!$AN$2,'GEST 2.0'!AN56,IF('soil moisture classes '!$C$16='GEST 2.0'!$AT$2,'GEST 2.0'!AT56,"")))))) -> . | W79: =IF('soil moisture classes '!$C$16='GEST 2.0'!$P$2,'GEST 2.0'!Q56,IF('soil moisture classes '!$C$16='GEST 2.0'!$V$2,'GEST 2.0'!W56,IF('soil moisture classes '!$C$16='GEST 2.0'!$AB$2,'GEST 2.0'!AC56,IF('soil moisture classes '!$C$16='GEST 2.0'!$AH$2,'GEST 2.0'!AI56,IF('soil moisture classes '!$C$16='GEST 2.0'!$AN$2,'GEST 2.0'!AO56,IF('soil moisture classes '!$C$16='GEST 2.0'!$AT$2,'GEST 2.0'!AU56,"")))))) -> . | X79: =IF('soil moisture classes '!$C$16='GEST 2.0'!$P$2,'GEST 2.0'!R56,IF('soil moisture classes '!$C$16='GEST 2.0'!$V$2,'GEST 2.0'!X56,IF('soil moisture classes '!$C$16='GEST 2.0'!$AB$2,'GEST 2.0'!AD56,IF('soil moisture classes '!$C$16='GEST 2.0'!$AH$2,'GEST 2.0'!AJ56,IF('soil moisture classes '!$C$16='GEST 2.0'!$AN$2,'GEST 2.0'!AP56,IF('soil moisture classes '!$C$16='GEST 2.0'!$AT$2,'GEST 2.0'!AV56,"")))))) -> . | Y79: =IF('soil moisture classes '!$C$16='GEST 2.0'!$P$2,'GEST 2.0'!S56,IF('soil moisture classes '!$C$16='GEST 2.0'!$V$2,'GEST 2.0'!Y56,IF('soil moisture classes '!$C$16='GEST 2.0'!$AB$2,'GEST 2.0'!AE56,IF('soil moisture classes '!$C$16='GEST 2.0'!$AH$2,'GEST 2.0'!AK56,IF('soil moisture classes '!$C$16='GEST 2.0'!$AN$2,'GEST 2.0'!AQ56,IF('soil moisture classes '!$C$16='GEST 2.0'!$AT$2,'GEST 2.0'!AW56,"")))))) -> . | Z79: =IF('soil moisture classes '!$C$16='GEST 2.0'!$P$2,'GEST 2.0'!T56,IF('soil moisture classes '!$C$16='GEST 2.0'!$V$2,'GEST 2.0'!Z56,IF('soil moisture classes '!$C$16='GEST 2.0'!$AB$2,'GEST 2.0'!AF56,IF('soil moisture classes '!$C$16='GEST 2.0'!$AH$2,'GEST 2.0'!AL56,IF('soil moisture classes '!$C$16='GEST 2.0'!$AN$2,'GEST 2.0'!AR56,IF('soil moisture classes '!$C$16='GEST 2.0'!$AT$2,'GEST 2.0'!AX56,"")))))) -> . | AA79: =IF('soil moisture classes '!$C$16='GEST 2.0'!$P$2,'GEST 2.0'!U56,IF('soil moisture classes '!$C$16='GEST 2.0'!$V$2,'GEST 2.0'!AA56,IF('soil moisture classes '!$C$16='GEST 2.0'!$AB$2,'GEST 2.0'!AG56,IF('soil moisture classes '!$C$16='GEST 2.0'!$AH$2,'GEST 2.0'!AM56,IF('soil moisture classes '!$C$16='GEST 2.0'!$AN$2,'GEST 2.0'!AS56,IF('soil moisture classes '!$C$16='GEST 2.0'!$AT$2,'GEST 2.0'!AY56,"")))))) -> .
A80: : | B80: U20 | C80: Flooded tall reeds (> 20 cm above surface) | N80: 10 | P80: =IF('soil moisture classes '!$C$15='GEST 2.0'!$P$2,'GEST 2.0'!P57,IF('soil moisture classes '!$C$15='GEST 2.0'!$V$2,'GEST 2.0'!V57,IF('soil moisture classes '!$C$15='GEST 2.0'!$AB$2,'GEST 2.0'!AB57,IF('soil moisture classes '!$C$15='GEST 2.0'!$AH$2,'GEST 2.0'!AH57,IF('soil moisture classes '!$C$15='GEST 2.0'!$AN$2,'GEST 2.0'!AN57,IF('soil moisture classes '!$C$15='GEST 2.0'!$AT$2,'GEST 2.0'!AT57,"")))))) -> . | Q80: =IF('soil moisture classes '!$C$15='GEST 2.0'!$P$2,'GEST 2.0'!Q57,IF('soil moisture classes '!$C$15='GEST 2.0'!$V$2,'GEST 2.0'!W57,IF('soil moisture classes '!$C$15='GEST 2.0'!$AB$2,'GEST 2.0'!AC57,IF('soil moisture classes '!$C$15='GEST 2.0'!$AH$2,'GEST 2.0'!AI57,IF('soil moisture classes '!$C$15='GEST 2.0'!$AN$2,'GEST 2.0'!AO57,IF('soil moisture classes '!$C$15='GEST 2.0'!$AT$2,'GEST 2.0'!AU57,"")))))) -> . | R80: =IF('soil moisture classes '!$C$15='GEST 2.0'!$P$2,'GEST 2.0'!R57,IF('soil moisture classes '!$C$15='GEST 2.0'!$V$2,'GEST 2.0'!X57,IF('soil moisture classes '!$C$15='GEST 2.0'!$AB$2,'GEST 2.0'!AD57,IF('soil moisture classes '!$C$15='GEST 2.0'!$AH$2,'GEST 2.0'!AJ57,IF('soil moisture classes '!$C$15='GEST 2.0'!$AN$2,'GEST 2.0'!AP57,IF('soil moisture classes '!$C$15='GEST 2.0'!$AT$2,'GEST 2.0'!AV57,"")))))) -> . | S80: =IF('soil moisture classes '!$C$15='GEST 2.0'!$P$2,'GEST 2.0'!S57,IF('soil moisture classes '!$C$15='GEST 2.0'!$V$2,'GEST 2.0'!Y57,IF('soil moisture classes '!$C$15='GEST 2.0'!$AB$2,'GEST 2.0'!AE57,IF('soil moisture classes '!$C$15='GEST 2.0'!$AH$2,'GEST 2.0'!AK57,IF('soil moisture classes '!$C$15='GEST 2.0'!$AN$2,'GEST 2.0'!AQ57,IF('soil moisture classes '!$C$15='GEST 2.0'!$AT$2,'GEST 2.0'!AW57,"")))))) -> . | T80: =IF('soil moisture classes '!$C$15='GEST 2.0'!$P$2,'GEST 2.0'!T57,IF('soil moisture classes '!$C$15='GEST 2.0'!$V$2,'GEST 2.0'!Z57,IF('soil moisture classes '!$C$15='GEST 2.0'!$AB$2,'GEST 2.0'!AF57,IF('soil moisture classes '!$C$15='GEST 2.0'!$AH$2,'GEST 2.0'!AL57,IF('soil moisture classes '!$C$15='GEST 2.0'!$AN$2,'GEST 2.0'!AR57,IF('soil moisture classes '!$C$15='GEST 2.0'!$AT$2,'GEST 2.0'!AX57,"")))))) -> . | U80: =IF('soil moisture classes '!$C$15='GEST 2.0'!$P$2,'GEST 2.0'!U57,IF('soil moisture classes '!$C$15='GEST 2.0'!$V$2,'GEST 2.0'!AA57,IF('soil moisture classes '!$C$15='GEST 2.0'!$AB$2,'GEST 2.0'!AG57,IF('soil moisture classes '!$C$15='GEST 2.0'!$AH$2,'GEST 2.0'!AM57,IF('soil moisture classes '!$C$15='GEST 2.0'!$AN$2,'GEST 2.0'!AS57,IF('soil moisture classes '!$C$15='GEST 2.0'!$AT$2,'GEST 2.0'!AY57,"")))))) -> . | V80: =IF('soil moisture classes '!$C$16='GEST 2.0'!$P$2,'GEST 2.0'!P57,IF('soil moisture classes '!$C$16='GEST 2.0'!$V$2,'GEST 2.0'!V57,IF('soil moisture classes '!$C$16='GEST 2.0'!$AB$2,'GEST 2.0'!AB57,IF('soil moisture classes '!$C$16='GEST 2.0'!$AH$2,'GEST 2.0'!AH57,IF('soil moisture classes '!$C$16='GEST 2.0'!$AN$2,'GEST 2.0'!AN57,IF('soil moisture classes '!$C$16='GEST 2.0'!$AT$2,'GEST 2.0'!AT57,"")))))) -> . | W80: =IF('soil moisture classes '!$C$16='GEST 2.0'!$P$2,'GEST 2.0'!Q57,IF('soil moisture classes '!$C$16='GEST 2.0'!$V$2,'GEST 2.0'!W57,IF('soil moisture classes '!$C$16='GEST 2.0'!$AB$2,'GEST 2.0'!AC57,IF('soil moisture classes '!$C$16='GEST 2.0'!$AH$2,'GEST 2.0'!AI57,IF('soil moisture classes '!$C$16='GEST 2.0'!$AN$2,'GEST 2.0'!AO57,IF('soil moisture classes '!$C$16='GEST 2.0'!$AT$2,'GEST 2.0'!AU57,"")))))) -> . | X80: =IF('soil moisture classes '!$C$16='GEST 2.0'!$P$2,'GEST 2.0'!R57,IF('soil moisture classes '!$C$16='GEST 2.0'!$V$2,'GEST 2.0'!X57,IF('soil moisture classes '!$C$16='GEST 2.0'!$AB$2,'GEST 2.0'!AD57,IF('soil moisture classes '!$C$16='GEST 2.0'!$AH$2,'GEST 2.0'!AJ57,IF('soil moisture classes '!$C$16='GEST 2.0'!$AN$2,'GEST 2.0'!AP57,IF('soil moisture classes '!$C$16='GEST 2.0'!$AT$2,'GEST 2.0'!AV57,"")))))) -> . | Y80: =IF('soil moisture classes '!$C$16='GEST 2.0'!$P$2,'GEST 2.0'!S57,IF('soil moisture classes '!$C$16='GEST 2.0'!$V$2,'GEST 2.0'!Y57,IF('soil moisture classes '!$C$16='GEST 2.0'!$AB$2,'GEST 2.0'!AE57,IF('soil moisture classes '!$C$16='GEST 2.0'!$AH$2,'GEST 2.0'!AK57,IF('soil moisture classes '!$C$16='GEST 2.0'!$AN$2,'GEST 2.0'!AQ57,IF('soil moisture classes '!$C$16='GEST 2.0'!$AT$2,'GEST 2.0'!AW57,"")))))) -> . | Z80: =IF('soil moisture classes '!$C$16='GEST 2.0'!$P$2,'GEST 2.0'!T57,IF('soil moisture classes '!$C$16='GEST 2.0'!$V$2,'GEST 2.0'!Z57,IF('soil moisture classes '!$C$16='GEST 2.0'!$AB$2,'GEST 2.0'!AF57,IF('soil moisture classes '!$C$16='GEST 2.0'!$AH$2,'GEST 2.0'!AL57,IF('soil moisture classes '!$C$16='GEST 2.0'!$AN$2,'GEST 2.0'!AR57,IF('soil moisture classes '!$C$16='GEST 2.0'!$AT$2,'GEST 2.0'!AX57,"")))))) -> . | AA80: =IF('soil moisture classes '!$C$16='GEST 2.0'!$P$2,'GEST 2.0'!U57,IF('soil moisture classes '!$C$16='GEST 2.0'!$V$2,'GEST 2.0'!AA57,IF('soil moisture classes '!$C$16='GEST 2.0'!$AB$2,'GEST 2.0'!AG57,IF('soil moisture classes '!$C$16='GEST 2.0'!$AH$2,'GEST 2.0'!AM57,IF('soil moisture classes '!$C$16='GEST 2.0'!$AN$2,'GEST 2.0'!AS57,IF('soil moisture classes '!$C$16='GEST 2.0'!$AT$2,'GEST 2.0'!AY57,"")))))) -> .
A81: : | B81: S1 | C81: Dry to moderately moist grassland on peaty soils (Anmoor) | N81: 11 | P81: =IF('soil moisture classes '!$C$15='GEST 2.0'!$P$2,'GEST 2.0'!P58,IF('soil moisture classes '!$C$15='GEST 2.0'!$V$2,'GEST 2.0'!V58,IF('soil moisture classes '!$C$15='GEST 2.0'!$AB$2,'GEST 2.0'!AB58,IF('soil moisture classes '!$C$15='GEST 2.0'!$AH$2,'GEST 2.0'!AH58,IF('soil moisture classes '!$C$15='GEST 2.0'!$AN$2,'GEST 2.0'!AN58,IF('soil moisture classes '!$C$15='GEST 2.0'!$AT$2,'GEST 2.0'!AT58,"")))))) -> . | Q81: =IF('soil moisture classes '!$C$15='GEST 2.0'!$P$2,'GEST 2.0'!Q58,IF('soil moisture classes '!$C$15='GEST 2.0'!$V$2,'GEST 2.0'!W58,IF('soil moisture classes '!$C$15='GEST 2.0'!$AB$2,'GEST 2.0'!AC58,IF('soil moisture classes '!$C$15='GEST 2.0'!$AH$2,'GEST 2.0'!AI58,IF('soil moisture classes '!$C$15='GEST 2.0'!$AN$2,'GEST 2.0'!AO58,IF('soil moisture classes '!$C$15='GEST 2.0'!$AT$2,'GEST 2.0'!AU58,"")))))) -> . | R81: =IF('soil moisture classes '!$C$15='GEST 2.0'!$P$2,'GEST 2.0'!R58,IF('soil moisture classes '!$C$15='GEST 2.0'!$V$2,'GEST 2.0'!X58,IF('soil moisture classes '!$C$15='GEST 2.0'!$AB$2,'GEST 2.0'!AD58,IF('soil moisture classes '!$C$15='GEST 2.0'!$AH$2,'GEST 2.0'!AJ58,IF('soil moisture classes '!$C$15='GEST 2.0'!$AN$2,'GEST 2.0'!AP58,IF('soil moisture classes '!$C$15='GEST 2.0'!$AT$2,'GEST 2.0'!AV58,"")))))) -> . | S81: =IF('soil moisture classes '!$C$15='GEST 2.0'!$P$2,'GEST 2.0'!S58,IF('soil moisture classes '!$C$15='GEST 2.0'!$V$2,'GEST 2.0'!Y58,IF('soil moisture classes '!$C$15='GEST 2.0'!$AB$2,'GEST 2.0'!AE58,IF('soil moisture classes '!$C$15='GEST 2.0'!$AH$2,'GEST 2.0'!AK58,IF('soil moisture classes '!$C$15='GEST 2.0'!$AN$2,'GEST 2.0'!AQ58,IF('soil moisture classes '!$C$15='GEST 2.0'!$AT$2,'GEST 2.0'!AW58,"")))))) -> . | T81: =IF('soil moisture classes '!$C$15='GEST 2.0'!$P$2,'GEST 2.0'!T58,IF('soil moisture classes '!$C$15='GEST 2.0'!$V$2,'GEST 2.0'!Z58,IF('soil moisture classes '!$C$15='GEST 2.0'!$AB$2,'GEST 2.0'!AF58,IF('soil moisture classes '!$C$15='GEST 2.0'!$AH$2,'GEST 2.0'!AL58,IF('soil moisture classes '!$C$15='GEST 2.0'!$AN$2,'GEST 2.0'!AR58,IF('soil moisture classes '!$C$15='GEST 2.0'!$AT$2,'GEST 2.0'!AX58,"")))))) -> . | U81: =IF('soil moisture classes '!$C$15='GEST 2.0'!$P$2,'GEST 2.0'!U58,IF('soil moisture classes '!$C$15='GEST 2.0'!$V$2,'GEST 2.0'!AA58,IF('soil moisture classes '!$C$15='GEST 2.0'!$AB$2,'GEST 2.0'!AG58,IF('soil moisture classes '!$C$15='GEST 2.0'!$AH$2,'GEST 2.0'!AM58,IF('soil moisture classes '!$C$15='GEST 2.0'!$AN$2,'GEST 2.0'!AS58,IF('soil moisture classes '!$C$15='GEST 2.0'!$AT$2,'GEST 2.0'!AY58,"")))))) -> . | V81: =IF('soil moisture classes '!$C$16='GEST 2.0'!$P$2,'GEST 2.0'!P58,IF('soil moisture classes '!$C$16='GEST 2.0'!$V$2,'GEST 2.0'!V58,IF('soil moisture classes '!$C$16='GEST 2.0'!$AB$2,'GEST 2.0'!AB58,IF('soil moisture classes '!$C$16='GEST 2.0'!$AH$2,'GEST 2.0'!AH58,IF('soil moisture classes '!$C$16='GEST 2.0'!$AN$2,'GEST 2.0'!AN58,IF('soil moisture classes '!$C$16='GEST 2.0'!$AT$2,'GEST 2.0'!AT58,"")))))) -> . | W81: =IF('soil moisture classes '!$C$16='GEST 2.0'!$P$2,'GEST 2.0'!Q58,IF('soil moisture classes '!$C$16='GEST 2.0'!$V$2,'GEST 2.0'!W58,IF('soil moisture classes '!$C$16='GEST 2.0'!$AB$2,'GEST 2.0'!AC58,IF('soil moisture classes '!$C$16='GEST 2.0'!$AH$2,'GEST 2.0'!AI58,IF('soil moisture classes '!$C$16='GEST 2.0'!$AN$2,'GEST 2.0'!AO58,IF('soil moisture classes '!$C$16='GEST 2.0'!$AT$2,'GEST 2.0'!AU58,"")))))) -> . | X81: =IF('soil moisture classes '!$C$16='GEST 2.0'!$P$2,'GEST 2.0'!R58,IF('soil moisture classes '!$C$16='GEST 2.0'!$V$2,'GEST 2.0'!X58,IF('soil moisture classes '!$C$16='GEST 2.0'!$AB$2,'GEST 2.0'!AD58,IF('soil moisture classes '!$C$16='GEST 2.0'!$AH$2,'GEST 2.0'!AJ58,IF('soil moisture classes '!$C$16='GEST 2.0'!$AN$2,'GEST 2.0'!AP58,IF('soil moisture classes '!$C$16='GEST 2.0'!$AT$2,'GEST 2.0'!AV58,"")))))) -> . | Y81: =IF('soil moisture classes '!$C$16='GEST 2.0'!$P$2,'GEST 2.0'!S58,IF('soil moisture classes '!$C$16='GEST 2.0'!$V$2,'GEST 2.0'!Y58,IF('soil moisture classes '!$C$16='GEST 2.0'!$AB$2,'GEST 2.0'!AE58,IF('soil moisture classes '!$C$16='GEST 2.0'!$AH$2,'GEST 2.0'!AK58,IF('soil moisture classes '!$C$16='GEST 2.0'!$AN$2,'GEST 2.0'!AQ58,IF('soil moisture classes '!$C$16='GEST 2.0'!$AT$2,'GEST 2.0'!AW58,"")))))) -> . | Z81: =IF('soil moisture classes '!$C$16='GEST 2.0'!$P$2,'GEST 2.0'!T58,IF('soil moisture classes '!$C$16='GEST 2.0'!$V$2,'GEST 2.0'!Z58,IF('soil moisture classes '!$C$16='GEST 2.0'!$AB$2,'GEST 2.0'!AF58,IF('soil moisture classes '!$C$16='GEST 2.0'!$AH$2,'GEST 2.0'!AL58,IF('soil moisture classes '!$C$16='GEST 2.0'!$AN$2,'GEST 2.0'!AR58,IF('soil moisture classes '!$C$16='GEST 2.0'!$AT$2,'GEST 2.0'!AX58,"")))))) -> . | AA81: =IF('soil moisture classes '!$C$16='GEST 2.0'!$P$2,'GEST 2.0'!U58,IF('soil moisture classes '!$C$16='GEST 2.0'!$V$2,'GEST 2.0'!AA58,IF('soil moisture classes '!$C$16='GEST 2.0'!$AB$2,'GEST 2.0'!AG58,IF('soil moisture classes '!$C$16='GEST 2.0'!$AH$2,'GEST 2.0'!AM58,IF('soil moisture classes '!$C$16='GEST 2.0'!$AN$2,'GEST 2.0'!AS58,IF('soil moisture classes '!$C$16='GEST 2.0'!$AT$2,'GEST 2.0'!AY58,"")))))) -> .
A82: : | B82: S2 | C82: Dry to moderately moist arable land on peaty soils(Anmoor) | N82: 12 | P82: =IF('soil moisture classes '!$C$15='GEST 2.0'!$P$2,'GEST 2.0'!P59,IF('soil moisture classes '!$C$15='GEST 2.0'!$V$2,'GEST 2.0'!V59,IF('soil moisture classes '!$C$15='GEST 2.0'!$AB$2,'GEST 2.0'!AB59,IF('soil moisture classes '!$C$15='GEST 2.0'!$AH$2,'GEST 2.0'!AH59,IF('soil moisture classes '!$C$15='GEST 2.0'!$AN$2,'GEST 2.0'!AN59,IF('soil moisture classes '!$C$15='GEST 2.0'!$AT$2,'GEST 2.0'!AT59,"")))))) -> . | Q82: =IF('soil moisture classes '!$C$15='GEST 2.0'!$P$2,'GEST 2.0'!Q59,IF('soil moisture classes '!$C$15='GEST 2.0'!$V$2,'GEST 2.0'!W59,IF('soil moisture classes '!$C$15='GEST 2.0'!$AB$2,'GEST 2.0'!AC59,IF('soil moisture classes '!$C$15='GEST 2.0'!$AH$2,'GEST 2.0'!AI59,IF('soil moisture classes '!$C$15='GEST 2.0'!$AN$2,'GEST 2.0'!AO59,IF('soil moisture classes '!$C$15='GEST 2.0'!$AT$2,'GEST 2.0'!AU59,"")))))) -> . | R82: =IF('soil moisture classes '!$C$15='GEST 2.0'!$P$2,'GEST 2.0'!R59,IF('soil moisture classes '!$C$15='GEST 2.0'!$V$2,'GEST 2.0'!X59,IF('soil moisture classes '!$C$15='GEST 2.0'!$AB$2,'GEST 2.0'!AD59,IF('soil moisture classes '!$C$15='GEST 2.0'!$AH$2,'GEST 2.0'!AJ59,IF('soil moisture classes '!$C$15='GEST 2.0'!$AN$2,'GEST 2.0'!AP59,IF('soil moisture classes '!$C$15='GEST 2.0'!$AT$2,'GEST 2.0'!AV59,"")))))) -> . | S82: =IF('soil moisture classes '!$C$15='GEST 2.0'!$P$2,'GEST 2.0'!S59,IF('soil moisture classes '!$C$15='GEST 2.0'!$V$2,'GEST 2.0'!Y59,IF('soil moisture classes '!$C$15='GEST 2.0'!$AB$2,'GEST 2.0'!AE59,IF('soil moisture classes '!$C$15='GEST 2.0'!$AH$2,'GEST 2.0'!AK59,IF('soil moisture classes '!$C$15='GEST 2.0'!$AN$2,'GEST 2.0'!AQ59,IF('soil moisture classes '!$C$15='GEST 2.0'!$AT$2,'GEST 2.0'!AW59,"")))))) -> . | T82: =IF('soil moisture classes '!$C$15='GEST 2.0'!$P$2,'GEST 2.0'!T59,IF('soil moisture classes '!$C$15='GEST 2.0'!$V$2,'GEST 2.0'!Z59,IF('soil moisture classes '!$C$15='GEST 2.0'!$AB$2,'GEST 2.0'!AF59,IF('soil moisture classes '!$C$15='GEST 2.0'!$AH$2,'GEST 2.0'!AL59,IF('soil moisture classes '!$C$15='GEST 2.0'!$AN$2,'GEST 2.0'!AR59,IF('soil moisture classes '!$C$15='GEST 2.0'!$AT$2,'GEST 2.0'!AX59,"")))))) -> . | U82: =IF('soil moisture classes '!$C$15='GEST 2.0'!$P$2,'GEST 2.0'!U59,IF('soil moisture classes '!$C$15='GEST 2.0'!$V$2,'GEST 2.0'!AA59,IF('soil moisture classes '!$C$15='GEST 2.0'!$AB$2,'GEST 2.0'!AG59,IF('soil moisture classes '!$C$15='GEST 2.0'!$AH$2,'GEST 2.0'!AM59,IF('soil moisture classes '!$C$15='GEST 2.0'!$AN$2,'GEST 2.0'!AS59,IF('soil moisture classes '!$C$15='GEST 2.0'!$AT$2,'GEST 2.0'!AY59,"")))))) -> . | V82: =IF('soil moisture classes '!$C$16='GEST 2.0'!$P$2,'GEST 2.0'!P59,IF('soil moisture classes '!$C$16='GEST 2.0'!$V$2,'GEST 2.0'!V59,IF('soil moisture classes '!$C$16='GEST 2.0'!$AB$2,'GEST 2.0'!AB59,IF('soil moisture classes '!$C$16='GEST 2.0'!$AH$2,'GEST 2.0'!AH59,IF('soil moisture classes '!$C$16='GEST 2.0'!$AN$2,'GEST 2.0'!AN59,IF('soil moisture classes '!$C$16='GEST 2.0'!$AT$2,'GEST 2.0'!AT59,"")))))) -> . | W82: =IF('soil moisture classes '!$C$16='GEST 2.0'!$P$2,'GEST 2.0'!Q59,IF('soil moisture classes '!$C$16='GEST 2.0'!$V$2,'GEST 2.0'!W59,IF('soil moisture classes '!$C$16='GEST 2.0'!$AB$2,'GEST 2.0'!AC59,IF('soil moisture classes '!$C$16='GEST 2.0'!$AH$2,'GEST 2.0'!AI59,IF('soil moisture classes '!$C$16='GEST 2.0'!$AN$2,'GEST 2.0'!AO59,IF('soil moisture classes '!$C$16='GEST 2.0'!$AT$2,'GEST 2.0'!AU59,"")))))) -> . | X82: =IF('soil moisture classes '!$C$16='GEST 2.0'!$P$2,'GEST 2.0'!R59,IF('soil moisture classes '!$C$16='GEST 2.0'!$V$2,'GEST 2.0'!X59,IF('soil moisture classes '!$C$16='GEST 2.0'!$AB$2,'GEST 2.0'!AD59,IF('soil moisture classes '!$C$16='GEST 2.0'!$AH$2,'GEST 2.0'!AJ59,IF('soil moisture classes '!$C$16='GEST 2.0'!$AN$2,'GEST 2.0'!AP59,IF('soil moisture classes '!$C$16='GEST 2.0'!$AT$2,'GEST 2.0'!AV59,"")))))) -> . | Y82: =IF('soil moisture classes '!$C$16='GEST 2.0'!$P$2,'GEST 2.0'!S59,IF('soil moisture classes '!$C$16='GEST 2.0'!$V$2,'GEST 2.0'!Y59,IF('soil moisture classes '!$C$16='GEST 2.0'!$AB$2,'GEST 2.0'!AE59,IF('soil moisture classes '!$C$16='GEST 2.0'!$AH$2,'GEST 2.0'!AK59,IF('soil moisture classes '!$C$16='GEST 2.0'!$AN$2,'GEST 2.0'!AQ59,IF('soil moisture classes '!$C$16='GEST 2.0'!$AT$2,'GEST 2.0'!AW59,"")))))) -> . | Z82: =IF('soil moisture classes '!$C$16='GEST 2.0'!$P$2,'GEST 2.0'!T59,IF('soil moisture classes '!$C$16='GEST 2.0'!$V$2,'GEST 2.0'!Z59,IF('soil moisture classes '!$C$16='GEST 2.0'!$AB$2,'GEST 2.0'!AF59,IF('soil moisture classes '!$C$16='GEST 2.0'!$AH$2,'GEST 2.0'!AL59,IF('soil moisture classes '!$C$16='GEST 2.0'!$AN$2,'GEST 2.0'!AR59,IF('soil moisture classes '!$C$16='GEST 2.0'!$AT$2,'GEST 2.0'!AX59,"")))))) -> . | AA82: =IF('soil moisture classes '!$C$16='GEST 2.0'!$P$2,'GEST 2.0'!U59,IF('soil moisture classes '!$C$16='GEST 2.0'!$V$2,'GEST 2.0'!AA59,IF('soil moisture classes '!$C$16='GEST 2.0'!$AB$2,'GEST 2.0'!AG59,IF('soil moisture classes '!$C$16='GEST 2.0'!$AH$2,'GEST 2.0'!AM59,IF('soil moisture classes '!$C$16='GEST 2.0'!$AN$2,'GEST 2.0'!AS59,IF('soil moisture classes '!$C$16='GEST 2.0'!$AT$2,'GEST 2.0'!AY59,"")))))) -> .
A83: : | B83: S3 | C83: Cropland (2+) flooded in summer (wet year) | N83: 13 | P83: =IF('soil moisture classes '!$C$15='GEST 2.0'!$P$2,'GEST 2.0'!P60,IF('soil moisture classes '!$C$15='GEST 2.0'!$V$2,'GEST 2.0'!V60,IF('soil moisture classes '!$C$15='GEST 2.0'!$AB$2,'GEST 2.0'!AB60,IF('soil moisture classes '!$C$15='GEST 2.0'!$AH$2,'GEST 2.0'!AH60,IF('soil moisture classes '!$C$15='GEST 2.0'!$AN$2,'GEST 2.0'!AN60,IF('soil moisture classes '!$C$15='GEST 2.0'!$AT$2,'GEST 2.0'!AT60,"")))))) -> . | Q83: =IF('soil moisture classes '!$C$15='GEST 2.0'!$P$2,'GEST 2.0'!Q60,IF('soil moisture classes '!$C$15='GEST 2.0'!$V$2,'GEST 2.0'!W60,IF('soil moisture classes '!$C$15='GEST 2.0'!$AB$2,'GEST 2.0'!AC60,IF('soil moisture classes '!$C$15='GEST 2.0'!$AH$2,'GEST 2.0'!AI60,IF('soil moisture classes '!$C$15='GEST 2.0'!$AN$2,'GEST 2.0'!AO60,IF('soil moisture classes '!$C$15='GEST 2.0'!$AT$2,'GEST 2.0'!AU60,"")))))) -> . | R83: =IF('soil moisture classes '!$C$15='GEST 2.0'!$P$2,'GEST 2.0'!R60,IF('soil moisture classes '!$C$15='GEST 2.0'!$V$2,'GEST 2.0'!X60,IF('soil moisture classes '!$C$15='GEST 2.0'!$AB$2,'GEST 2.0'!AD60,IF('soil moisture classes '!$C$15='GEST 2.0'!$AH$2,'GEST 2.0'!AJ60,IF('soil moisture classes '!$C$15='GEST 2.0'!$AN$2,'GEST 2.0'!AP60,IF('soil moisture classes '!$C$15='GEST 2.0'!$AT$2,'GEST 2.0'!AV60,"")))))) -> . | S83: =IF('soil moisture classes '!$C$15='GEST 2.0'!$P$2,'GEST 2.0'!S60,IF('soil moisture classes '!$C$15='GEST 2.0'!$V$2,'GEST 2.0'!Y60,IF('soil moisture classes '!$C$15='GEST 2.0'!$AB$2,'GEST 2.0'!AE60,IF('soil moisture classes '!$C$15='GEST 2.0'!$AH$2,'GEST 2.0'!AK60,IF('soil moisture classes '!$C$15='GEST 2.0'!$AN$2,'GEST 2.0'!AQ60,IF('soil moisture classes '!$C$15='GEST 2.0'!$AT$2,'GEST 2.0'!AW60,"")))))) -> . | T83: =IF('soil moisture classes '!$C$15='GEST 2.0'!$P$2,'GEST 2.0'!T60,IF('soil moisture classes '!$C$15='GEST 2.0'!$V$2,'GEST 2.0'!Z60,IF('soil moisture classes '!$C$15='GEST 2.0'!$AB$2,'GEST 2.0'!AF60,IF('soil moisture classes '!$C$15='GEST 2.0'!$AH$2,'GEST 2.0'!AL60,IF('soil moisture classes '!$C$15='GEST 2.0'!$AN$2,'GEST 2.0'!AR60,IF('soil moisture classes '!$C$15='GEST 2.0'!$AT$2,'GEST 2.0'!AX60,"")))))) -> . | U83: =IF('soil moisture classes '!$C$15='GEST 2.0'!$P$2,'GEST 2.0'!U60,IF('soil moisture classes '!$C$15='GEST 2.0'!$V$2,'GEST 2.0'!AA60,IF('soil moisture classes '!$C$15='GEST 2.0'!$AB$2,'GEST 2.0'!AG60,IF('soil moisture classes '!$C$15='GEST 2.0'!$AH$2,'GEST 2.0'!AM60,IF('soil moisture classes '!$C$15='GEST 2.0'!$AN$2,'GEST 2.0'!AS60,IF('soil moisture classes '!$C$15='GEST 2.0'!$AT$2,'GEST 2.0'!AY60,"")))))) -> . | V83: =IF('soil moisture classes '!$C$16='GEST 2.0'!$P$2,'GEST 2.0'!P60,IF('soil moisture classes '!$C$16='GEST 2.0'!$V$2,'GEST 2.0'!V60,IF('soil moisture classes '!$C$16='GEST 2.0'!$AB$2,'GEST 2.0'!AB60,IF('soil moisture classes '!$C$16='GEST 2.0'!$AH$2,'GEST 2.0'!AH60,IF('soil moisture classes '!$C$16='GEST 2.0'!$AN$2,'GEST 2.0'!AN60,IF('soil moisture classes '!$C$16='GEST 2.0'!$AT$2,'GEST 2.0'!AT60,"")))))) -> . | W83: =IF('soil moisture classes '!$C$16='GEST 2.0'!$P$2,'GEST 2.0'!Q60,IF('soil moisture classes '!$C$16='GEST 2.0'!$V$2,'GEST 2.0'!W60,IF('soil moisture classes '!$C$16='GEST 2.0'!$AB$2,'GEST 2.0'!AC60,IF('soil moisture classes '!$C$16='GEST 2.0'!$AH$2,'GEST 2.0'!AI60,IF('soil moisture classes '!$C$16='GEST 2.0'!$AN$2,'GEST 2.0'!AO60,IF('soil moisture classes '!$C$16='GEST 2.0'!$AT$2,'GEST 2.0'!AU60,"")))))) -> . | X83: =IF('soil moisture classes '!$C$16='GEST 2.0'!$P$2,'GEST 2.0'!R60,IF('soil moisture classes '!$C$16='GEST 2.0'!$V$2,'GEST 2.0'!X60,IF('soil moisture classes '!$C$16='GEST 2.0'!$AB$2,'GEST 2.0'!AD60,IF('soil moisture classes '!$C$16='GEST 2.0'!$AH$2,'GEST 2.0'!AJ60,IF('soil moisture classes '!$C$16='GEST 2.0'!$AN$2,'GEST 2.0'!AP60,IF('soil moisture classes '!$C$16='GEST 2.0'!$AT$2,'GEST 2.0'!AV60,"")))))) -> . | Y83: =IF('soil moisture classes '!$C$16='GEST 2.0'!$P$2,'GEST 2.0'!S60,IF('soil moisture classes '!$C$16='GEST 2.0'!$V$2,'GEST 2.0'!Y60,IF('soil moisture classes '!$C$16='GEST 2.0'!$AB$2,'GEST 2.0'!AE60,IF('soil moisture classes '!$C$16='GEST 2.0'!$AH$2,'GEST 2.0'!AK60,IF('soil moisture classes '!$C$16='GEST 2.0'!$AN$2,'GEST 2.0'!AQ60,IF('soil moisture classes '!$C$16='GEST 2.0'!$AT$2,'GEST 2.0'!AW60,"")))))) -> . | Z83: =IF('soil moisture classes '!$C$16='GEST 2.0'!$P$2,'GEST 2.0'!T60,IF('soil moisture classes '!$C$16='GEST 2.0'!$V$2,'GEST 2.0'!Z60,IF('soil moisture classes '!$C$16='GEST 2.0'!$AB$2,'GEST 2.0'!AF60,IF('soil moisture classes '!$C$16='GEST 2.0'!$AH$2,'GEST 2.0'!AL60,IF('soil moisture classes '!$C$16='GEST 2.0'!$AN$2,'GEST 2.0'!AR60,IF('soil moisture classes '!$C$16='GEST 2.0'!$AT$2,'GEST 2.0'!AX60,"")))))) -> . | AA83: =IF('soil moisture classes '!$C$16='GEST 2.0'!$P$2,'GEST 2.0'!U60,IF('soil moisture classes '!$C$16='GEST 2.0'!$V$2,'GEST 2.0'!AA60,IF('soil moisture classes '!$C$16='GEST 2.0'!$AB$2,'GEST 2.0'!AG60,IF('soil moisture classes '!$C$16='GEST 2.0'!$AH$2,'GEST 2.0'!AM60,IF('soil moisture classes '!$C$16='GEST 2.0'!$AN$2,'GEST 2.0'!AS60,IF('soil moisture classes '!$C$16='GEST 2.0'!$AT$2,'GEST 2.0'!AY60,"")))))) -> .
A84: : | B84: S4 | C84: Grassland (2+/3+) flooded in summer (wet year) | N84: 14 | P84: =IF('soil moisture classes '!$C$15='GEST 2.0'!$P$2,'GEST 2.0'!P61,IF('soil moisture classes '!$C$15='GEST 2.0'!$V$2,'GEST 2.0'!V61,IF('soil moisture classes '!$C$15='GEST 2.0'!$AB$2,'GEST 2.0'!AB61,IF('soil moisture classes '!$C$15='GEST 2.0'!$AH$2,'GEST 2.0'!AH61,IF('soil moisture classes '!$C$15='GEST 2.0'!$AN$2,'GEST 2.0'!AN61,IF('soil moisture classes '!$C$15='GEST 2.0'!$AT$2,'GEST 2.0'!AT61,"")))))) -> . | Q84: =IF('soil moisture classes '!$C$15='GEST 2.0'!$P$2,'GEST 2.0'!Q61,IF('soil moisture classes '!$C$15='GEST 2.0'!$V$2,'GEST 2.0'!W61,IF('soil moisture classes '!$C$15='GEST 2.0'!$AB$2,'GEST 2.0'!AC61,IF('soil moisture classes '!$C$15='GEST 2.0'!$AH$2,'GEST 2.0'!AI61,IF('soil moisture classes '!$C$15='GEST 2.0'!$AN$2,'GEST 2.0'!AO61,IF('soil moisture classes '!$C$15='GEST 2.0'!$AT$2,'GEST 2.0'!AU61,"")))))) -> . | R84: =IF('soil moisture classes '!$C$15='GEST 2.0'!$P$2,'GEST 2.0'!R61,IF('soil moisture classes '!$C$15='GEST 2.0'!$V$2,'GEST 2.0'!X61,IF('soil moisture classes '!$C$15='GEST 2.0'!$AB$2,'GEST 2.0'!AD61,IF('soil moisture classes '!$C$15='GEST 2.0'!$AH$2,'GEST 2.0'!AJ61,IF('soil moisture classes '!$C$15='GEST 2.0'!$AN$2,'GEST 2.0'!AP61,IF('soil moisture classes '!$C$15='GEST 2.0'!$AT$2,'GEST 2.0'!AV61,"")))))) -> . | S84: =IF('soil moisture classes '!$C$15='GEST 2.0'!$P$2,'GEST 2.0'!S61,IF('soil moisture classes '!$C$15='GEST 2.0'!$V$2,'GEST 2.0'!Y61,IF('soil moisture classes '!$C$15='GEST 2.0'!$AB$2,'GEST 2.0'!AE61,IF('soil moisture classes '!$C$15='GEST 2.0'!$AH$2,'GEST 2.0'!AK61,IF('soil moisture classes '!$C$15='GEST 2.0'!$AN$2,'GEST 2.0'!AQ61,IF('soil moisture classes '!$C$15='GEST 2.0'!$AT$2,'GEST 2.0'!AW61,"")))))) -> . | T84: =IF('soil moisture classes '!$C$15='GEST 2.0'!$P$2,'GEST 2.0'!T61,IF('soil moisture classes '!$C$15='GEST 2.0'!$V$2,'GEST 2.0'!Z61,IF('soil moisture classes '!$C$15='GEST 2.0'!$AB$2,'GEST 2.0'!AF61,IF('soil moisture classes '!$C$15='GEST 2.0'!$AH$2,'GEST 2.0'!AL61,IF('soil moisture classes '!$C$15='GEST 2.0'!$AN$2,'GEST 2.0'!AR61,IF('soil moisture classes '!$C$15='GEST 2.0'!$AT$2,'GEST 2.0'!AX61,"")))))) -> . | U84: =IF('soil moisture classes '!$C$15='GEST 2.0'!$P$2,'GEST 2.0'!U61,IF('soil moisture classes '!$C$15='GEST 2.0'!$V$2,'GEST 2.0'!AA61,IF('soil moisture classes '!$C$15='GEST 2.0'!$AB$2,'GEST 2.0'!AG61,IF('soil moisture classes '!$C$15='GEST 2.0'!$AH$2,'GEST 2.0'!AM61,IF('soil moisture classes '!$C$15='GEST 2.0'!$AN$2,'GEST 2.0'!AS61,IF('soil moisture classes '!$C$15='GEST 2.0'!$AT$2,'GEST 2.0'!AY61,"")))))) -> . | V84: =IF('soil moisture classes '!$C$16='GEST 2.0'!$P$2,'GEST 2.0'!P61,IF('soil moisture classes '!$C$16='GEST 2.0'!$V$2,'GEST 2.0'!V61,IF('soil moisture classes '!$C$16='GEST 2.0'!$AB$2,'GEST 2.0'!AB61,IF('soil moisture classes '!$C$16='GEST 2.0'!$AH$2,'GEST 2.0'!AH61,IF('soil moisture classes '!$C$16='GEST 2.0'!$AN$2,'GEST 2.0'!AN61,IF('soil moisture classes '!$C$16='GEST 2.0'!$AT$2,'GEST 2.0'!AT61,"")))))) -> . | W84: =IF('soil moisture classes '!$C$16='GEST 2.0'!$P$2,'GEST 2.0'!Q61,IF('soil moisture classes '!$C$16='GEST 2.0'!$V$2,'GEST 2.0'!W61,IF('soil moisture classes '!$C$16='GEST 2.0'!$AB$2,'GEST 2.0'!AC61,IF('soil moisture classes '!$C$16='GEST 2.0'!$AH$2,'GEST 2.0'!AI61,IF('soil moisture classes '!$C$16='GEST 2.0'!$AN$2,'GEST 2.0'!AO61,IF('soil moisture classes '!$C$16='GEST 2.0'!$AT$2,'GEST 2.0'!AU61,"")))))) -> . | X84: =IF('soil moisture classes '!$C$16='GEST 2.0'!$P$2,'GEST 2.0'!R61,IF('soil moisture classes '!$C$16='GEST 2.0'!$V$2,'GEST 2.0'!X61,IF('soil moisture classes '!$C$16='GEST 2.0'!$AB$2,'GEST 2.0'!AD61,IF('soil moisture classes '!$C$16='GEST 2.0'!$AH$2,'GEST 2.0'!AJ61,IF('soil moisture classes '!$C$16='GEST 2.0'!$AN$2,'GEST 2.0'!AP61,IF('soil moisture classes '!$C$16='GEST 2.0'!$AT$2,'GEST 2.0'!AV61,"")))))) -> . | Y84: =IF('soil moisture classes '!$C$16='GEST 2.0'!$P$2,'GEST 2.0'!S61,IF('soil moisture classes '!$C$16='GEST 2.0'!$V$2,'GEST 2.0'!Y61,IF('soil moisture classes '!$C$16='GEST 2.0'!$AB$2,'GEST 2.0'!AE61,IF('soil moisture classes '!$C$16='GEST 2.0'!$AH$2,'GEST 2.0'!AK61,IF('soil moisture classes '!$C$16='GEST 2.0'!$AN$2,'GEST 2.0'!AQ61,IF('soil moisture classes '!$C$16='GEST 2.0'!$AT$2,'GEST 2.0'!AW61,"")))))) -> . | Z84: =IF('soil moisture classes '!$C$16='GEST 2.0'!$P$2,'GEST 2.0'!T61,IF('soil moisture classes '!$C$16='GEST 2.0'!$V$2,'GEST 2.0'!Z61,IF('soil moisture classes '!$C$16='GEST 2.0'!$AB$2,'GEST 2.0'!AF61,IF('soil moisture classes '!$C$16='GEST 2.0'!$AH$2,'GEST 2.0'!AL61,IF('soil moisture classes '!$C$16='GEST 2.0'!$AN$2,'GEST 2.0'!AR61,IF('soil moisture classes '!$C$16='GEST 2.0'!$AT$2,'GEST 2.0'!AX61,"")))))) -> . | AA84: =IF('soil moisture classes '!$C$16='GEST 2.0'!$P$2,'GEST 2.0'!U61,IF('soil moisture classes '!$C$16='GEST 2.0'!$V$2,'GEST 2.0'!AA61,IF('soil moisture classes '!$C$16='GEST 2.0'!$AB$2,'GEST 2.0'!AG61,IF('soil moisture classes '!$C$16='GEST 2.0'!$AH$2,'GEST 2.0'!AM61,IF('soil moisture classes '!$C$16='GEST 2.0'!$AN$2,'GEST 2.0'!AS61,IF('soil moisture classes '!$C$16='GEST 2.0'!$AT$2,'GEST 2.0'!AY61,"")))))) -> .
A85: : | B85: S5 | C85: Simulated harvest (Paludiculture) | N85: 15 | P85: =IF('soil moisture classes '!$C$15='GEST 2.0'!$P$2,'GEST 2.0'!P62,IF('soil moisture classes '!$C$15='GEST 2.0'!$V$2,'GEST 2.0'!V62,IF('soil moisture classes '!$C$15='GEST 2.0'!$AB$2,'GEST 2.0'!AB62,IF('soil moisture classes '!$C$15='GEST 2.0'!$AH$2,'GEST 2.0'!AH62,IF('soil moisture classes '!$C$15='GEST 2.0'!$AN$2,'GEST 2.0'!AN62,IF('soil moisture classes '!$C$15='GEST 2.0'!$AT$2,'GEST 2.0'!AT62,"")))))) -> . | Q85: =IF('soil moisture classes '!$C$15='GEST 2.0'!$P$2,'GEST 2.0'!Q62,IF('soil moisture classes '!$C$15='GEST 2.0'!$V$2,'GEST 2.0'!W62,IF('soil moisture classes '!$C$15='GEST 2.0'!$AB$2,'GEST 2.0'!AC62,IF('soil moisture classes '!$C$15='GEST 2.0'!$AH$2,'GEST 2.0'!AI62,IF('soil moisture classes '!$C$15='GEST 2.0'!$AN$2,'GEST 2.0'!AO62,IF('soil moisture classes '!$C$15='GEST 2.0'!$AT$2,'GEST 2.0'!AU62,"")))))) -> . | R85: =IF('soil moisture classes '!$C$15='GEST 2.0'!$P$2,'GEST 2.0'!R62,IF('soil moisture classes '!$C$15='GEST 2.0'!$V$2,'GEST 2.0'!X62,IF('soil moisture classes '!$C$15='GEST 2.0'!$AB$2,'GEST 2.0'!AD62,IF('soil moisture classes '!$C$15='GEST 2.0'!$AH$2,'GEST 2.0'!AJ62,IF('soil moisture classes '!$C$15='GEST 2.0'!$AN$2,'GEST 2.0'!AP62,IF('soil moisture classes '!$C$15='GEST 2.0'!$AT$2,'GEST 2.0'!AV62,"")))))) -> . | S85: =IF('soil moisture classes '!$C$15='GEST 2.0'!$P$2,'GEST 2.0'!S62,IF('soil moisture classes '!$C$15='GEST 2.0'!$V$2,'GEST 2.0'!Y62,IF('soil moisture classes '!$C$15='GEST 2.0'!$AB$2,'GEST 2.0'!AE62,IF('soil moisture classes '!$C$15='GEST 2.0'!$AH$2,'GEST 2.0'!AK62,IF('soil moisture classes '!$C$15='GEST 2.0'!$AN$2,'GEST 2.0'!AQ62,IF('soil moisture classes '!$C$15='GEST 2.0'!$AT$2,'GEST 2.0'!AW62,"")))))) -> . | T85: =IF('soil moisture classes '!$C$15='GEST 2.0'!$P$2,'GEST 2.0'!T62,IF('soil moisture classes '!$C$15='GEST 2.0'!$V$2,'GEST 2.0'!Z62,IF('soil moisture classes '!$C$15='GEST 2.0'!$AB$2,'GEST 2.0'!AF62,IF('soil moisture classes '!$C$15='GEST 2.0'!$AH$2,'GEST 2.0'!AL62,IF('soil moisture classes '!$C$15='GEST 2.0'!$AN$2,'GEST 2.0'!AR62,IF('soil moisture classes '!$C$15='GEST 2.0'!$AT$2,'GEST 2.0'!AX62,"")))))) -> . | U85: =IF('soil moisture classes '!$C$15='GEST 2.0'!$P$2,'GEST 2.0'!U62,IF('soil moisture classes '!$C$15='GEST 2.0'!$V$2,'GEST 2.0'!AA62,IF('soil moisture classes '!$C$15='GEST 2.0'!$AB$2,'GEST 2.0'!AG62,IF('soil moisture classes '!$C$15='GEST 2.0'!$AH$2,'GEST 2.0'!AM62,IF('soil moisture classes '!$C$15='GEST 2.0'!$AN$2,'GEST 2.0'!AS62,IF('soil moisture classes '!$C$15='GEST 2.0'!$AT$2,'GEST 2.0'!AY62,"")))))) -> . | V85: =IF('soil moisture classes '!$C$16='GEST 2.0'!$P$2,'GEST 2.0'!P62,IF('soil moisture classes '!$C$16='GEST 2.0'!$V$2,'GEST 2.0'!V62,IF('soil moisture classes '!$C$16='GEST 2.0'!$AB$2,'GEST 2.0'!AB62,IF('soil moisture classes '!$C$16='GEST 2.0'!$AH$2,'GEST 2.0'!AH62,IF('soil moisture classes '!$C$16='GEST 2.0'!$AN$2,'GEST 2.0'!AN62,IF('soil moisture classes '!$C$16='GEST 2.0'!$AT$2,'GEST 2.0'!AT62,"")))))) -> . | W85: =IF('soil moisture classes '!$C$16='GEST 2.0'!$P$2,'GEST 2.0'!Q62,IF('soil moisture classes '!$C$16='GEST 2.0'!$V$2,'GEST 2.0'!W62,IF('soil moisture classes '!$C$16='GEST 2.0'!$AB$2,'GEST 2.0'!AC62,IF('soil moisture classes '!$C$16='GEST 2.0'!$AH$2,'GEST 2.0'!AI62,IF('soil moisture classes '!$C$16='GEST 2.0'!$AN$2,'GEST 2.0'!AO62,IF('soil moisture classes '!$C$16='GEST 2.0'!$AT$2,'GEST 2.0'!AU62,"")))))) -> . | X85: =IF('soil moisture classes '!$C$16='GEST 2.0'!$P$2,'GEST 2.0'!R62,IF('soil moisture classes '!$C$16='GEST 2.0'!$V$2,'GEST 2.0'!X62,IF('soil moisture classes '!$C$16='GEST 2.0'!$AB$2,'GEST 2.0'!AD62,IF('soil moisture classes '!$C$16='GEST 2.0'!$AH$2,'GEST 2.0'!AJ62,IF('soil moisture classes '!$C$16='GEST 2.0'!$AN$2,'GEST 2.0'!AP62,IF('soil moisture classes '!$C$16='GEST 2.0'!$AT$2,'GEST 2.0'!AV62,"")))))) -> . | Y85: =IF('soil moisture classes '!$C$16='GEST 2.0'!$P$2,'GEST 2.0'!S62,IF('soil moisture classes '!$C$16='GEST 2.0'!$V$2,'GEST 2.0'!Y62,IF('soil moisture classes '!$C$16='GEST 2.0'!$AB$2,'GEST 2.0'!AE62,IF('soil moisture classes '!$C$16='GEST 2.0'!$AH$2,'GEST 2.0'!AK62,IF('soil moisture classes '!$C$16='GEST 2.0'!$AN$2,'GEST 2.0'!AQ62,IF('soil moisture classes '!$C$16='GEST 2.0'!$AT$2,'GEST 2.0'!AW62,"")))))) -> . | Z85: =IF('soil moisture classes '!$C$16='GEST 2.0'!$P$2,'GEST 2.0'!T62,IF('soil moisture classes '!$C$16='GEST 2.0'!$V$2,'GEST 2.0'!Z62,IF('soil moisture classes '!$C$16='GEST 2.0'!$AB$2,'GEST 2.0'!AF62,IF('soil moisture classes '!$C$16='GEST 2.0'!$AH$2,'GEST 2.0'!AL62,IF('soil moisture classes '!$C$16='GEST 2.0'!$AN$2,'GEST 2.0'!AR62,IF('soil moisture classes '!$C$16='GEST 2.0'!$AT$2,'GEST 2.0'!AX62,"")))))) -> . | AA85: =IF('soil moisture classes '!$C$16='GEST 2.0'!$P$2,'GEST 2.0'!U62,IF('soil moisture classes '!$C$16='GEST 2.0'!$V$2,'GEST 2.0'!AA62,IF('soil moisture classes '!$C$16='GEST 2.0'!$AB$2,'GEST 2.0'!AG62,IF('soil moisture classes '!$C$16='GEST 2.0'!$AH$2,'GEST 2.0'!AM62,IF('soil moisture classes '!$C$16='GEST 2.0'!$AN$2,'GEST 2.0'!AS62,IF('soil moisture classes '!$C$16='GEST 2.0'!$AT$2,'GEST 2.0'!AY62,"")))))) -> .
A86: : | B86: S6 | C86: Wet tall reeds (dry year) | N86: 16 | P86: =IF('soil moisture classes '!$C$15='GEST 2.0'!$P$2,'GEST 2.0'!P63,IF('soil moisture classes '!$C$15='GEST 2.0'!$V$2,'GEST 2.0'!V63,IF('soil moisture classes '!$C$15='GEST 2.0'!$AB$2,'GEST 2.0'!AB63,IF('soil moisture classes '!$C$15='GEST 2.0'!$AH$2,'GEST 2.0'!AH63,IF('soil moisture classes '!$C$15='GEST 2.0'!$AN$2,'GEST 2.0'!AN63,IF('soil moisture classes '!$C$15='GEST 2.0'!$AT$2,'GEST 2.0'!AT63,"")))))) -> . | Q86: =IF('soil moisture classes '!$C$15='GEST 2.0'!$P$2,'GEST 2.0'!Q63,IF('soil moisture classes '!$C$15='GEST 2.0'!$V$2,'GEST 2.0'!W63,IF('soil moisture classes '!$C$15='GEST 2.0'!$AB$2,'GEST 2.0'!AC63,IF('soil moisture classes '!$C$15='GEST 2.0'!$AH$2,'GEST 2.0'!AI63,IF('soil moisture classes '!$C$15='GEST 2.0'!$AN$2,'GEST 2.0'!AO63,IF('soil moisture classes '!$C$15='GEST 2.0'!$AT$2,'GEST 2.0'!AU63,"")))))) -> . | R86: =IF('soil moisture classes '!$C$15='GEST 2.0'!$P$2,'GEST 2.0'!R63,IF('soil moisture classes '!$C$15='GEST 2.0'!$V$2,'GEST 2.0'!X63,IF('soil moisture classes '!$C$15='GEST 2.0'!$AB$2,'GEST 2.0'!AD63,IF('soil moisture classes '!$C$15='GEST 2.0'!$AH$2,'GEST 2.0'!AJ63,IF('soil moisture classes '!$C$15='GEST 2.0'!$AN$2,'GEST 2.0'!AP63,IF('soil moisture classes '!$C$15='GEST 2.0'!$AT$2,'GEST 2.0'!AV63,"")))))) -> . | S86: =IF('soil moisture classes '!$C$15='GEST 2.0'!$P$2,'GEST 2.0'!S63,IF('soil moisture classes '!$C$15='GEST 2.0'!$V$2,'GEST 2.0'!Y63,IF('soil moisture classes '!$C$15='GEST 2.0'!$AB$2,'GEST 2.0'!AE63,IF('soil moisture classes '!$C$15='GEST 2.0'!$AH$2,'GEST 2.0'!AK63,IF('soil moisture classes '!$C$15='GEST 2.0'!$AN$2,'GEST 2.0'!AQ63,IF('soil moisture classes '!$C$15='GEST 2.0'!$AT$2,'GEST 2.0'!AW63,"")))))) -> . | T86: =IF('soil moisture classes '!$C$15='GEST 2.0'!$P$2,'GEST 2.0'!T63,IF('soil moisture classes '!$C$15='GEST 2.0'!$V$2,'GEST 2.0'!Z63,IF('soil moisture classes '!$C$15='GEST 2.0'!$AB$2,'GEST 2.0'!AF63,IF('soil moisture classes '!$C$15='GEST 2.0'!$AH$2,'GEST 2.0'!AL63,IF('soil moisture classes '!$C$15='GEST 2.0'!$AN$2,'GEST 2.0'!AR63,IF('soil moisture classes '!$C$15='GEST 2.0'!$AT$2,'GEST 2.0'!AX63,"")))))) -> . | U86: =IF('soil moisture classes '!$C$15='GEST 2.0'!$P$2,'GEST 2.0'!U63,IF('soil moisture classes '!$C$15='GEST 2.0'!$V$2,'GEST 2.0'!AA63,IF('soil moisture classes '!$C$15='GEST 2.0'!$AB$2,'GEST 2.0'!AG63,IF('soil moisture classes '!$C$15='GEST 2.0'!$AH$2,'GEST 2.0'!AM63,IF('soil moisture classes '!$C$15='GEST 2.0'!$AN$2,'GEST 2.0'!AS63,IF('soil moisture classes '!$C$15='GEST 2.0'!$AT$2,'GEST 2.0'!AY63,"")))))) -> . | V86: =IF('soil moisture classes '!$C$16='GEST 2.0'!$P$2,'GEST 2.0'!P63,IF('soil moisture classes '!$C$16='GEST 2.0'!$V$2,'GEST 2.0'!V63,IF('soil moisture classes '!$C$16='GEST 2.0'!$AB$2,'GEST 2.0'!AB63,IF('soil moisture classes '!$C$16='GEST 2.0'!$AH$2,'GEST 2.0'!AH63,IF('soil moisture classes '!$C$16='GEST 2.0'!$AN$2,'GEST 2.0'!AN63,IF('soil moisture classes '!$C$16='GEST 2.0'!$AT$2,'GEST 2.0'!AT63,"")))))) -> . | W86: =IF('soil moisture classes '!$C$16='GEST 2.0'!$P$2,'GEST 2.0'!Q63,IF('soil moisture classes '!$C$16='GEST 2.0'!$V$2,'GEST 2.0'!W63,IF('soil moisture classes '!$C$16='GEST 2.0'!$AB$2,'GEST 2.0'!AC63,IF('soil moisture classes '!$C$16='GEST 2.0'!$AH$2,'GEST 2.0'!AI63,IF('soil moisture classes '!$C$16='GEST 2.0'!$AN$2,'GEST 2.0'!AO63,IF('soil moisture classes '!$C$16='GEST 2.0'!$AT$2,'GEST 2.0'!AU63,"")))))) -> . | X86: =IF('soil moisture classes '!$C$16='GEST 2.0'!$P$2,'GEST 2.0'!R63,IF('soil moisture classes '!$C$16='GEST 2.0'!$V$2,'GEST 2.0'!X63,IF('soil moisture classes '!$C$16='GEST 2.0'!$AB$2,'GEST 2.0'!AD63,IF('soil moisture classes '!$C$16='GEST 2.0'!$AH$2,'GEST 2.0'!AJ63,IF('soil moisture classes '!$C$16='GEST 2.0'!$AN$2,'GEST 2.0'!AP63,IF('soil moisture classes '!$C$16='GEST 2.0'!$AT$2,'GEST 2.0'!AV63,"")))))) -> . | Y86: =IF('soil moisture classes '!$C$16='GEST 2.0'!$P$2,'GEST 2.0'!S63,IF('soil moisture classes '!$C$16='GEST 2.0'!$V$2,'GEST 2.0'!Y63,IF('soil moisture classes '!$C$16='GEST 2.0'!$AB$2,'GEST 2.0'!AE63,IF('soil moisture classes '!$C$16='GEST 2.0'!$AH$2,'GEST 2.0'!AK63,IF('soil moisture classes '!$C$16='GEST 2.0'!$AN$2,'GEST 2.0'!AQ63,IF('soil moisture classes '!$C$16='GEST 2.0'!$AT$2,'GEST 2.0'!AW63,"")))))) -> . | Z86: =IF('soil moisture classes '!$C$16='GEST 2.0'!$P$2,'GEST 2.0'!T63,IF('soil moisture classes '!$C$16='GEST 2.0'!$V$2,'GEST 2.0'!Z63,IF('soil moisture classes '!$C$16='GEST 2.0'!$AB$2,'GEST 2.0'!AF63,IF('soil moisture classes '!$C$16='GEST 2.0'!$AH$2,'GEST 2.0'!AL63,IF('soil moisture classes '!$C$16='GEST 2.0'!$AN$2,'GEST 2.0'!AR63,IF('soil moisture classes '!$C$16='GEST 2.0'!$AT$2,'GEST 2.0'!AX63,"")))))) -> . | AA86: =IF('soil moisture classes '!$C$16='GEST 2.0'!$P$2,'GEST 2.0'!U63,IF('soil moisture classes '!$C$16='GEST 2.0'!$V$2,'GEST 2.0'!AA63,IF('soil moisture classes '!$C$16='GEST 2.0'!$AB$2,'GEST 2.0'!AG63,IF('soil moisture classes '!$C$16='GEST 2.0'!$AH$2,'GEST 2.0'!AM63,IF('soil moisture classes '!$C$16='GEST 2.0'!$AN$2,'GEST 2.0'!AS63,IF('soil moisture classes '!$C$16='GEST 2.0'!$AT$2,'GEST 2.0'!AY63,"")))))) -> .
A87: : | B87: S7 | C87: Sphagnum lawn at former peat cut areas | N87: 17 | P87: =IF('soil moisture classes '!$C$15='GEST 2.0'!$P$2,'GEST 2.0'!P64,IF('soil moisture classes '!$C$15='GEST 2.0'!$V$2,'GEST 2.0'!V64,IF('soil moisture classes '!$C$15='GEST 2.0'!$AB$2,'GEST 2.0'!AB64,IF('soil moisture classes '!$C$15='GEST 2.0'!$AH$2,'GEST 2.0'!AH64,IF('soil moisture classes '!$C$15='GEST 2.0'!$AN$2,'GEST 2.0'!AN64,IF('soil moisture classes '!$C$15='GEST 2.0'!$AT$2,'GEST 2.0'!AT64,"")))))) -> . | Q87: =IF('soil moisture classes '!$C$15='GEST 2.0'!$P$2,'GEST 2.0'!Q64,IF('soil moisture classes '!$C$15='GEST 2.0'!$V$2,'GEST 2.0'!W64,IF('soil moisture classes '!$C$15='GEST 2.0'!$AB$2,'GEST 2.0'!AC64,IF('soil moisture classes '!$C$15='GEST 2.0'!$AH$2,'GEST 2.0'!AI64,IF('soil moisture classes '!$C$15='GEST 2.0'!$AN$2,'GEST 2.0'!AO64,IF('soil moisture classes '!$C$15='GEST 2.0'!$AT$2,'GEST 2.0'!AU64,"")))))) -> . | R87: =IF('soil moisture classes '!$C$15='GEST 2.0'!$P$2,'GEST 2.0'!R64,IF('soil moisture classes '!$C$15='GEST 2.0'!$V$2,'GEST 2.0'!X64,IF('soil moisture classes '!$C$15='GEST 2.0'!$AB$2,'GEST 2.0'!AD64,IF('soil moisture classes '!$C$15='GEST 2.0'!$AH$2,'GEST 2.0'!AJ64,IF('soil moisture classes '!$C$15='GEST 2.0'!$AN$2,'GEST 2.0'!AP64,IF('soil moisture classes '!$C$15='GEST 2.0'!$AT$2,'GEST 2.0'!AV64,"")))))) -> . | S87: =IF('soil moisture classes '!$C$15='GEST 2.0'!$P$2,'GEST 2.0'!S64,IF('soil moisture classes '!$C$15='GEST 2.0'!$V$2,'GEST 2.0'!Y64,IF('soil moisture classes '!$C$15='GEST 2.0'!$AB$2,'GEST 2.0'!AE64,IF('soil moisture classes '!$C$15='GEST 2.0'!$AH$2,'GEST 2.0'!AK64,IF('soil moisture classes '!$C$15='GEST 2.0'!$AN$2,'GEST 2.0'!AQ64,IF('soil moisture classes '!$C$15='GEST 2.0'!$AT$2,'GEST 2.0'!AW64,"")))))) -> . | T87: =IF('soil moisture classes '!$C$15='GEST 2.0'!$P$2,'GEST 2.0'!T64,IF('soil moisture classes '!$C$15='GEST 2.0'!$V$2,'GEST 2.0'!Z64,IF('soil moisture classes '!$C$15='GEST 2.0'!$AB$2,'GEST 2.0'!AF64,IF('soil moisture classes '!$C$15='GEST 2.0'!$AH$2,'GEST 2.0'!AL64,IF('soil moisture classes '!$C$15='GEST 2.0'!$AN$2,'GEST 2.0'!AR64,IF('soil moisture classes '!$C$15='GEST 2.0'!$AT$2,'GEST 2.0'!AX64,"")))))) -> . | U87: =IF('soil moisture classes '!$C$15='GEST 2.0'!$P$2,'GEST 2.0'!U64,IF('soil moisture classes '!$C$15='GEST 2.0'!$V$2,'GEST 2.0'!AA64,IF('soil moisture classes '!$C$15='GEST 2.0'!$AB$2,'GEST 2.0'!AG64,IF('soil moisture classes '!$C$15='GEST 2.0'!$AH$2,'GEST 2.0'!AM64,IF('soil moisture classes '!$C$15='GEST 2.0'!$AN$2,'GEST 2.0'!AS64,IF('soil moisture classes '!$C$15='GEST 2.0'!$AT$2,'GEST 2.0'!AY64,"")))))) -> . | V87: =IF('soil moisture classes '!$C$16='GEST 2.0'!$P$2,'GEST 2.0'!P64,IF('soil moisture classes '!$C$16='GEST 2.0'!$V$2,'GEST 2.0'!V64,IF('soil moisture classes '!$C$16='GEST 2.0'!$AB$2,'GEST 2.0'!AB64,IF('soil moisture classes '!$C$16='GEST 2.0'!$AH$2,'GEST 2.0'!AH64,IF('soil moisture classes '!$C$16='GEST 2.0'!$AN$2,'GEST 2.0'!AN64,IF('soil moisture classes '!$C$16='GEST 2.0'!$AT$2,'GEST 2.0'!AT64,"")))))) -> . | W87: =IF('soil moisture classes '!$C$16='GEST 2.0'!$P$2,'GEST 2.0'!Q64,IF('soil moisture classes '!$C$16='GEST 2.0'!$V$2,'GEST 2.0'!W64,IF('soil moisture classes '!$C$16='GEST 2.0'!$AB$2,'GEST 2.0'!AC64,IF('soil moisture classes '!$C$16='GEST 2.0'!$AH$2,'GEST 2.0'!AI64,IF('soil moisture classes '!$C$16='GEST 2.0'!$AN$2,'GEST 2.0'!AO64,IF('soil moisture classes '!$C$16='GEST 2.0'!$AT$2,'GEST 2.0'!AU64,"")))))) -> . | X87: =IF('soil moisture classes '!$C$16='GEST 2.0'!$P$2,'GEST 2.0'!R64,IF('soil moisture classes '!$C$16='GEST 2.0'!$V$2,'GEST 2.0'!X64,IF('soil moisture classes '!$C$16='GEST 2.0'!$AB$2,'GEST 2.0'!AD64,IF('soil moisture classes '!$C$16='GEST 2.0'!$AH$2,'GEST 2.0'!AJ64,IF('soil moisture classes '!$C$16='GEST 2.0'!$AN$2,'GEST 2.0'!AP64,IF('soil moisture classes '!$C$16='GEST 2.0'!$AT$2,'GEST 2.0'!AV64,"")))))) -> . | Y87: =IF('soil moisture classes '!$C$16='GEST 2.0'!$P$2,'GEST 2.0'!S64,IF('soil moisture classes '!$C$16='GEST 2.0'!$V$2,'GEST 2.0'!Y64,IF('soil moisture classes '!$C$16='GEST 2.0'!$AB$2,'GEST 2.0'!AE64,IF('soil moisture classes '!$C$16='GEST 2.0'!$AH$2,'GEST 2.0'!AK64,IF('soil moisture classes '!$C$16='GEST 2.0'!$AN$2,'GEST 2.0'!AQ64,IF('soil moisture classes '!$C$16='GEST 2.0'!$AT$2,'GEST 2.0'!AW64,"")))))) -> . | Z87: =IF('soil moisture classes '!$C$16='GEST 2.0'!$P$2,'GEST 2.0'!T64,IF('soil moisture classes '!$C$16='GEST 2.0'!$V$2,'GEST 2.0'!Z64,IF('soil moisture classes '!$C$16='GEST 2.0'!$AB$2,'GEST 2.0'!AF64,IF('soil moisture classes '!$C$16='GEST 2.0'!$AH$2,'GEST 2.0'!AL64,IF('soil moisture classes '!$C$16='GEST 2.0'!$AN$2,'GEST 2.0'!AR64,IF('soil moisture classes '!$C$16='GEST 2.0'!$AT$2,'GEST 2.0'!AX64,"")))))) -> . | AA87: =IF('soil moisture classes '!$C$16='GEST 2.0'!$P$2,'GEST 2.0'!U64,IF('soil moisture classes '!$C$16='GEST 2.0'!$V$2,'GEST 2.0'!AA64,IF('soil moisture classes '!$C$16='GEST 2.0'!$AB$2,'GEST 2.0'!AG64,IF('soil moisture classes '!$C$16='GEST 2.0'!$AH$2,'GEST 2.0'!AM64,IF('soil moisture classes '!$C$16='GEST 2.0'!$AN$2,'GEST 2.0'!AS64,IF('soil moisture classes '!$C$16='GEST 2.0'!$AT$2,'GEST 2.0'!AY64,"")))))) -> .
A88: : | B88: S8 | C88: Very wet reeds with lateral import of organic matter | N88: 18 | P88: =IF('soil moisture classes '!$C$15='GEST 2.0'!$P$2,'GEST 2.0'!P65,IF('soil moisture classes '!$C$15='GEST 2.0'!$V$2,'GEST 2.0'!V65,IF('soil moisture classes '!$C$15='GEST 2.0'!$AB$2,'GEST 2.0'!AB65,IF('soil moisture classes '!$C$15='GEST 2.0'!$AH$2,'GEST 2.0'!AH65,IF('soil moisture classes '!$C$15='GEST 2.0'!$AN$2,'GEST 2.0'!AN65,IF('soil moisture classes '!$C$15='GEST 2.0'!$AT$2,'GEST 2.0'!AT65,"")))))) -> . | Q88: =IF('soil moisture classes '!$C$15='GEST 2.0'!$P$2,'GEST 2.0'!Q65,IF('soil moisture classes '!$C$15='GEST 2.0'!$V$2,'GEST 2.0'!W65,IF('soil moisture classes '!$C$15='GEST 2.0'!$AB$2,'GEST 2.0'!AC65,IF('soil moisture classes '!$C$15='GEST 2.0'!$AH$2,'GEST 2.0'!AI65,IF('soil moisture classes '!$C$15='GEST 2.0'!$AN$2,'GEST 2.0'!AO65,IF('soil moisture classes '!$C$15='GEST 2.0'!$AT$2,'GEST 2.0'!AU65,"")))))) -> . | R88: =IF('soil moisture classes '!$C$15='GEST 2.0'!$P$2,'GEST 2.0'!R65,IF('soil moisture classes '!$C$15='GEST 2.0'!$V$2,'GEST 2.0'!X65,IF('soil moisture classes '!$C$15='GEST 2.0'!$AB$2,'GEST 2.0'!AD65,IF('soil moisture classes '!$C$15='GEST 2.0'!$AH$2,'GEST 2.0'!AJ65,IF('soil moisture classes '!$C$15='GEST 2.0'!$AN$2,'GEST 2.0'!AP65,IF('soil moisture classes '!$C$15='GEST 2.0'!$AT$2,'GEST 2.0'!AV65,"")))))) -> . | S88: =IF('soil moisture classes '!$C$15='GEST 2.0'!$P$2,'GEST 2.0'!S65,IF('soil moisture classes '!$C$15='GEST 2.0'!$V$2,'GEST 2.0'!Y65,IF('soil moisture classes '!$C$15='GEST 2.0'!$AB$2,'GEST 2.0'!AE65,IF('soil moisture classes '!$C$15='GEST 2.0'!$AH$2,'GEST 2.0'!AK65,IF('soil moisture classes '!$C$15='GEST 2.0'!$AN$2,'GEST 2.0'!AQ65,IF('soil moisture classes '!$C$15='GEST 2.0'!$AT$2,'GEST 2.0'!AW65,"")))))) -> . | T88: =IF('soil moisture classes '!$C$15='GEST 2.0'!$P$2,'GEST 2.0'!T65,IF('soil moisture classes '!$C$15='GEST 2.0'!$V$2,'GEST 2.0'!Z65,IF('soil moisture classes '!$C$15='GEST 2.0'!$AB$2,'GEST 2.0'!AF65,IF('soil moisture classes '!$C$15='GEST 2.0'!$AH$2,'GEST 2.0'!AL65,IF('soil moisture classes '!$C$15='GEST 2.0'!$AN$2,'GEST 2.0'!AR65,IF('soil moisture classes '!$C$15='GEST 2.0'!$AT$2,'GEST 2.0'!AX65,"")))))) -> . | U88: =IF('soil moisture classes '!$C$15='GEST 2.0'!$P$2,'GEST 2.0'!U65,IF('soil moisture classes '!$C$15='GEST 2.0'!$V$2,'GEST 2.0'!AA65,IF('soil moisture classes '!$C$15='GEST 2.0'!$AB$2,'GEST 2.0'!AG65,IF('soil moisture classes '!$C$15='GEST 2.0'!$AH$2,'GEST 2.0'!AM65,IF('soil moisture classes '!$C$15='GEST 2.0'!$AN$2,'GEST 2.0'!AS65,IF('soil moisture classes '!$C$15='GEST 2.0'!$AT$2,'GEST 2.0'!AY65,"")))))) -> . | V88: =IF('soil moisture classes '!$C$16='GEST 2.0'!$P$2,'GEST 2.0'!P65,IF('soil moisture classes '!$C$16='GEST 2.0'!$V$2,'GEST 2.0'!V65,IF('soil moisture classes '!$C$16='GEST 2.0'!$AB$2,'GEST 2.0'!AB65,IF('soil moisture classes '!$C$16='GEST 2.0'!$AH$2,'GEST 2.0'!AH65,IF('soil moisture classes '!$C$16='GEST 2.0'!$AN$2,'GEST 2.0'!AN65,IF('soil moisture classes '!$C$16='GEST 2.0'!$AT$2,'GEST 2.0'!AT65,"")))))) -> . | W88: =IF('soil moisture classes '!$C$16='GEST 2.0'!$P$2,'GEST 2.0'!Q65,IF('soil moisture classes '!$C$16='GEST 2.0'!$V$2,'GEST 2.0'!W65,IF('soil moisture classes '!$C$16='GEST 2.0'!$AB$2,'GEST 2.0'!AC65,IF('soil moisture classes '!$C$16='GEST 2.0'!$AH$2,'GEST 2.0'!AI65,IF('soil moisture classes '!$C$16='GEST 2.0'!$AN$2,'GEST 2.0'!AO65,IF('soil moisture classes '!$C$16='GEST 2.0'!$AT$2,'GEST 2.0'!AU65,"")))))) -> . | X88: =IF('soil moisture classes '!$C$16='GEST 2.0'!$P$2,'GEST 2.0'!R65,IF('soil moisture classes '!$C$16='GEST 2.0'!$V$2,'GEST 2.0'!X65,IF('soil moisture classes '!$C$16='GEST 2.0'!$AB$2,'GEST 2.0'!AD65,IF('soil moisture classes '!$C$16='GEST 2.0'!$AH$2,'GEST 2.0'!AJ65,IF('soil moisture classes '!$C$16='GEST 2.0'!$AN$2,'GEST 2.0'!AP65,IF('soil moisture classes '!$C$16='GEST 2.0'!$AT$2,'GEST 2.0'!AV65,"")))))) -> . | Y88: =IF('soil moisture classes '!$C$16='GEST 2.0'!$P$2,'GEST 2.0'!S65,IF('soil moisture classes '!$C$16='GEST 2.0'!$V$2,'GEST 2.0'!Y65,IF('soil moisture classes '!$C$16='GEST 2.0'!$AB$2,'GEST 2.0'!AE65,IF('soil moisture classes '!$C$16='GEST 2.0'!$AH$2,'GEST 2.0'!AK65,IF('soil moisture classes '!$C$16='GEST 2.0'!$AN$2,'GEST 2.0'!AQ65,IF('soil moisture classes '!$C$16='GEST 2.0'!$AT$2,'GEST 2.0'!AW65,"")))))) -> . | Z88: =IF('soil moisture classes '!$C$16='GEST 2.0'!$P$2,'GEST 2.0'!T65,IF('soil moisture classes '!$C$16='GEST 2.0'!$V$2,'GEST 2.0'!Z65,IF('soil moisture classes '!$C$16='GEST 2.0'!$AB$2,'GEST 2.0'!AF65,IF('soil moisture classes '!$C$16='GEST 2.0'!$AH$2,'GEST 2.0'!AL65,IF('soil moisture classes '!$C$16='GEST 2.0'!$AN$2,'GEST 2.0'!AR65,IF('soil moisture classes '!$C$16='GEST 2.0'!$AT$2,'GEST 2.0'!AX65,"")))))) -> . | AA88: =IF('soil moisture classes '!$C$16='GEST 2.0'!$P$2,'GEST 2.0'!U65,IF('soil moisture classes '!$C$16='GEST 2.0'!$V$2,'GEST 2.0'!AA65,IF('soil moisture classes '!$C$16='GEST 2.0'!$AB$2,'GEST 2.0'!AG65,IF('soil moisture classes '!$C$16='GEST 2.0'!$AH$2,'GEST 2.0'!AM65,IF('soil moisture classes '!$C$16='GEST 2.0'!$AN$2,'GEST 2.0'!AS65,IF('soil moisture classes '!$C$16='GEST 2.0'!$AT$2,'GEST 2.0'!AY65,"")))))) -> .
A89: : | B89: S9 | C89: Ditches in low intensity grassland | N89: 19 | P89: =IF('soil moisture classes '!$C$15='GEST 2.0'!$P$2,'GEST 2.0'!P66,IF('soil moisture classes '!$C$15='GEST 2.0'!$V$2,'GEST 2.0'!V66,IF('soil moisture classes '!$C$15='GEST 2.0'!$AB$2,'GEST 2.0'!AB66,IF('soil moisture classes '!$C$15='GEST 2.0'!$AH$2,'GEST 2.0'!AH66,IF('soil moisture classes '!$C$15='GEST 2.0'!$AN$2,'GEST 2.0'!AN66,IF('soil moisture classes '!$C$15='GEST 2.0'!$AT$2,'GEST 2.0'!AT66,"")))))) -> . | Q89: =IF('soil moisture classes '!$C$15='GEST 2.0'!$P$2,'GEST 2.0'!Q66,IF('soil moisture classes '!$C$15='GEST 2.0'!$V$2,'GEST 2.0'!W66,IF('soil moisture classes '!$C$15='GEST 2.0'!$AB$2,'GEST 2.0'!AC66,IF('soil moisture classes '!$C$15='GEST 2.0'!$AH$2,'GEST 2.0'!AI66,IF('soil moisture classes '!$C$15='GEST 2.0'!$AN$2,'GEST 2.0'!AO66,IF('soil moisture classes '!$C$15='GEST 2.0'!$AT$2,'GEST 2.0'!AU66,"")))))) -> . | R89: =IF('soil moisture classes '!$C$15='GEST 2.0'!$P$2,'GEST 2.0'!R66,IF('soil moisture classes '!$C$15='GEST 2.0'!$V$2,'GEST 2.0'!X66,IF('soil moisture classes '!$C$15='GEST 2.0'!$AB$2,'GEST 2.0'!AD66,IF('soil moisture classes '!$C$15='GEST 2.0'!$AH$2,'GEST 2.0'!AJ66,IF('soil moisture classes '!$C$15='GEST 2.0'!$AN$2,'GEST 2.0'!AP66,IF('soil moisture classes '!$C$15='GEST 2.0'!$AT$2,'GEST 2.0'!AV66,"")))))) -> . | S89: =IF('soil moisture classes '!$C$15='GEST 2.0'!$P$2,'GEST 2.0'!S66,IF('soil moisture classes '!$C$15='GEST 2.0'!$V$2,'GEST 2.0'!Y66,IF('soil moisture classes '!$C$15='GEST 2.0'!$AB$2,'GEST 2.0'!AE66,IF('soil moisture classes '!$C$15='GEST 2.0'!$AH$2,'GEST 2.0'!AK66,IF('soil moisture classes '!$C$15='GEST 2.0'!$AN$2,'GEST 2.0'!AQ66,IF('soil moisture classes '!$C$15='GEST 2.0'!$AT$2,'GEST 2.0'!AW66,"")))))) -> . | T89: =IF('soil moisture classes '!$C$15='GEST 2.0'!$P$2,'GEST 2.0'!T66,IF('soil moisture classes '!$C$15='GEST 2.0'!$V$2,'GEST 2.0'!Z66,IF('soil moisture classes '!$C$15='GEST 2.0'!$AB$2,'GEST 2.0'!AF66,IF('soil moisture classes '!$C$15='GEST 2.0'!$AH$2,'GEST 2.0'!AL66,IF('soil moisture classes '!$C$15='GEST 2.0'!$AN$2,'GEST 2.0'!AR66,IF('soil moisture classes '!$C$15='GEST 2.0'!$AT$2,'GEST 2.0'!AX66,"")))))) -> . | U89: =IF('soil moisture classes '!$C$15='GEST 2.0'!$P$2,'GEST 2.0'!U66,IF('soil moisture classes '!$C$15='GEST 2.0'!$V$2,'GEST 2.0'!AA66,IF('soil moisture classes '!$C$15='GEST 2.0'!$AB$2,'GEST 2.0'!AG66,IF('soil moisture classes '!$C$15='GEST 2.0'!$AH$2,'GEST 2.0'!AM66,IF('soil moisture classes '!$C$15='GEST 2.0'!$AN$2,'GEST 2.0'!AS66,IF('soil moisture classes '!$C$15='GEST 2.0'!$AT$2,'GEST 2.0'!AY66,"")))))) -> . | V89: =IF('soil moisture classes '!$C$16='GEST 2.0'!$P$2,'GEST 2.0'!P66,IF('soil moisture classes '!$C$16='GEST 2.0'!$V$2,'GEST 2.0'!V66,IF('soil moisture classes '!$C$16='GEST 2.0'!$AB$2,'GEST 2.0'!AB66,IF('soil moisture classes '!$C$16='GEST 2.0'!$AH$2,'GEST 2.0'!AH66,IF('soil moisture classes '!$C$16='GEST 2.0'!$AN$2,'GEST 2.0'!AN66,IF('soil moisture classes '!$C$16='GEST 2.0'!$AT$2,'GEST 2.0'!AT66,"")))))) -> . | W89: =IF('soil moisture classes '!$C$16='GEST 2.0'!$P$2,'GEST 2.0'!Q66,IF('soil moisture classes '!$C$16='GEST 2.0'!$V$2,'GEST 2.0'!W66,IF('soil moisture classes '!$C$16='GEST 2.0'!$AB$2,'GEST 2.0'!AC66,IF('soil moisture classes '!$C$16='GEST 2.0'!$AH$2,'GEST 2.0'!AI66,IF('soil moisture classes '!$C$16='GEST 2.0'!$AN$2,'GEST 2.0'!AO66,IF('soil moisture classes '!$C$16='GEST 2.0'!$AT$2,'GEST 2.0'!AU66,"")))))) -> . | X89: =IF('soil moisture classes '!$C$16='GEST 2.0'!$P$2,'GEST 2.0'!R66,IF('soil moisture classes '!$C$16='GEST 2.0'!$V$2,'GEST 2.0'!X66,IF('soil moisture classes '!$C$16='GEST 2.0'!$AB$2,'GEST 2.0'!AD66,IF('soil moisture classes '!$C$16='GEST 2.0'!$AH$2,'GEST 2.0'!AJ66,IF('soil moisture classes '!$C$16='GEST 2.0'!$AN$2,'GEST 2.0'!AP66,IF('soil moisture classes '!$C$16='GEST 2.0'!$AT$2,'GEST 2.0'!AV66,"")))))) -> . | Y89: =IF('soil moisture classes '!$C$16='GEST 2.0'!$P$2,'GEST 2.0'!S66,IF('soil moisture classes '!$C$16='GEST 2.0'!$V$2,'GEST 2.0'!Y66,IF('soil moisture classes '!$C$16='GEST 2.0'!$AB$2,'GEST 2.0'!AE66,IF('soil moisture classes '!$C$16='GEST 2.0'!$AH$2,'GEST 2.0'!AK66,IF('soil moisture classes '!$C$16='GEST 2.0'!$AN$2,'GEST 2.0'!AQ66,IF('soil moisture classes '!$C$16='GEST 2.0'!$AT$2,'GEST 2.0'!AW66,"")))))) -> . | Z89: =IF('soil moisture classes '!$C$16='GEST 2.0'!$P$2,'GEST 2.0'!T66,IF('soil moisture classes '!$C$16='GEST 2.0'!$V$2,'GEST 2.0'!Z66,IF('soil moisture classes '!$C$16='GEST 2.0'!$AB$2,'GEST 2.0'!AF66,IF('soil moisture classes '!$C$16='GEST 2.0'!$AH$2,'GEST 2.0'!AL66,IF('soil moisture classes '!$C$16='GEST 2.0'!$AN$2,'GEST 2.0'!AR66,IF('soil moisture classes '!$C$16='GEST 2.0'!$AT$2,'GEST 2.0'!AX66,"")))))) -> . | AA89: =IF('soil moisture classes '!$C$16='GEST 2.0'!$P$2,'GEST 2.0'!U66,IF('soil moisture classes '!$C$16='GEST 2.0'!$V$2,'GEST 2.0'!AA66,IF('soil moisture classes '!$C$16='GEST 2.0'!$AB$2,'GEST 2.0'!AG66,IF('soil moisture classes '!$C$16='GEST 2.0'!$AH$2,'GEST 2.0'!AM66,IF('soil moisture classes '!$C$16='GEST 2.0'!$AN$2,'GEST 2.0'!AS66,IF('soil moisture classes '!$C$16='GEST 2.0'!$AT$2,'GEST 2.0'!AY66,"")))))) -> .
N90: 20 | P90: =IF('soil moisture classes '!$C$15='GEST 2.0'!$P$2,'GEST 2.0'!P67,IF('soil moisture classes '!$C$15='GEST 2.0'!$V$2,'GEST 2.0'!V67,IF('soil moisture classes '!$C$15='GEST 2.0'!$AB$2,'GEST 2.0'!AB67,IF('soil moisture classes '!$C$15='GEST 2.0'!$AH$2,'GEST 2.0'!AH67,IF('soil moisture classes '!$C$15='GEST 2.0'!$AN$2,'GEST 2.0'!AN67,IF('soil moisture classes '!$C$15='GEST 2.0'!$AT$2,'GEST 2.0'!AT67,"")))))) -> . | Q90: =IF('soil moisture classes '!$C$15='GEST 2.0'!$P$2,'GEST 2.0'!Q67,IF('soil moisture classes '!$C$15='GEST 2.0'!$V$2,'GEST 2.0'!W67,IF('soil moisture classes '!$C$15='GEST 2.0'!$AB$2,'GEST 2.0'!AC67,IF('soil moisture classes '!$C$15='GEST 2.0'!$AH$2,'GEST 2.0'!AI67,IF('soil moisture classes '!$C$15='GEST 2.0'!$AN$2,'GEST 2.0'!AO67,IF('soil moisture classes '!$C$15='GEST 2.0'!$AT$2,'GEST 2.0'!AU67,"")))))) -> . | R90: =IF('soil moisture classes '!$C$15='GEST 2.0'!$P$2,'GEST 2.0'!R67,IF('soil moisture classes '!$C$15='GEST 2.0'!$V$2,'GEST 2.0'!X67,IF('soil moisture classes '!$C$15='GEST 2.0'!$AB$2,'GEST 2.0'!AD67,IF('soil moisture classes '!$C$15='GEST 2.0'!$AH$2,'GEST 2.0'!AJ67,IF('soil moisture classes '!$C$15='GEST 2.0'!$AN$2,'GEST 2.0'!AP67,IF('soil moisture classes '!$C$15='GEST 2.0'!$AT$2,'GEST 2.0'!AV67,"")))))) -> . | S90: =IF('soil moisture classes '!$C$15='GEST 2.0'!$P$2,'GEST 2.0'!S67,IF('soil moisture classes '!$C$15='GEST 2.0'!$V$2,'GEST 2.0'!Y67,IF('soil moisture classes '!$C$15='GEST 2.0'!$AB$2,'GEST 2.0'!AE67,IF('soil moisture classes '!$C$15='GEST 2.0'!$AH$2,'GEST 2.0'!AK67,IF('soil moisture classes '!$C$15='GEST 2.0'!$AN$2,'GEST 2.0'!AQ67,IF('soil moisture classes '!$C$15='GEST 2.0'!$AT$2,'GEST 2.0'!AW67,"")))))) -> . | T90: =IF('soil moisture classes '!$C$15='GEST 2.0'!$P$2,'GEST 2.0'!T67,IF('soil moisture classes '!$C$15='GEST 2.0'!$V$2,'GEST 2.0'!Z67,IF('soil moisture classes '!$C$15='GEST 2.0'!$AB$2,'GEST 2.0'!AF67,IF('soil moisture classes '!$C$15='GEST 2.0'!$AH$2,'GEST 2.0'!AL67,IF('soil moisture classes '!$C$15='GEST 2.0'!$AN$2,'GEST 2.0'!AR67,IF('soil moisture classes '!$C$15='GEST 2.0'!$AT$2,'GEST 2.0'!AX67,"")))))) -> . | U90: =IF('soil moisture classes '!$C$15='GEST 2.0'!$P$2,'GEST 2.0'!U67,IF('soil moisture classes '!$C$15='GEST 2.0'!$V$2,'GEST 2.0'!AA67,IF('soil moisture classes '!$C$15='GEST 2.0'!$AB$2,'GEST 2.0'!AG67,IF('soil moisture classes '!$C$15='GEST 2.0'!$AH$2,'GEST 2.0'!AM67,IF('soil moisture classes '!$C$15='GEST 2.0'!$AN$2,'GEST 2.0'!AS67,IF('soil moisture classes '!$C$15='GEST 2.0'!$AT$2,'GEST 2.0'!AY67,"")))))) -> . | V90: =IF('soil moisture classes '!$C$16='GEST 2.0'!$P$2,'GEST 2.0'!P67,IF('soil moisture classes '!$C$16='GEST 2.0'!$V$2,'GEST 2.0'!V67,IF('soil moisture classes '!$C$16='GEST 2.0'!$AB$2,'GEST 2.0'!AB67,IF('soil moisture classes '!$C$16='GEST 2.0'!$AH$2,'GEST 2.0'!AH67,IF('soil moisture classes '!$C$16='GEST 2.0'!$AN$2,'GEST 2.0'!AN67,IF('soil moisture classes '!$C$16='GEST 2.0'!$AT$2,'GEST 2.0'!AT67,"")))))) -> . | W90: =IF('soil moisture classes '!$C$16='GEST 2.0'!$P$2,'GEST 2.0'!Q67,IF('soil moisture classes '!$C$16='GEST 2.0'!$V$2,'GEST 2.0'!W67,IF('soil moisture classes '!$C$16='GEST 2.0'!$AB$2,'GEST 2.0'!AC67,IF('soil moisture classes '!$C$16='GEST 2.0'!$AH$2,'GEST 2.0'!AI67,IF('soil moisture classes '!$C$16='GEST 2.0'!$AN$2,'GEST 2.0'!AO67,IF('soil moisture classes '!$C$16='GEST 2.0'!$AT$2,'GEST 2.0'!AU67,"")))))) -> . | X90: =IF('soil moisture classes '!$C$16='GEST 2.0'!$P$2,'GEST 2.0'!R67,IF('soil moisture classes '!$C$16='GEST 2.0'!$V$2,'GEST 2.0'!X67,IF('soil moisture classes '!$C$16='GEST 2.0'!$AB$2,'GEST 2.0'!AD67,IF('soil moisture classes '!$C$16='GEST 2.0'!$AH$2,'GEST 2.0'!AJ67,IF('soil moisture classes '!$C$16='GEST 2.0'!$AN$2,'GEST 2.0'!AP67,IF('soil moisture classes '!$C$16='GEST 2.0'!$AT$2,'GEST 2.0'!AV67,"")))))) -> . | Y90: =IF('soil moisture classes '!$C$16='GEST 2.0'!$P$2,'GEST 2.0'!S67,IF('soil moisture classes '!$C$16='GEST 2.0'!$V$2,'GEST 2.0'!Y67,IF('soil moisture classes '!$C$16='GEST 2.0'!$AB$2,'GEST 2.0'!AE67,IF('soil moisture classes '!$C$16='GEST 2.0'!$AH$2,'GEST 2.0'!AK67,IF('soil moisture classes '!$C$16='GEST 2.0'!$AN$2,'GEST 2.0'!AQ67,IF('soil moisture classes '!$C$16='GEST 2.0'!$AT$2,'GEST 2.0'!AW67,"")))))) -> . | Z90: =IF('soil moisture classes '!$C$16='GEST 2.0'!$P$2,'GEST 2.0'!T67,IF('soil moisture classes '!$C$16='GEST 2.0'!$V$2,'GEST 2.0'!Z67,IF('soil moisture classes '!$C$16='GEST 2.0'!$AB$2,'GEST 2.0'!AF67,IF('soil moisture classes '!$C$16='GEST 2.0'!$AH$2,'GEST 2.0'!AL67,IF('soil moisture classes '!$C$16='GEST 2.0'!$AN$2,'GEST 2.0'!AR67,IF('soil moisture classes '!$C$16='GEST 2.0'!$AT$2,'GEST 2.0'!AX67,"")))))) -> . | AA90: =IF('soil moisture classes '!$C$16='GEST 2.0'!$P$2,'GEST 2.0'!U67,IF('soil moisture classes '!$C$16='GEST 2.0'!$V$2,'GEST 2.0'!AA67,IF('soil moisture classes '!$C$16='GEST 2.0'!$AB$2,'GEST 2.0'!AG67,IF('soil moisture classes '!$C$16='GEST 2.0'!$AH$2,'GEST 2.0'!AM67,IF('soil moisture classes '!$C$16='GEST 2.0'!$AN$2,'GEST 2.0'!AS67,IF('soil moisture classes '!$C$16='GEST 2.0'!$AT$2,'GEST 2.0'!AY67,"")))))) -> .
N91: 21 | P91: =IF('soil moisture classes '!$C$15='GEST 2.0'!$P$2,'GEST 2.0'!P68,IF('soil moisture classes '!$C$15='GEST 2.0'!$V$2,'GEST 2.0'!V68,IF('soil moisture classes '!$C$15='GEST 2.0'!$AB$2,'GEST 2.0'!AB68,IF('soil moisture classes '!$C$15='GEST 2.0'!$AH$2,'GEST 2.0'!AH68,IF('soil moisture classes '!$C$15='GEST 2.0'!$AN$2,'GEST 2.0'!AN68,IF('soil moisture classes '!$C$15='GEST 2.0'!$AT$2,'GEST 2.0'!AT68,"")))))) -> . | Q91: =IF('soil moisture classes '!$C$15='GEST 2.0'!$P$2,'GEST 2.0'!Q68,IF('soil moisture classes '!$C$15='GEST 2.0'!$V$2,'GEST 2.0'!W68,IF('soil moisture classes '!$C$15='GEST 2.0'!$AB$2,'GEST 2.0'!AC68,IF('soil moisture classes '!$C$15='GEST 2.0'!$AH$2,'GEST 2.0'!AI68,IF('soil moisture classes '!$C$15='GEST 2.0'!$AN$2,'GEST 2.0'!AO68,IF('soil moisture classes '!$C$15='GEST 2.0'!$AT$2,'GEST 2.0'!AU68,"")))))) -> . | R91: =IF('soil moisture classes '!$C$15='GEST 2.0'!$P$2,'GEST 2.0'!R68,IF('soil moisture classes '!$C$15='GEST 2.0'!$V$2,'GEST 2.0'!X68,IF('soil moisture classes '!$C$15='GEST 2.0'!$AB$2,'GEST 2.0'!AD68,IF('soil moisture classes '!$C$15='GEST 2.0'!$AH$2,'GEST 2.0'!AJ68,IF('soil moisture classes '!$C$15='GEST 2.0'!$AN$2,'GEST 2.0'!AP68,IF('soil moisture classes '!$C$15='GEST 2.0'!$AT$2,'GEST 2.0'!AV68,"")))))) -> . | S91: =IF('soil moisture classes '!$C$15='GEST 2.0'!$P$2,'GEST 2.0'!S68,IF('soil moisture classes '!$C$15='GEST 2.0'!$V$2,'GEST 2.0'!Y68,IF('soil moisture classes '!$C$15='GEST 2.0'!$AB$2,'GEST 2.0'!AE68,IF('soil moisture classes '!$C$15='GEST 2.0'!$AH$2,'GEST 2.0'!AK68,IF('soil moisture classes '!$C$15='GEST 2.0'!$AN$2,'GEST 2.0'!AQ68,IF('soil moisture classes '!$C$15='GEST 2.0'!$AT$2,'GEST 2.0'!AW68,"")))))) -> . | T91: =IF('soil moisture classes '!$C$15='GEST 2.0'!$P$2,'GEST 2.0'!T68,IF('soil moisture classes '!$C$15='GEST 2.0'!$V$2,'GEST 2.0'!Z68,IF('soil moisture classes '!$C$15='GEST 2.0'!$AB$2,'GEST 2.0'!AF68,IF('soil moisture classes '!$C$15='GEST 2.0'!$AH$2,'GEST 2.0'!AL68,IF('soil moisture classes '!$C$15='GEST 2.0'!$AN$2,'GEST 2.0'!AR68,IF('soil moisture classes '!$C$15='GEST 2.0'!$AT$2,'GEST 2.0'!AX68,"")))))) -> . | U91: =IF('soil moisture classes '!$C$15='GEST 2.0'!$P$2,'GEST 2.0'!U68,IF('soil moisture classes '!$C$15='GEST 2.0'!$V$2,'GEST 2.0'!AA68,IF('soil moisture classes '!$C$15='GEST 2.0'!$AB$2,'GEST 2.0'!AG68,IF('soil moisture classes '!$C$15='GEST 2.0'!$AH$2,'GEST 2.0'!AM68,IF('soil moisture classes '!$C$15='GEST 2.0'!$AN$2,'GEST 2.0'!AS68,IF('soil moisture classes '!$C$15='GEST 2.0'!$AT$2,'GEST 2.0'!AY68,"")))))) -> . | V91: =IF('soil moisture classes '!$C$16='GEST 2.0'!$P$2,'GEST 2.0'!P68,IF('soil moisture classes '!$C$16='GEST 2.0'!$V$2,'GEST 2.0'!V68,IF('soil moisture classes '!$C$16='GEST 2.0'!$AB$2,'GEST 2.0'!AB68,IF('soil moisture classes '!$C$16='GEST 2.0'!$AH$2,'GEST 2.0'!AH68,IF('soil moisture classes '!$C$16='GEST 2.0'!$AN$2,'GEST 2.0'!AN68,IF('soil moisture classes '!$C$16='GEST 2.0'!$AT$2,'GEST 2.0'!AT68,"")))))) -> . | W91: =IF('soil moisture classes '!$C$16='GEST 2.0'!$P$2,'GEST 2.0'!Q68,IF('soil moisture classes '!$C$16='GEST 2.0'!$V$2,'GEST 2.0'!W68,IF('soil moisture classes '!$C$16='GEST 2.0'!$AB$2,'GEST 2.0'!AC68,IF('soil moisture classes '!$C$16='GEST 2.0'!$AH$2,'GEST 2.0'!AI68,IF('soil moisture classes '!$C$16='GEST 2.0'!$AN$2,'GEST 2.0'!AO68,IF('soil moisture classes '!$C$16='GEST 2.0'!$AT$2,'GEST 2.0'!AU68,"")))))) -> . | X91: =IF('soil moisture classes '!$C$16='GEST 2.0'!$P$2,'GEST 2.0'!R68,IF('soil moisture classes '!$C$16='GEST 2.0'!$V$2,'GEST 2.0'!X68,IF('soil moisture classes '!$C$16='GEST 2.0'!$AB$2,'GEST 2.0'!AD68,IF('soil moisture classes '!$C$16='GEST 2.0'!$AH$2,'GEST 2.0'!AJ68,IF('soil moisture classes '!$C$16='GEST 2.0'!$AN$2,'GEST 2.0'!AP68,IF('soil moisture classes '!$C$16='GEST 2.0'!$AT$2,'GEST 2.0'!AV68,"")))))) -> . | Y91: =IF('soil moisture classes '!$C$16='GEST 2.0'!$P$2,'GEST 2.0'!S68,IF('soil moisture classes '!$C$16='GEST 2.0'!$V$2,'GEST 2.0'!Y68,IF('soil moisture classes '!$C$16='GEST 2.0'!$AB$2,'GEST 2.0'!AE68,IF('soil moisture classes '!$C$16='GEST 2.0'!$AH$2,'GEST 2.0'!AK68,IF('soil moisture classes '!$C$16='GEST 2.0'!$AN$2,'GEST 2.0'!AQ68,IF('soil moisture classes '!$C$16='GEST 2.0'!$AT$2,'GEST 2.0'!AW68,"")))))) -> . | Z91: =IF('soil moisture classes '!$C$16='GEST 2.0'!$P$2,'GEST 2.0'!T68,IF('soil moisture classes '!$C$16='GEST 2.0'!$V$2,'GEST 2.0'!Z68,IF('soil moisture classes '!$C$16='GEST 2.0'!$AB$2,'GEST 2.0'!AF68,IF('soil moisture classes '!$C$16='GEST 2.0'!$AH$2,'GEST 2.0'!AL68,IF('soil moisture classes '!$C$16='GEST 2.0'!$AN$2,'GEST 2.0'!AR68,IF('soil moisture classes '!$C$16='GEST 2.0'!$AT$2,'GEST 2.0'!AX68,"")))))) -> . | AA91: =IF('soil moisture classes '!$C$16='GEST 2.0'!$P$2,'GEST 2.0'!U68,IF('soil moisture classes '!$C$16='GEST 2.0'!$V$2,'GEST 2.0'!AA68,IF('soil moisture classes '!$C$16='GEST 2.0'!$AB$2,'GEST 2.0'!AG68,IF('soil moisture classes '!$C$16='GEST 2.0'!$AH$2,'GEST 2.0'!AM68,IF('soil moisture classes '!$C$16='GEST 2.0'!$AN$2,'GEST 2.0'!AS68,IF('soil moisture classes '!$C$16='GEST 2.0'!$AT$2,'GEST 2.0'!AY68,"")))))) -> .

Sheet N2O Fertilizer cattle cropresid (hidden)
C18: here F refers to total amounts of N applied to the soil or released in the soil N via:
C19: synthetic fertilizer (SN; kg N year-1 );
C20: organic additions (ON; kg N year-1 );
C21: mineralization of soil organic matter as a result of changes in land use or management (SOM; kg N year-1 );
C22: management and drainage of organic soils (OS, CG, TEMP; ha);
C23: urine and dung of grazing cattle (PRP, CPP; kg N year-1);
C24: .
C25: For soils in temperate climates without crop residues the emission factors (EF) are set at:
C26: EF1 = 0.01 kg N–N2O kg N-1;
C27: EF2CG,TEMP = 8 kg N–N2O ha-1 year-1;
C28: EF3PRP,CPP = 0.02 kg N– N2O kg N-1 (IPCC 2006);
C31: Tier 2) to estimate the direct emission of N2O from managed organic soils. For the Netherlands this is 4.7 kg N ha-1 year-1 + 1% of the N application via faecal deposition (dung) and ammonium fertilizers and 2% of all other N inputs (Protocol 8132 Direct emissions from agriculture, van der Hoek et al. 2007).
B35: dierlijke mest
B36: N2O bemesting emissiearm | D36: kg N-N2O per kg N
D37: gras | F37: bouw
C38: grondwatertrap | D38: emissiearm | E38: oppervlakkig | F38: emissiearm | G38: oppervlakkig
B39: veen | C39: I | D39: 0.005 | E39: 0.0025 | F39: 0.01 | G39: 0.005
C40: II-III | D40: 0.01 | E40: 0.005 | F40: 0.02 | G40: 0.01
C41: IV-VII* | D41: 0.005 | E41: 0.0025 | F41: 0.01 | G41: 0.005
B43: kunstmest
B44: N2O kunstmest | D44: BBPR Miterra | J44: Grondwaterstand | M44: GEST | O44: Soil moisture class (GEST) | Q44: Water tables in relation to surface (+ above, - below)
B45: N-kunstmest | C45: grondwatertrap | D45: nitraatmeststof (KAS) | E45: ammoniummeststof | J45: 1 | K45: grondwatertrap I; GHG nvt GLG <50 | M45: 3+ | Q45: WLw | R45: WLd
B46: veen | C46: I | D46: 0.02 | E46: 0.01 | J46: 2 | K46: grondwatertrap II; GHG nvt GLG 50-80 | M46: 2+ | O46: 7+ | P46: Upper sublitoral | Q46: +250 to +140 cm | R46: +250 to +140 cm
C47: II-III | D47: 0.04 | E47: 0.02 | J47: 3 | K47: grondwatertrap III; GHG < 40 GLG 80-120 | M47: 2- | O47: 6+ | P47: Flooded (lower eulittoral) | Q47: +150 to +10 cm | R47: +140 to +0 cm
C48: IV-VII* | D48: 0.02 | E48: 0.01 | J48: 4 | K48: grondwatertrap IV; GHG > 40 GLG 80-120 | M48: 3- | O48: 5+ | P48: Wet (upper eulittoral) | Q48: + 10 to – 5 cm | R48: +0 to -10 cm
J49: 5 | K49: grondwatertrap V; GHG <40 GLG >120 | M49: 4- | O49: 4+ | P49: Semi wet (very moist) | Q49: -5 -to -15 cm | R49: -10 to -20 cm
C50: Droge | D50: Org. | E50: Org. | F50: Totale | G50: Totale N | H50: Minerale | J50: 6 | K50: grondwatertrap VI; GHG 40-80 GLG >120 | M50: 5- | O50: 3+ | P50: moist | Q50: -15 to -35 cm | R50: -20 to -45 cm
B51: Mestsoort | C51: stof | D51: stof | E51: C | F51: P2O5 | H51: N | J51: 7 | K51: grondwatertrap VII; GHG >80 GLG >120 | M51: 5- | O51: 2+ | P51: Moderate moist | Q51: -35 to -70 cm | R51: -45 to -85 cm
B52: Runderdrijfmest | C52: 88 | D52: 66 | E52: 38.4 | F52: 1.4 | G52: 5.1 | H52: 2.9 | K52: Uitkomst | O52: 2- | P52: Moderate dry | Q52: < 60 l / m2
B53: Kalverdrijfmest | C53: 21 | D53: 9 | E53: 5.2 | F53: 1.4 | G53: 2.7 | H53: 1.8 | O53: 3- | P53: Dry | Q53: 60 – 100 l / m2
B54: Runderstalmest | C54: 210 | D54: 160 | E54: 93.0 | F54: 2.9 | G54: 8.3 | H54: 2.4 | O54: 4- | P54: Very dry | Q54: 100 – 140 l / m2
B55: Varkensdrijfmest | C55: 80 | D55: 53 | E55: 30.8 | F55: 3.9 | G55: 8.1 | H55: 4.8 | O55: 5- | P55: Extremely dry | Q55: >140 l / m2
B56: Varkensdrijfmest(brijvoeding) | C56: 93 | D56: 63 | E56: 36.6 | F56: 4.3 | G56: 9.9 | H56: 5.6
B57: Drijfmestbiggenopfok | C57: 65 | D57: 43 | E57: 25 | F57: 3.5 | G57: 5.9 | H57: 3.2
B58: Zeugendrijfmest | C58: 54 | D58: 35 | E58: 20.3 | F58: 3.8 | G58: 4.6 | H58: 2.4
B59: Varkensstalmest | C59: 255 | D59: 195 | E59: 113.4 | F59: 7.5 | G59: 11.1 | H59: 3.3
B60: Kippendrijfmest | C60: 135 | D60: 85 | E60: 49.4 | F60: 6.9 | G60: 10.8 | H60: 6.4
B61: Slachtkuikenmest | C61: 610 | D61: 500 | E61: 290.7 | F61: 17.5 | G61: 35.4 | H61: 5.5
B62: Leghennenmest | C62: 702 | D62: 510 | E62: 296.5 | F62: 25.5 | G62: 29.5 | H62: 4.6
B65: Emissiefactoren
B66: % N-oxiden uit NH3 | C66: 0.15
B67: % N dat als nitraat uitspoelt | C67: 0.3
B69: Ammoniak emissies Kunstmest
B70: kunstmest nitraat | C70: 0.015 | D70: %
B71: Kunstmest ammonium | C71: 0.1 | D71: %
B73: Ammoniak emissies mest
B74: gras injectie | C74: 0.0115 | E74: CHECK MET NIR
B75: akker injectie | C75: 0.1035
B77: Leached N
B78: Nitraat N20-N | C78: 0.025 | D78: /kg N leached
B80: N-Oxiden N2O-N | C80: 0.01
C83: gewasrest | D83: N-binding
B84: Akkerbouwgewassen | C84: kg N/ha | D84: kg N/ha
C85: 0 | D85: 0 | G85: Maize
B86: pootaardappelen | C86: 26 | G86: Grass
B87: consumptieaardappelen | C87: 26
B88: zetmeelaardappelen | C88: 26
B89: wintergerst | C89: 19
B90: zomergerst | C90: 19
B91: wintertarwe | C91: 28
B92: zomertarwe | C92: 28
B93: triticale | C93: 24
B94: rogge | C94: 16
B95: haver | C95: 19
B96: corn cob mix | C96: 70
B97: korrelmais | C97: 70
B98: bruinebonen | C98: 74 | D98: 164
B99: veldbonen | C99: 16 | D99: 325
B100: groene erwten en schokkers | C100: 74 | D100: 164
B101: kapucijners | C101: 74 | D101: 164
B102: suikerbieten | C102: 174
B103: voederbieten | C103: 92
B104: boerenkool | C104: 78
B105: erwten | C105: 194 | D105: 164
B106: knolselderij | C106: 78
B107: kroten | C107: 78
B108: koolraap | C108: 78
B109: schorseneren | C109: 78
B110: spinazie | C110: 62
B111: stambonen | C111: 61 | D111: 75
B112: suikermaïs | C112: 40
B113: tuinbonen | C113: 13 | D113: 164
B114: zaaiuien | C114: 4
B115: zilveruien | C115: 4
B116: poot en plantuien | C116: 4
B117: was en bospeen | C117: 99
B118: winterpeen | C118: 99
B119: witlofwortel | C119: 78
B120: overig gr | C120: 65.5
B121: graszaad | C121: 28
B122: bloemzaden | C122: 28
B123: groentezaden | C123: 28
B124: koolzaad | C124: 42
B125: lijnzaad | C125: 42
B126: karwijzaad | C126: 37
B127: blauwmaanzaad | C127: 20
B128: cichorei | C128: 40
B129: hennep | C129: 40
B130: vlas | C130: 23
A133: Direct N2O emissions
C134: Baseline | E134: Rewetting
B135: Animal manure
B136: Applied | C136: =Input!$G$57 -> 0 | D136: kg N /ha | E136: =Input!$G$80 -> 0 | F136: kg N
B137: EF N2O-N | C137: 0.02 | D137: % | E137: 0.02 | F137: %
B138: N2O-N | C138: =C137*C136 -> 0 | E138: =E137*E136 -> 0
B139: N2O ha | C139: =C138*44/28 -> 0 | D139: N2O/ha | E139: =E138*44/28 -> 0 | F139: N2O/ha
B140: N2O site | C140: =C139*Input!$G$28 -> 0 | D140: N2O/ site | E140: =E139*Input!$G$28 -> 0 | F140: N2O/ site
B141: CO2 site | C141: =C140*'CO2-equivalents'!$B$7 -> 0 | D141: kg CO2-eq | E141: =E140*'CO2-equivalents'!$B$7 -> 0 | F141: kg CO2-eq
B143: Organic fertilizer applied
B144: Applied | C144: =Input!G59 -> 0 | D144: kg N /ha | E144: =Input!G82 -> 0 | F144: kg N
B145: EF N2O-N | C145: 0.02 | D145: % | E145: 0.02 | F145: %
B146: N2O-N | C146: =C145*C144 -> 0 | E146: =E145*E144 -> 0
B147: N2O ha | C147: =C146*44/28 -> 0 | D147: N2O/ha | E147: =E146*44/28 -> 0 | F147: N2O/ha
B148: N2O site | C148: =C147*Input!$G$28 -> 0 | D148: N2O/ site | E148: =E147*Input!$G$28 -> 0 | F148: N2O/ site
B149: CO2 site | C149: =C148*'CO2-equivalents'!$B$7 -> 0 | D149: kg CO2-eq | E149: =E148*'CO2-equivalents'!$B$7 -> 0 | F149: kg CO2-eq
B152: Grazing animals
B153: N-EXCRETION/ANIMal | C153: ='DATA '!H82 -> 0 | D153: kg/year | E153: ='DATA '!I82 -> 0 | F153: kg/year
B154: average number of animals in field | C154: =Input!G67 -> 0 | D154: amount | E154: =Input!G91 -> 0 | F154: amount
B155: average duration in days | C155: =Input!G69 -> 0 | D155: days | E155: =Input!G93 -> 0 | F155: days
B156: amount of N | C156: =C153*C154*(C155/365)/Input!G28 ->  | D156: kg N /ha | E156: =E153*E154*(E155/365)/Input!G28 ->  | F156: kg N /ha
B157: EF | C157: ='DATA '!E82 -> 0 | E157: ='DATA '!F82 -> 0
B158: N2O-N | C158: =C157*C156 ->  | E158: =E157*E156 -> 
B159: N2O ha | C159: =C158*44/28 ->  | D159: N2O/ha | E159: =E158*44/28 ->  | F159: N2O/ha
B160: N2O site | C160: =C159*Input!$G$28 ->  | D160: N2O/ site | E160: =E159*Input!$G$28 ->  | F160: N2O/ site
B161: CO2 site | C161: =C160*'CO2-equivalents'!$B$7 ->  | D161: kg CO2-eq | E161: =E160*'CO2-equivalents'!$B$7 ->  | F161: kg CO2-eq
B163: Synthetic Fertilizer
B164: amount applied | C164: =Input!G63 -> 0 | D164: kg N | E164: =Input!G86 -> 0 | F164: kg N
B165: EF | C165: =IF('DATA '!C91=1,'DATA '!D88,'DATA '!D89) -> 0.01 | E165: =IF('DATA '!C92=1,'DATA '!D88,'DATA '!D89) -> 0.02
B166: N2O-N | C166: =C165*C164 -> 0 | E166: =E165*E164 -> 0
B167: N2O ha | C167: =C166*44/28 -> 0 | D167: N2O/ha | E167: =E166*44/28 -> 0 | F167: N2O/ha
B168: N2O site | C168: =C167*Input!$G$28 -> 0 | D168: N2O/ site | E168: =E167*Input!$G$28 -> 0 | F168: N2O/ site
B169: CO2 site | C169: =C168*'CO2-equivalents'!$B$7 -> 0 | D169: kg CO2-eq | E169: =E168*'CO2-equivalents'!$B$7 -> 0 | F169: kg CO2-eq
B171: Crop residues
B172: Type of crop | C172: ='DATA '!C101 -> 6 | D172: name | E172: ='DATA '!C104 -> 6 | F172: name
B173: residue left on field | C173: ='DATA '!C99 -> 2 | D173: yes/no | E173: ='DATA '!C100 -> 1 | F173: yes/no
B174: N gehalte | C174: 0.015 | E174: 0.015
B175: cropresidue fraction of total yield | C175: =IF(C173=1,IF(C172=1,'crop residue paludi'!K5,IF(C172=2,'crop residue paludi'!K21,0)),0) -> 0 | E175: =IF(E173=1,IF(E172=1,'crop residue paludi'!K5,IF(E172=2,'crop residue paludi'!K21,0)),0) -> 0
B176: amount applied | C176: =C175*Input!G71*1000*C174 -> 0 | D176: kg N | E176: =E175*Input!G95*1000*E174 -> 0 | F176: kg N
B177: EF | C177: 0.02 | E177: 0.02
B178: N2O-N | C178: =C177*C176 -> 0 | E178: =E177*E176 -> 0
B179: N2O ha | C179: =C178*44/28 -> 0 | D179: N2O/ha | E179: =E178*44/28 -> 0 | F179: N2O/ha
B180: N2O site | C180: =C179*Input!$G$28 -> 0 | D180: N2O/ site | E180: =E179*Input!$G$28 -> 0 | F180: N2O/ site
B181: CO2 site | C181: =C180*'CO2-equivalents'!$B$7 -> 0 | D181: kg CO2-eq | E181: =E180*'CO2-equivalents'!$B$7 -> 0 | F181: kg CO2-eq
B183: N2O Basis waarde managed soils
B184: N2O ha | C184: 8 | D184: N2O/ha | E184: 8 | F184: N2O/ha
B185: N2O site | C185: =C184*Input!$G$28 -> 0 | D185: N2O/ site | E185: =E184*Input!$G$28 -> 0 | F185: N2O/ site
B186: CO2 site | C186: =C185*'CO2-equivalents'!$B$7 -> 0 | D186: kg CO2-eq | E186: =E185*'CO2-equivalents'!$B$7 -> 0 | F186: kg CO2-eq
C188: Baseline | E188: Rewetting
B189: TOTAL direct N2O emissions site | C189: =(C186+C181+C169+C161+C149+C141)/1000 ->  | D189: CO2-eq | E189: =(E186+E181+E169+E161+E149+E141)/1000 ->  | F189: CO2-eq
A191: INDIRECT N2O emissions
C193: Baseline | E193: Rewetting
B194: Ammonia
B195: Applied animal | C195: =C156+C136 ->  | D195: kg N /ha | E195: =E156+E136 ->  | F195: kg N
B196: EF Ammonia | C196: =C75 -> 0.1035 | E196: =C75 -> 0.1035 | F196: % | G196: CHECK INBOUWEN VERSCHIL GRASLAND EN AKKER
B197: Vervluchtging N | C197: =C195*C196 ->  | D197: kg N /ha | E197: =E195*E196 ->  | F197: kg N /ha
B198: EF N2O-N | C198: 0.01 | E198: 0.01
B199: N2O-N | C199: =C197*C198 ->  | E199: =E198*E197 -> 
B200: N2O ha | C200: =C199*44/28 ->  | D200: N2O/ha | E200: =E199*44/28 ->  | F200: N2O/ha
B201: N2O site | C201: =C200*Input!$G$28 ->  | D201: N2O/ site | E201: =E200*Input!$G$28 ->  | F201: N2O/ site
B202: CO2 site | C202: =C201*'CO2-equivalents'!$B$7 ->  | D202: kg CO2-eq | E202: =E201*'CO2-equivalents'!$B$7 ->  | F202: kg CO2-eq
B204: Fertilizer applied | C204: =C164 -> 0 | D204: kg N /ha | E204: =E164 -> 0 | F204: kg N /ha
B205: EF Ammonia | C205: =IF('DATA '!C91=1,'DATA '!F88,'DATA '!F89) -> 0.1 | E205: =IF('DATA '!C92=1,'DATA '!F88,'DATA '!F89) -> 0.015
B206: Vervluchtging N | C206: =C204*C205 -> 0 | E206: =E204*E205 -> 0
B207: EF N2O-N | C207: =C198 -> 0.01 | E207: 0.01
B208: N2O-N | C208: =C206*C207 -> 0 | E208: =E207*E206 -> 0
B209: N2O ha | C209: =C208*44/28 -> 0 | D209: N2O/ha | E209: =E208*44/28 -> 0 | F209: N2O/ha
B210: N2O site | C210: =C209*Input!$G$28 -> 0 | D210: N2O/ site | E210: =E209*Input!$G$28 -> 0 | F210: N2O/ site
B211: CO2 site | C211: =C210*'CO2-equivalents'!$B$7 -> 0 | D211: kg CO2-eq | E211: =E210*'CO2-equivalents'!$B$7 -> 0 | F211: kg CO2-eq
B213: N-oxide
B214: N | C214: =C204+C195 ->  | E214: =E204+E195 -> 
B215: EF N-oxide uit Ammonia | C215: =C66 -> 0.15 | E215: =C66 -> 0.15
B216: Vervluchtging N | C216: =C214*C215 ->  | E216: =E214*E215 -> 
B217: EF N2O-N | C217: =C80 -> 0.01 | E217: =C80 -> 0.01
B218: N2O-N | C218: =C216*C217 ->  | E218: =E217*E216 -> 
B219: N2O ha | C219: =C218*44/28 ->  | D219: N2O/ha | E219: =E218*44/28 ->  | F219: N2O/ha
B220: N2O site | C220: =C219*Input!$G$28 ->  | D220: N2O/ site | E220: =E219*Input!$G$28 ->  | F220: N2O/ site
B221: CO2 site | C221: =C220*'CO2-equivalents'!$B$7 ->  | D221: kg CO2-eq | E221: =E220*'CO2-equivalents'!$B$7 ->  | F221: kg CO2-eq
B223: Nitrate
B224: applied animal | C224: =C136+C144 -> 0 | E224: =E136+E144 -> 0
B225: applied fertilizer | C225: =C164 -> 0 | E225: =E164 -> 0
B226: applied remaining | C226: =C144+C175 -> 0 | E226: =E144+E176 -> 0
B227: EF nitrate leaching | C227: =C67 -> 0.3 | E227: =C67 -> 0.3
B228: Nitrate leached | C228: =SUM(C224:C226)*C227 -> 0 | E228: =SUM(E224:E226)*E227 -> 0
B229: EF N2O-N | C229: =C78 -> 0.025 | E229: =C78 -> 0.025
B230: N2O-N | C230: =C228*C229 -> 0 | E230: =E229*E228 -> 0
B231: N2O ha | C231: =C230*44/28 -> 0 | D231: N2O/ha | E231: =E230*44/28 -> 0 | F231: N2O/ha
B232: N2O site | C232: =C231*Input!$G$28 -> 0 | D232: N2O/ site | E232: =E231*Input!$G$28 -> 0 | F232: N2O/ site
B233: CO2 site | C233: =C232*'CO2-equivalents'!$B$7 -> 0 | D233: kg CO2-eq | E233: =E232*'CO2-equivalents'!$B$7 -> 0 | F233: kg CO2-eq
C235: Baseline | E235: Rewetting
B236: TOTAL indirect N2O emissions site | C236: =(C233+C221+C211+C202)/1000 ->  | D236: CO2-eq | E236: =(E233+E221+E211+E2002)/1000 ->  | F236: CO2-eq

Sheet fossil energy (hidden)
B4: diesel | C4: 3.35 | D4: kg CO2/liter
B5: electricity | C5: 0.581 | D5: kg CO2/ kwh
D9: Baseline | F9: Rewetting
C10: Diesel | D10: =Input!G104 -> 0 | E10: l | F10: =Input!G111 -> 0 | G10: l
C11: CO2 site | D11: =D10*C4 -> 0 | E11: kg CO2-eq | F11: =F10*C4 -> 0 | G11: kg CO2-eq
C14: Electricity | D14: =Input!G106 -> 0 | E14: kWh | F14: =Input!G113 -> 0 | G14: kWh
C15: CO2 site | D15: =D14*C5 -> 0 | E15: kg CO2-eq | F15: =F14*C5 -> 0 | G15: kg CO2-eq
D18: Baseline | F18: Rewetting
C19: TOTAL fossil energy | D19: =D11+D15 -> 0 | E19: kg CO2-eq | F19: =F11+F15 -> 0 | G19: kg CO2-eq
D20: =D19/1000 -> 0 | E20: tCO2-eq | F20: =F19/1000 -> 0 | G20: tCO2-eq

Sheet crop use (hidden)
B2: Product use | C2: lifetime longer than 10 year | D2: replace fossil product | E2: =Input!G95 -> 0
A3: 1 | B3: building material e.g. insulation, taching, timber | C3: yes | D3: no | E3: =IF(OR(C3="yes",D3="yes"),1,0) -> 1 | F3: =$E$2*E3 -> 0 | G3: =IF('DATA '!$C$103='crop use'!A3,'crop use'!F3,0) -> 0
A4: 2 | B4: bedding material | C4: no | D4: no | E4: =IF(OR(C4="yes",D4="yes"),1,0) -> 0 | F4: =$E$2*E4 -> 0 | G4: =IF('DATA '!$C$103='crop use'!A4,'crop use'!F4,0) -> 0
A5: 3 | B5: food application | C5: no | D5: no | E5: 0 | F5: 0 | G5: =IF('DATA '!$C$103='crop use'!A5,'crop use'!F5,0) -> 0
A6: 4 | B6: fodder/ feed application | C6: no | D6: no | E6: 0 | F6: 0 | G6: =IF('DATA '!$C$103='crop use'!A6,'crop use'!F6,0) -> 0
A7: 5 | B7: energie use: biogas, combustion, wood etc | C7: no | D7: yes | E7: 1 | F7: 0 | G7: =IF('DATA '!$C$103='crop use'!A7,'crop use'!F7,0) -> 0
A8: 6 | B8: paper | C8: yes | D8: no | E8: 1 | F8: 0 | G8: =IF('DATA '!$C$103='crop use'!A8,'crop use'!F8,0) -> 0
A9: 7 | B9: extraction of ingredients/buildingblocks: protein, fibres, cellulose | C9: no | D9: yes | E9: 1 | F9: 0 | G9: =IF('DATA '!$C$103='crop use'!A9,'crop use'!F9,0) -> 0
A10: 8 | B10: high quality substrate in horticulture | C10: no | D10: yes | E10: 1 | F10: 0 | G10: =IF('DATA '!$C$103='crop use'!A10,'crop use'!F10,0) -> 0
A11: 9 | B11: other uses/ unknown | C11: no | D11: no | E11: 0 | F11: 0 | G11: =IF('DATA '!$C$103='crop use'!A11,'crop use'!F11,0) -> 0
G12: =SUM(G3:G11) -> 0
B13: Paludi crops | C13: carbon content | D13: carbon gewicht | E13: ton co2
A14: 1 | B14: Cattail (Typha sp.) | C14: 0.475 | D14: =C14*$G$12 -> 0 | E14: =D14*$D$22 -> 0 | F14: =IF('DATA '!$C$104='crop use'!A14,'crop use'!E14,0) -> 0
A15: 2 | B15: Reed (Phragmites australis) | C15: 0.475 | D15: =C15*$G$12 -> 0 | E15: =D15*$D$22 -> 0 | F15: =IF('DATA '!$C$104='crop use'!A15,'crop use'!E15,0) -> 0
A16: 3 | B16: Peat moss (Sphagnum sp.) | C16: 0.475 | D16: 0 | E16: 0 | F16: =IF('DATA '!$C$104='crop use'!A16,'crop use'!E16,0) -> 0
A17: 4 | B17: Grasses like reed canary grass | C17: 0.475 | D17: 0 | E17: 0 | F17: =IF('DATA '!$C$104='crop use'!A17,'crop use'!E17,0) -> 0
A18: 5 | B18: Alder (Alnus sp.) | C18: 0.475 | D18: 0 | E18: 0 | F18: =IF('DATA '!$C$104='crop use'!A18,'crop use'!E18,0) -> 0
A19: 6 | B19: Other | C19: 0.475 | D19: 0 | E19: 0 | F19: =IF('DATA '!$C$104='crop use'!A19,'crop use'!E19,0) -> 0
F20: =SUM(F14:F19)*-1 -> 0 | G20: ton co2/ha
F21: =F20*Input!G28 -> 0 | G21: ton co2/ site
C22: omreken factor C:CO2 | D22: =44/12 -> 3.666666667

Sheet C content soil (hidden)
A2: 1 | B2: Select peat type | C2: BD (g/cm3) | D2: C content (%) | E2: C content (kg C/m2/cm thickness
A3: 2 | B3: Sphagnum | C3: 0.076 | D3: 46 | E3: =(C3*(D3/100))*(100*100)/1000 -> 0.3496 | H3: From: Loisel et al. 2014 - A database and synthesis of northern peatland soil properties and Holocen carbon and nitrogen accumulation. The Holocene 1-15
A4: 3 | B4: Herbaceous | C4: 0.118 | D4: 50.5 | E4: =(C4*(D4/100))*(100*100)/1000 -> 0.5959
A5: 4 | B5: Woody | C5: 0.108 | D5: 50.9 | E5: 0.54972
A6: 5 | B6: Brown moss | C6: 0.177 | D6: 47.9 | E6: 0.84783
A7: 6 | B7: Unknown | C7: 0.118 | D7: 46.8 | E7: 0.55224
A8: 7 | B8: Humified | C8: 0.192 | D8: 47.4 | E8: 0.91008
B11: User input | D11: User input
B12: Peat Type | C12: kg/C/ha/cm thickness | D12: Peat thickness | E12: C-stock (ton C/ha) | F12: C-stock (tCO2-eq/ha)
B13: 1 | C13: =VLOOKUP(B13,A2:E8,5) -> C content (kg C/m2/cm thickness | D13: =Input!G36 -> 0 | E13: =C13*D13*10000/1000 ->  | F13: =ROUND(E13*(44/12),1) -> 

Sheet CO2-equivalents (hidden)
A1: Source: Myhre et al. 2013 - Anthropogenic and natural radiative forcing. In: IPCC 2013 0 Climate Change 2013: the natural science basis (Ch. 8).
A2: GWP's are given with and without climate - carbon feedbacks for CH4 and N2O, even though Myhre et al. State that "it is likely that including the climate–carbon feedback ... provides a better estimate..." the convention is to use GWP's without climate-carbon feedbacks.
A3: numbers used in SET are for 100 yr (GWP100) and without climate - carbon feedbacks | K3: Table from Myhre et al.
B4: CO2-eq (kg CO2-eq / kg gas)
A5: CO2 | B5: 1
A6: CH4 | B6: 28
A7: N2O | B7: 265

Sheet mol masses (hidden)
A1: Item | B1: mol mass
A2: C | B2: 12.01
A3: O | B3: 16
A4: N | B4: 14.01
A5: H | B5: 1.008
A6: CO2 | B6: =B2+2*B3 -> 44.01
A7: CH4 | B7: =B2+4*B5 -> 16.042
A8: N2O | B8: =2*B4+B3 -> 44.02

Sheet Soil Management (hidden)
A1: Energie
A3: Management
A5: Bodembewerking
A6: Brandstofverbruik verschil per 5 cm werkdiepte | B6: 0.1
A7: Brandstof verschil tussen 4 en 7 schaar | B7: 0.7333333333
A8: Brandstof verbruik zonder ondergronders min | B8: 0.1
A9: Brandstof verbruik zonder vorenpakker | B9: 0.05
A10: Brandstofverbruik brede beitels tov smalle | B10: 0.1
A11: Verschil rechte tand tov kromme tand ( liter ) | B11: 1.3
A12: Brandstofverbruik ganzevoet beitels tov brede | B12: 0.1
A13: triltand tov vaste tand | B13: 0.05
A14: Schijveneg werkdiepte | B14: 0.05
A15: Löss woelen tov zand | B15: 0.1
A16: Löss cultivateren tov zand | B16: 0.1
A17: Löss schijveneg tov zand | B17: 0.05
A18: Klei woelen tov löss | B18: 0.1
A19: Klei cultivateren tov löss | B19: 0.1
A20: Klei schijveneg tov löss | B20: 0.05
A21: Brandstofverbruik verschil per 5 cm strip till | B21: 0.05
A22: Brandstofverbruik verschil per grondsoort strip till | B22: 0.05
A23: Verschil brandstofverbruik per 5 cem cultivator | B23: 0.1
A24: Smal tov brede beitel | B24: 0.05 | C24: meer
A25: Triltand smal tov triltand brede beitel | B25: 0.1
A26: klei tov loss striptill | B26: 0.05
S29: diesel toeslag grondsoort
E30: Werkdiepte | K30: werkdiepten | O30: diesel toeslag werkdiepte | S30: zand | T30: los | U30: klei | V30: veen
B31: Woelen | C31: Kromme | D31: Smalle | E31: 16-20 | F31: Schijveneg | I31: 1 | J31: Cultivator schijf | K31: 5-10 | L31: 11-15 | M31: 16-20 | O31: 1 | P31: 1.05 | Q31: 1.1 | R31: 1 | S31: 1 | T31: 1.05 | U31: 1.1 | V31: 1.05
C32: Rechte | D32: Brede | E32: 21-25 | F32: Cultivator | I32: 2 | J32: Cultivator vaste tand | K32: 5-10 | L32: 11-15 | M32: 16-20 | O32: 1 | P32: 1.369230769 | Q32: 1.6 | R32: 1 | S32: 1 | T32: 1.1 | U32: 1.2 | V32: 1.1
D33: Ganzenvoet | E33: 26-30 | F33: Rotorkopeg | I33: 3 | J33: Cultivator veertand | K33: 5-10 | L33: 11-15 | M33: 16-20 | O33: 1 | P33: 1.369230769 | Q33: 1.6 | R33: 1 | S33: 1 | T33: 1.1 | U33: 1.2 | V33: 1.1
E34: 31-35 | F34: Rotorkopeg+zaaimachine | I34: 4 | J34: Stoppelcultivator | K34: 5-10 | L34: 11-15 | M34: 16-20 | O34: 1 | P34: 1.369230769 | Q34: 1.6 | R34: 1 | S34: 1 | T34: 1.1 | U34: 1.2 | V34: 1.1
F35: Geen | I35: 5 | J35: Frontpakker | O35: 1 | P35: 1 | Q35: 1 | R35: 1 | S35: 1 | T35: 1 | U35: 1 | V35: 1
B36: Cultivateren | C36: Vaste | D36: Smalle | E36: 5-10 | I36: 6 | J36: Grondfrees | O36: 1 | P36: 1 | Q36: 1 | R36: 1 | S36: 1 | T36: 1.05 | U36: 1.1 | V36: 1.05
C37: Triltand | D37: Brede | E37: 11-15 | I37: 7 | J37: Hakenfrees | O37: 1 | P37: 1 | Q37: 1 | R37: 1 | S37: 1 | T37: 1.05 | U37: 1.1 | V37: 1.05
D38: Ganzenvoet | E38: 16-20 | I38: 8 | J38: Rotorkopeg | K38: 5-10 | L38: 11-15 | M38: 16-20 | O38: 1 | P38: 1.1 | Q38: 1.2 | R38: 1 | S38: 1 | T38: 1.05 | U38: 1.1 | V38: 1.05
B39: Schijveneg | C39: 2 | E39: 5-10 | I39: 9 | J39: Schijveneg | K39: 5-10 | L39: 11-15 | M39: 16-20 | O39: 1 | P39: 1.05 | Q39: 1.1 | R39: 1 | S39: 1 | T39: 1.05 | U39: 1.1 | V39: 1.05
C40: 4 | E40: 11-15 | I40: 10 | J40: Spitmachine | K40: 16-20 | L40: 21-25 | M40: 26-30 | O40: 1 | P40: 1.084656085 | Q40: 1.169312169 | R40: 1 | S40: 1 | T40: 1.1 | U40: 1.2 | V40: 1.1
E41: 16-20 | I41: 11 | J41: Volveldsfrees | O41: 1 | P41: 1 | Q41: 1 | R41: 1 | S41: 1 | T41: 1.05 | U41: 1.1 | V41: 1.05
B42: Mulchzaai | C42: Schijveneg | D42: Schijfkoulters | E42: 5-10 | I42: 12 | J42: Voorzetwoeler | K42: 16-20 | L42: 21-25 | M42: 26-30 | N42: 31-35 | O42: 0.7 | P42: 0.8 | Q42: 0.9 | R42: 1 | S42: 1 | T42: 1.1 | U42: 1.2 | V42: 1.1
C43: Triltanden | D43: Slangenaanvoer | E43: 11-15 | I43: 13 | J43: Vorenpakker enkel of dubbel | O43: 1 | P43: 1 | Q43: 1 | R43: 1 | S43: 1 | T43: 1.05 | U43: 1.1 | V43: 1.05
C44: Schijveneg+triltanden | E44: 16-20 | I44: 14 | J44: Vorenpakker frontopbouw | O44: 1 | P44: 1 | Q44: 1 | R44: 1 | S44: 1 | T44: 1.05 | U44: 1.1 | V44: 1.05
B45: Strip_till | C45: 4 | E45: 5-10 | I45: 15 | J45: Wentelploeg | K45: 16-20 | L45: 21-25 | M45: 26-30 | O45: 1 | P45: 1 | Q45: 1 | R45: 1 | S45: 1 | T45: 1.1 | U45: 1.2 | V45: 1.1
C46: 6 | E46: 11-15 | I46: 16 | J46: Woeler | K46: 16-20 | L46: 21-25 | M46: 26-30 | N46: 31-35 | O46: 0.7 | P46: 0.8 | Q46: 0.9 | R46: 1 | S46: 1 | T46: 1.1 | U46: 1.2 | V46: 1.1
C47: 8 | E47: 16-20 | I47: 17 | J47: Zaaibedcombinatie gedragen | O47: 1 | P47: 1 | Q47: 1 | R47: 1 | S47: 1 | T47: 1.05 | U47: 1.1 | V47: 1.05
B48: Directzaai | C48: Tarwe | I48: 18 | J48: Duwploeg | K48: 16-20 | L48: 21-25 | M48: 26-30 | O48: 1 | P48: 1 | Q48: 1 | R48: 1 | S48: 1 | T48: 1.1 | U48: 1.2 | V48: 1.1
C49: Groenbemester | I49: 19 | J49: Rupsbanden | O49: 1 | P49: 1 | Q49: 1 | R49: 1 | S49: 1 | T49: 1 | U49: 1 | V49: 1
C50: Maïs | I50: 20 | J50: Techniek + vasterijpaden | O50: 1 | P50: 1 | Q50: 1 | R50: 1 | S50: 1 | T50: 1 | U50: 1 | V50: 1
J52: 1
I53: 3 | J53: =IF(ISNA(VLOOKUP(J$52,$I$31:$N$50,$I51,FALSE)),"",VLOOKUP(J$52,$I$31:$N$50,$I53,FALSE)) -> 5-10 | K53: 10 | L53: 0.0001 | M53: 10
I54: 4 | J54: =IF(ISNA(VLOOKUP(J$52,$I$31:$N$50,$I54,FALSE)),"",VLOOKUP(J$52,$I$31:$N$50,$I54,FALSE)) -> 11-15 | K54: 15 | L54: 0.0001 | M54: 15
B55: Ploeg | C55: Ja | D55: Ja | E55: 16-20 | F55: 2 | I55: 5 | J55: =IF(ISNA(VLOOKUP(J$52,$I$31:$N$50,$I55,FALSE)),"",VLOOKUP(J$52,$I$31:$N$50,$I55,FALSE)) -> 16-20 | K55: 20 | L55: 0.0001 | M55: 20
C56: Nee | D56: Nee | E56: 21-25 | F56: 3 | I56: 6 | J56: =IF(ISNA(VLOOKUP(J$50,$I$29:$N$48,$I56,FALSE)),"",VLOOKUP(J$50,$I$29:$N$48,$I56,FALSE)) ->  | K56: 0.0001 | L56: 0.0001 | M56: 0.0001
E57: 26-30 | F57: 4 | I57: Uitkomst | J57: 2 | K57: 15 | L57: 0.0001 | M57: 15
F58: 5 | J58: =6+J57 -> 8
F59: 6
F60: 7 | I60: diesel (l/ha) | J60: ='grondbew techniek (1)'!J31*'grondbew techniek (1)'!T31*('grondbew techniek (1)'!U31/100)*'grondbew techniek (1)'!N31 -> 20.549375
F61: 8 | I61: toeslag% werkdiepte | J61: =IF(ISNA(VLOOKUP(J$52,#REF!,J58,FALSE)),"",VLOOKUP(J$52,$I$31:$U$50,J58,FALSE)) -> 1.05
B62: Spitmachine | E62: 16-20 | I62: toeslag% grondsoort | J62: =IF(ISNA(VLOOKUP(J$52,#REF!,$D$80,FALSE)),"",VLOOKUP(J$52,$I$31:$U$50,$D$80,FALSE)) -> 1
E63: 21-25 | I63: diesel totaal (l/ha) | J63: =J60*J61*J62 -> 21.57684375
E64: 26-30
B75: 1 | C75: Zand | E75: 5
B76: 2 | C76: Zeeklei
B77: 3 | C77: Rivierklei
B78: 4 | C78: Veen/ dalgrond
B79: 5 | C79: Loss | D79: 11
D80: 11
A82: Broeikasgas emissies
A84: diesel | B84: 3.135 | C84: kg Co2/liter
B86: Trekker met oplegger (43%,0%) Diesel tonkm 80 g CO2
C89: bron kwin 2012 | G89: bron: Countus | K89: bron kwin 2012 | O89: bron kwin 2012 | P89: bron kwin 2012 | Q89: bron Agentschap NL 2013
C90: prijs aanschaf | D90: prijs aanschaf min | E90: prijs aanschaf max | F90: gem prijs aanschaf | G90: vermogen | H90: vermogen min | I90: vermogen max | J90: gem vermogen | K90: taaktijden | L90: taaktijd min | M90: taaktijd max | N90: gem taaktijd | O90: gem. afschrijving | P90: gem. onderhoud | Q90: MIA | R90: Vamil | T90: brandstofverbruik | U90: belasting van de motor
C91: euro | D91: euro | E91: euro | F91: euro | G91: kW | H91: kW | I91: kW | J91: kW | K91: uur/ha | L91: uur/ha | M91: uur/ha | N91: uur/ha | O91: % | P91: % | T91: l/ kW | U91: % | V91: gewicht (kg) | W91: countus waarden
A92: 1 | B92: Cultivator schijf | C92: 2500-10000 | D92: 2500 | E92: 10000 | F92: 6250 | G92: 70-150 | H92: 70 | I92: 150 | J92: 110 | K92: 0,75-1 | L92: 0.75 | M92: 1 | N92: 0.875 | O92: 6 | P92: 2.5 | Q92: 0 | R92: 0 | T92: 0.305 | U92: 70 | V92: 1750 | W92: 1000 - 2500
A93: 2 | B93: Cultivator vaste tand | C93: 3750-20000 | D93: 3750 | E93: 20000 | F93: 11875 | G93: 70-150 | H93: 70 | I93: 150 | J93: 110 | K93: 0,75-1 | L93: 0.75 | M93: 1 | N93: 0.875 | O93: 6 | P93: 3.5 | Q93: 0 | R93: 0 | T93: 0.305 | U93: 70 | V93: 1125 | W93: 750 - 1500
A94: 3 | B94: Cultivator veertand | C94: 5130-35000 | D94: 5130 | E94: 35000 | F94: 20065 | G94: 70-150 | H94: 70 | I94: 150 | J94: 110 | K94: 0,75-1 | L94: 0.75 | M94: 1 | N94: 0.875 | O94: 6 | P94: 2.5 | Q94: 0 | R94: 0 | T94: 0.305 | U94: 70 | V94: 1125 | W94: 750 - 1500
A95: 4 | B95: Stoppelcultivator | C95: 4000-6000 | D95: 4000 | E95: 6000 | F95: 5000 | G95: 70-125 | H95: 70 | I95: 125 | J95: 97.5 | K95: 0,75-1 | L95: 0.75 | M95: 1 | N95: 0.875 | O95: 6 | P95: 3 | Q95: 0 | R95: 0 | T95: 0.305 | U95: 70 | V95: 1125 | W95: 750 - 1500
A96: 5 | B96: Frontpakker | C96: 3500-6000 | D96: 3500 | E96: 6000 | F96: 4750 | G96: 50 | H96: 50 | I96: 50 | J96: 50 | K96: 0,75-1 | L96: 0.75 | M96: 1 | N96: 0.875 | O96: 7.5 | P96: 2.5 | Q96: 0 | R96: 0 | T96: 0.305 | U96: 70 | V96: 1125 | W96: 750 - 1500
A97: 6 | B97: Grondfrees | C97: 950-11000 | D97: 950 | E97: 11000 | F97: 5975 | G97: 70-125 | H97: 70 | I97: 125 | J97: 97.5 | K97: 1,5-2,5 | L97: 1.5 | M97: 2.5 | N97: 2 | O97: 9 | P97: 3 | Q97: 0 | R97: 0 | T97: 0.305 | U97: 70 | V97: 1500 | W97: 1000 - 2000
A98: 7 | B98: Hakenfrees | C98: 6000-16800 | D98: 6000 | E98: 16800 | F98: 11400 | G98: 70-125 | H98: 70 | I98: 125 | J98: 97.5 | K98: 1,5-2,5 | L98: 1.5 | M98: 2.5 | N98: 2 | O98: 9 | P98: 3 | Q98: 0 | R98: 0 | T98: 0.305 | U98: 70 | V98: 1500 | W98: 1000 - 2000
A99: 8 | B99: Rotorkopeg | C99: 8000-44000 | D99: 8000 | E99: 44000 | F99: 26000 | G99: 70-150 | H99: 70 | I99: 150 | J99: 110 | K99: 0,8-1,2 | L99: 0.8 | M99: 1.2 | N99: 1 | O99: 7.5 | P99: 3.5 | Q99: 0 | R99: 0 | T99: 0.305 | U99: 70 | V99: 1325 | W99: 750 - 2000
A100: 9 | B100: Schijveneg | C100: 4500-50000 | D100: 4500 | E100: 50000 | F100: 27250 | G100: 70-150 | H100: 70 | I100: 150 | J100: 110 | K100: 0,8-1,2 | L100: 0.8 | M100: 1.2 | N100: 1 | O100: 7.5 | P100: 3.5 | Q100: 0 | R100: 0 | T100: 0.305 | U100: 70 | V100: 1750 | W100: 1000 - 2500
A101: 10 | B101: Spitmachine | C101: 25000-42000 | D101: 25000 | E101: 42000 | F101: 33500 | G101: 70-150 | H101: 70 | I101: 150 | J101: 110 | K101: 1,5-2 | L101: 1.5 | M101: 2 | N101: 1.75 | O101: 9 | P101: 3.5 | Q101: 0 | R101: 0 | T101: 0.305 | U101: 70 | V101: 1750 | W101: 1001 - 2500
A102: 11 | B102: Volveldsfrees | C102: 14500-20000 | D102: 14500 | E102: 20000 | F102: 17250 | G102: 70-125 | H102: 70 | I102: 125 | J102: 97.5 | K102: 1,5-2,5 | L102: 1.5 | M102: 2.5 | N102: 2 | O102: 9 | P102: 3.5 | Q102: 0 | R102: 0 | T102: 0.305 | U102: 70 | V102: 1500 | W102: 1000 - 2000
A103: 12 | B103: Voorzetwoeler | C103: 5300-8000 | D103: 5300 | E103: 8000 | F103: 6650 | G103: 70-125 | H103: 70 | I103: 125 | J103: 97.5 | K103: 0,8-1,2 | L103: 0.8 | M103: 1.2 | N103: 1 | O103: 4.5 | P103: 2 | Q103: 0 | R103: 0 | T103: 0.305 | U103: 70 | V103: 750 | W103: 500 - 1000
A104: 13 | B104: Vorenpakker enkel of dubbel | C104: 2000-9800 | D104: 2000 | E104: 9800 | F104: 5900 | G104: 40-70 | H104: 40 | I104: 70 | J104: 55 | K104: 0.5 | L104: 0.5 | M104: 0.5 | N104: 0.5 | O104: 7.5 | P104: 1.5 | Q104: 0 | R104: 0 | S104: extra | T104: 0.305 | U104: 70 | V104: 1125 | W104: 750 - 1500
A105: 14 | B105: Vorenpakker frontopbouw | C105: 3000-15000 | D105: 3000 | E105: 15000 | F105: 9000 | G105: 40-70 | H105: 40 | I105: 70 | J105: 55 | K105: 0.5 | L105: 0.5 | M105: 0.5 | N105: 0.5 | O105: 7.5 | P105: 1.5 | Q105: 0 | R105: 0 | S105: extra | T105: 0.305 | U105: 70 | V105: 1125 | W105: 750 - 1500
A106: 15 | B106: Wentelploeg | C106: 20000-55000 | D106: 20000 | E106: 55000 | F106: 37500 | G106: 70-150 | H106: 70 | I106: 150 | J106: 110 | K106: 1,5-2 | L106: 1.5 | M106: 2 | N106: 1.75 | O106: 7.5 | P106: 5 | Q106: 0 | R106: 0 | T106: 0.305 | U106: 70 | V106: 2250 | W106: 1500 - 3000
A107: 16 | B107: Woeler | C107: 2000-14000 | D107: 2000 | E107: 14000 | F107: 8000 | G107: 70-100 | H107: 70 | I107: 100 | J107: 85 | K107: 0,8-1,2 | L107: 0.8 | M107: 1.2 | N107: 1 | O107: 4.5 | P107: 2 | Q107: 0 | R107: 0 | T107: 0.305 | U107: 70 | V107: 750 | W107: 500 - 1000
A108: 17 | B108: Zaaibedcombinatie gedragen | C108: 3500-25000 | D108: 3500 | E108: 25000 | F108: 14250 | G108: 70-125 | H108: 70 | I108: 125 | J108: 97.5 | K108: 0,5-1 | L108: 0.5 | M108: 1 | N108: 0.75 | O108: 6 | P108: 2 | Q108: 0 | R108: 0 | T108: 0.305 | U108: 70 | V108: 1250 | W108: 500 - 2000
A109: 18 | B109: Duwploeg | C109: 15000-20000 | D109: 15000 | E109: 20000 | F109: 17500 | G109: 40-70 | H109: 40 | I109: 70 | J109: 55 | K109: 0.5 | L109: 0.5 | M109: 0.5 | N109: 0.5 | O109: 7.5 | P109: 5 | Q109: 0 | R109: 0 | S109: extra | T109: 0.305 | U109: 70 | V109: 1500 | W109: 1000 - 2000
A110: 19 | B110: Rupsbanden | O110: ? | P110: ? | Q110: 0 | R110: 0 | T110: 0.305 | U110: 70 | V110: 500 | W110: 500
A111: 20 | B111: Techniek + vasterijpaden | O111: ? | P111: ? | Q111: 0 | R111: 0 | T111: 0.305 | U111: 70 | V111: 0.1
A114: Oogsten
B117: 2 | C117: 3 | D117: 4 | E117: 5 | F117: 6 | G117: 7 | H117: 8 | I117: 9 | J117: 10 | K117: 11 | L117: 12 | M117: 13 | N117: 14 | O117: 15 | P117: 16 | Q117: 17 | R117: 18 | S117: 19 | T117: 20 | U117: 21 | V117: 22
A118: Rekenwaarde | B118: Check
A119: 1 | B119: =IF(ISNA(VLOOKUP($A$32,$A$5:$U$24,B117,FALSE)),"",VLOOKUP($A$32,$A$2:$U$24,B117,FALSE)) ->  | C119: =IF(ISNA(VLOOKUP($A$32,$A$5:$U$24,C117,FALSE)),"",VLOOKUP($A$32,$A$2:$U$24,C117,FALSE)) ->  | D119: =IF(ISNA(VLOOKUP($A$32,$A$5:$U$24,D117,FALSE)),"",VLOOKUP($A$32,$A$2:$U$24,D117,FALSE)) ->  | F119: =IF(ISNUMBER(F121),F121,VLOOKUP($A$32,$A$2:$U$24,F117,FALSE)) ->  | J119: =IF(ISNUMBER(J121),J121,VLOOKUP($A$32,$A$2:$U$24,J117,FALSE)) ->  | N119: =IF(ISNUMBER(N121),N121,VLOOKUP($A$32,$A$2:$U$24,N117,FALSE)) ->  | O119: =IF(ISNUMBER(O121),O121,VLOOKUP($A$32,$A$2:$U$24,O117,FALSE)) ->  | P119: =IF(ISNUMBER(P121),P121,VLOOKUP($A$32,$A$2:$U$24,P117,FALSE)) ->  | T119: =IF(ISNUMBER(T121),T121,VLOOKUP($A$32,$A$2:$U$24,T117,FALSE)) ->  | U119: =IF(ISNUMBER(U121),U121,VLOOKUP($A$32,$A$2:$V$24,U117,FALSE)) ->  | V119: =IF(ISNUMBER(V121),V121,VLOOKUP($A$32,$A$2:$V$24,V117,FALSE)) -> 
A120: Handmatig aangepast
A122: Overig

Sheet grondbew techniek (1) (hidden)
B1: Nieuwe techniek 1 | C1: bron kwin 2012 | G1: bron: Countus | K1: bron kwin 2012 | O1: bron kwin 2012 | P1: bron kwin 2012 | Q1: bron Agentschap NL 2013
C2: prijs aanschaf | D2: prijs aanschaf min | E2: prijs aanschaf max | F2: gem prijs aanschaf | G2: vermogen | H2: vermogen min | I2: vermogen max | J2: gem vermogen | K2: taaktijden | L2: taaktijd min | M2: taaktijd max | N2: gem taaktijd | O2: gem. afschrijving | P2: gem. onderhoud | Q2: MIA | R2: Vamil | T2: brandstofverbruik | U2: belasting van de motor
C3: euro | D3: euro | E3: euro | F3: euro | G3: kW | H3: kW | I3: kW | J3: kW | K3: uur/ha | L3: uur/ha | M3: uur/ha | N3: uur/ha | O3: % | P3: % | T3: l/ kW | U3: % | V3: gewicht (kg) | W3: countus waarden
A4: 1 | B4: Cultivator schijf | C4: 2500-10000 | D4: 2500 | E4: 10000 | F4: 6250 | G4: 70-150 | H4: 70 | I4: 150 | J4: 110 | K4: 0,75-1 | L4: 0.75 | M4: 1 | N4: 0.875 | O4: 6 | P4: 2.5 | Q4: 0 | R4: 0 | T4: 0.305 | U4: 70 | V4: 1750 | W4: 1000 - 2500
A5: 2 | B5: Cultivator vaste tand | C5: 3750-20000 | D5: 3750 | E5: 20000 | F5: 11875 | G5: 70-150 | H5: 70 | I5: 150 | J5: 110 | K5: 0,75-1 | L5: 0.75 | M5: 1 | N5: 0.875 | O5: 6 | P5: 3.5 | Q5: 0 | R5: 0 | T5: 0.305 | U5: 70 | V5: 1125 | W5: 750 - 1500
A6: 3 | B6: Cultivator veertand | C6: 5130-35000 | D6: 5130 | E6: 35000 | F6: 20065 | G6: 70-150 | H6: 70 | I6: 150 | J6: 110 | K6: 0,75-1 | L6: 0.75 | M6: 1 | N6: 0.875 | O6: 6 | P6: 2.5 | Q6: 0 | R6: 0 | T6: 0.305 | U6: 70 | V6: 1125 | W6: 750 - 1500
A7: 4 | B7: Stoppelcultivator | C7: 4000-6000 | D7: 4000 | E7: 6000 | F7: 5000 | G7: 70-125 | H7: 70 | I7: 125 | J7: 97.5 | K7: 0,75-1 | L7: 0.75 | M7: 1 | N7: 0.875 | O7: 6 | P7: 3 | Q7: 0 | R7: 0 | T7: 0.305 | U7: 70 | V7: 1125 | W7: 750 - 1500
A8: 5 | B8: Frontpakker | C8: 3500-6000 | D8: 3500 | E8: 6000 | F8: 4750 | G8: 50 | H8: 50 | I8: 50 | J8: 50 | K8: 0,75-1 | L8: 0.75 | M8: 1 | N8: 0.875 | O8: 7.5 | P8: 2.5 | Q8: 0 | R8: 0 | T8: 0.305 | U8: 70 | V8: 1125 | W8: 750 - 1500
A9: 6 | B9: Grondfrees | C9: 950-11000 | D9: 950 | E9: 11000 | F9: 5975 | G9: 70-125 | H9: 70 | I9: 125 | J9: 97.5 | K9: 1,5-2,5 | L9: 1.5 | M9: 2.5 | N9: 2 | O9: 9 | P9: 3 | Q9: 0 | R9: 0 | T9: 0.305 | U9: 70 | V9: 1500 | W9: 1000 - 2000
A10: 7 | B10: Hakenfrees | C10: 6000-16800 | D10: 6000 | E10: 16800 | F10: 11400 | G10: 70-125 | H10: 70 | I10: 125 | J10: 97.5 | K10: 1,5-2,5 | L10: 1.5 | M10: 2.5 | N10: 2 | O10: 9 | P10: 3 | Q10: 0 | R10: 0 | T10: 0.305 | U10: 70 | V10: 1500 | W10: 1000 - 2000
A11: 8 | B11: Rotorkopeg | C11: 8000-44000 | D11: 8000 | E11: 44000 | F11: 26000 | G11: 70-150 | H11: 70 | I11: 150 | J11: 110 | K11: 0,8-1,2 | L11: 0.8 | M11: 1.2 | N11: 1 | O11: 7.5 | P11: 3.5 | Q11: 0 | R11: 0 | T11: 0.305 | U11: 70 | V11: 1325 | W11: 750 - 2000
A12: 9 | B12: Schijveneg | C12: 4500-50000 | D12: 4500 | E12: 50000 | F12: 27250 | G12: 70-150 | H12: 70 | I12: 150 | J12: 110 | K12: 0,8-1,2 | L12: 0.8 | M12: 1.2 | N12: 1 | O12: 7.5 | P12: 3.5 | Q12: 0 | R12: 0 | T12: 0.305 | U12: 70 | V12: 1750 | W12: 1000 - 2500
A13: 10 | B13: Spitmachine | C13: 25000-42000 | D13: 25000 | E13: 42000 | F13: 33500 | G13: 70-150 | H13: 70 | I13: 150 | J13: 110 | K13: 1,5-2 | L13: 1.5 | M13: 2 | N13: 1.75 | O13: 9 | P13: 3.5 | Q13: 0 | R13: 0 | T13: 0.305 | U13: 70 | V13: 1750 | W13: 1001 - 2500
A14: 11 | B14: Volveldsfrees | C14: 14500-20000 | D14: 14500 | E14: 20000 | F14: 17250 | G14: 70-125 | H14: 70 | I14: 125 | J14: 97.5 | K14: 1,5-2,5 | L14: 1.5 | M14: 2.5 | N14: 2 | O14: 9 | P14: 3.5 | Q14: 0 | R14: 0 | T14: 0.305 | U14: 70 | V14: 1500 | W14: 1000 - 2000
A15: 12 | B15: Voorzetwoeler | C15: 5300-8000 | D15: 5300 | E15: 8000 | F15: 6650 | G15: 70-125 | H15: 70 | I15: 125 | J15: 97.5 | K15: 0,8-1,2 | L15: 0.8 | M15: 1.2 | N15: 1 | O15: 4.5 | P15: 2 | Q15: 0 | R15: 0 | T15: 0.305 | U15: 70 | V15: 750 | W15: 500 - 1000
A16: 13 | B16: Vorenpakker enkel of dubbel | C16: 2000-9800 | D16: 2000 | E16: 9800 | F16: 5900 | G16: 40-70 | H16: 40 | I16: 70 | J16: 55 | K16: 0.5 | L16: 0.5 | M16: 0.5 | N16: 0.5 | O16: 7.5 | P16: 1.5 | Q16: 0 | R16: 0 | S16: extra | T16: 0.305 | U16: 70 | V16: 1125 | W16: 750 - 1500
A17: 14 | B17: Vorenpakker frontopbouw | C17: 3000-15000 | D17: 3000 | E17: 15000 | F17: 9000 | G17: 40-70 | H17: 40 | I17: 70 | J17: 55 | K17: 0.5 | L17: 0.5 | M17: 0.5 | N17: 0.5 | O17: 7.5 | P17: 1.5 | Q17: 0 | R17: 0 | S17: extra | T17: 0.305 | U17: 70 | V17: 1125 | W17: 750 - 1500
A18: 15 | B18: Wentelploeg | C18: 20000-55000 | D18: 20000 | E18: 55000 | F18: 37500 | G18: 70-150 | H18: 70 | I18: 150 | J18: 110 | K18: 1,5-2 | L18: 1.5 | M18: 2 | N18: 1.75 | O18: 7.5 | P18: 5 | Q18: 0 | R18: 0 | T18: 0.305 | U18: 70 | V18: 2250 | W18: 1500 - 3000
A19: 16 | B19: Woeler | C19: 2000-14000 | D19: 2000 | E19: 14000 | F19: 8000 | G19: 70-100 | H19: 70 | I19: 100 | J19: 85 | K19: 0,8-1,2 | L19: 0.8 | M19: 1.2 | N19: 1 | O19: 4.5 | P19: 2 | Q19: 0 | R19: 0 | T19: 0.305 | U19: 70 | V19: 750 | W19: 500 - 1000
A20: 17 | B20: Zaaibedcombinatie gedragen | C20: 3500-25000 | D20: 3500 | E20: 25000 | F20: 14250 | G20: 70-125 | H20: 70 | I20: 125 | J20: 97.5 | K20: 0,5-1 | L20: 0.5 | M20: 1 | N20: 0.75 | O20: 6 | P20: 2 | Q20: 0 | R20: 0 | T20: 0.305 | U20: 70 | V20: 1250 | W20: 500 - 2000
A21: 18 | B21: Duwploeg | C21: 15000-20000 | D21: 15000 | E21: 20000 | F21: 17500 | G21: 40-70 | H21: 40 | I21: 70 | J21: 55 | K21: 0.5 | L21: 0.5 | M21: 0.5 | N21: 0.5 | O21: 7.5 | P21: 5 | Q21: 0 | R21: 0 | S21: extra | T21: 0.305 | U21: 70 | V21: 1500 | W21: 1000 - 2000
A22: 19 | B22: Rupsbanden | O22: ? | P22: ? | Q22: 0 | R22: 0 | T22: 0.305 | U22: 70 | V22: 500 | W22: 500
A23: 20 | B23: Techniek + vasterijpaden | O23: ? | P23: ? | Q23: 0 | R23: 0 | T23: 0.305 | U23: 70 | V23: 0.1
B29: 2 | C29: 3 | D29: 4 | E29: 5 | F29: 6 | G29: 7 | H29: 8 | I29: 9 | J29: 10 | K29: 11 | L29: 12 | M29: 13 | N29: 14 | O29: 15 | P29: 16 | Q29: 17 | R29: 18 | S29: 19 | T29: 20 | U29: 21 | V29: 22
A30: Rekenwaarde | B30: Check
A31: 1 | B31: =IF(ISNA(VLOOKUP($A$31,$A$4:$U$23,B29,FALSE)),"",VLOOKUP($A$31,$A$2:$U$23,B29,FALSE)) -> Cultivator schijf | C31: =IF(ISNA(VLOOKUP($A$31,$A$4:$U$23,C29,FALSE)),"",VLOOKUP($A$31,$A$2:$U$23,C29,FALSE)) -> 2500-10000 | D31: =IF(ISNA(VLOOKUP($A$31,$A$4:$U$23,D29,FALSE)),"",VLOOKUP($A$31,$A$2:$U$23,D29,FALSE)) -> 2500 | E31: 10000 | F31: =IF(ISNUMBER(F33),F33,VLOOKUP($A$31,$A$2:$U$23,F29,FALSE)) -> 6250 | G31: 70-150 | H31: 70 | I31: 150 | J31: =IF(ISNUMBER(J33),J33,VLOOKUP($A$31,$A$2:$U$23,J29,FALSE)) -> 110 | K31: 0,75-1 | L31: 0.75 | M31: 1 | N31: =IF(ISNUMBER(N33),N33,VLOOKUP($A$31,$A$2:$U$23,N29,FALSE)) -> 0.875 | O31: =IF(ISNUMBER(O33),O33,VLOOKUP($A$31,$A$2:$U$23,O29,FALSE)) -> 6 | P31: =IF(ISNUMBER(P33),P33,VLOOKUP($A$31,$A$2:$U$23,P29,FALSE)) -> 2.5 | Q31: 0 | R31: 0 | S31: 0 | T31: =IF(ISNUMBER(T33),T33,VLOOKUP($A$31,$A$2:$U$23,T29,FALSE)) -> 0.305 | U31: =IF(ISNUMBER(U33),U33,VLOOKUP($A$31,$A$2:$V$23,U29,FALSE)) -> 70 | V31: =IF(ISNUMBER(V33),V33,VLOOKUP($A$31,$A$2:$V$23,V29,FALSE)) -> 1750
A32: Handmatig aangepast

Sheet Watermanagement (hidden)

Sheet crop residue paludi (hidden)
A1: Crop | B1: Water level | C1: Product | D1: Potential for carbon credits | E1: Potential for blue credits | F1: Existing production areas including pilots (in ha) and potential areas (in italics) | G1: References | Q1: Table 1. Overview of important paludiculture crops and applications, range in water levels, existing production areas including pilots and potential areas, potential for carbon credits based on estimates of GHG emission reduction (including biomass use for replacing fossil resources), and potential for blue credits based on suitability for water purification (P) and water storage (S): ++ very high potential, + high potential, 0 little potential, - negative effect.
B2: (cm +/- soil surface) | H2: Oogstijd | I2: Lengte stoppel (m) | J2: Totale lengte spruit (m) | L2: Oogst ton DS/ha min/max | M2: Oogstrest (ton ds/ha) | N2: bron | O2: Opmerking
A3: Cattail | B3: 0 to +20 | C3: insulation and building material | D3: + | E3: P + | F3: Kamp (D) 30 | G3: Pijlman et al., 2019
A4: (Typha sp.) | E4: S + | F4: Zuiderveen (NL) 4 | G4: Rejmankova 2011
F5: Peel (NL) 1 | G5: Vroom et al., 2018 | H5: nov - feb | I5: 0.25 | J5: 1.8 | K5: =I5/((1.8+2.5)/2) -> 0.1162790698 | L5: 5 | M5: =(L5/(J5-I5))*I5 -> 0.8064516129 | N5: Paetzel 2018
F6: Bûtefjild (NL) 0.1 | G6: Yavitt and Knapp, 1995 | H6: nov - feb | I6: 0.25 | J6: 2.5 | L6: 15 | M6: =(L6/(J6-I6))*I6 -> 1.666666667 | N6: Wichtmann et al. 2016
F7: Danube delta (RO) | G7: Wild et al., 2001
G8: Heinz, 2012
C9: bedding material | D9: + | E9: P + | F9: Peel (NL) 1 | G9: Geurts and Fritz, 2018 | H9: nov - feb | I9: 0.25 | J9: 1.8 | L9: 5 | M9: =(L9/(J9-I9))*I9 -> 0.8064516129 | Q9: Short position paper in Landbauforschung Journal of Sustainable and Organic Agricultural Systems
E10: S + | F10: Zegveld (NL) 0.4 | G10: Grosshans et al., 2013 | H10: nov - feb | I10: 0.25 | J10: 2.5 | L10: 15 | M10: =(L10/(J10-I10))*I10 -> 1.666666667
C11: extraction of protein, fibres, cellulose | D11: 0/+ | E11: P ++ | F11: Canada | G11: Chakma et al., 2017 | H11: juli - aug? | I11: 0.25 | J11: 1.8 | L11: =L5/3*4 -> 6.666666667 | M11: =(L11/(J11-I11))*I11 -> 1.075268817 | O11: opbrengst verhouding tot winteroogst gebaseerd op Pijlman et al. 2019 | Q11: Climate mitigation and provision of ecosystem services on rewetted peat soils used for paludiculture
E12: S + | G12: Zhang et al., 2011 | I12: 0.25 | J12: 2.5 | L12: =L6/3*4 -> 20 | M12: =(L12/(J12-I12))*I12 -> 2.222222222 | Q12: J.J.M. Geurts, G.A. van Duinen, J. van Belle, S. Wichmann, W. Wichtmann & C. Fritz
C13: feed for pest-controlling predatory mites | D13: 0/+ | E13: P ++ | F13: Zegveld (NL) 0.4 | G13: Rahman et al., 2015 | H13: mei - juni | I13: n/a | M13: n/a | O13: oogst betreft het stuifmeel. Wordt dus gecombineerd met andere oogst
E14: S + | I14: n/a | M14: n/a
C15: fodder | D15: -/+ | E15: P ++ | F15: Peel (NL) 1 ha | H15: mei | I15: 0.25 | J15: 0.6 | L15: 3 | M15: =(L15/(J15-I15))*I15 -> 2.142857143 | N15: Pijlman et al. 2019
E16: S + | F16: Zegveld (NL) 0.4
C17: combustion | D17: -/+ | E17: P + | F17: Canada > 500 | H17: nov - feb | I17: 0.25 | J17: 1.8 | L17: 5 | M17: =(L17/(J17-I17))*I17 -> 0.8064516129
E18: S + | I18: 0.25 | J18: 2.5 | L18: 15 | M18: =(L18/(J18-I18))*I18 -> 1.666666667
A19: Reed (Phragmites australis) | B19: -20 to +20 | C19: thatching, insulation and building material | D19: ++ | E19: P + | F19: UK 6,500 | G19: Van den Berg et al., 2016; Rezaie and Sahlezadeh, 2014; Köbbing et al., 2013; Wichmann and Köbbing, 2015; Wichtmann et al., 2014; Van der Sluis et al., 2013; Dragoni et al., 2017; Wichtmann et al., 2016
E20: S ++ | F20: Netherlands 4,500
F21: Mecklenburg-Vorpommern (D) 550 | H21: nov/feb | I21: 0.1 | J21: 2 | K21: =I21/((1.8+2.5)/2) -> 0.04651162791 | L21: 8 | M21: =(L21/(J21-I21))*I21 -> 0.4210526316 | N21: Wichtmann et al. 2016
F22: Poland 8,000 | I22: 0.1 | J22: 3 | L22: ? | O22: geen info over max. yield gevonden
F23: Hungary 7,500
F24: Austria 1,500
F25: Denmark, China
F26: Romania 190,000
F27: Ukraine >100,000
C28: paper | D28: ++/+ | E28: P + | F28: China > 1 million | H28: nov/feb | I28: 0.1 | J28: 2 | L28: 8 | M28: =(L28/(J28-I28))*I28 -> 0.4210526316 | N28: Wichtmann et al. 2016
E29: S ++ | I29: 0.1 | J29: 3 | L29: ? | O29: geen info over max. yield gevonden
C30: extraction of protein, fibres, cellulose | D30: 0/+ | E30: P +/++ | F30: Germany | I30: 0.1 | J30: 2 | L30: 8 | M30: =(L30/(J30-I30))*I30 -> 0.4210526316 | N30: Wichtmann et al. 2016 | O30: dit gaat uit van winteroogst, omdat oogst tijdens groeiseizoen slecht wordt verdragen door Riet
E31: S ++ | H31: nov/feb?? | I31: 0.1 | J31: 3 | L31: ?
C32: combustion/ biogas | D32: -/+ | E32: P +/++ | F32: Italy 0.75 | I32: 0.1 | J32: 2 | L32: 8 | M32: =(L32/(J32-I32))*I32 -> 0.4210526316 | N32: Wichtmann et al. 2016
E33: S ++ | F33: Germany | H33: nov/feb | I33: 0.1 | J33: 3 | L33: ? | O33: geen info over max. yield gevonden
F34: Belarus & Ukraine: large potential areas
A35: Peat moss (Sphagnum sp.) | B35: -15 to -5 | C35: high quality substrate in horticulture | D35: ++ | E35: P + | F35: Hankhausen (D) 14 | G35: Beyer and Höper, 2015; Temmink et al., 2017; Günther et al., 2017; Gaudig et al. 2018
E36: S 0/+ | F36: Twist (D) 10 | M36: 0 | O36: geen oogstrest, want oogst is plant + dode plant
F37: Ilperveld (NL) 8 | I37: ???
F38: Canada 8 | Q38: oogstmomenten lisdodde
F39: Finland, Chile | Q39: uit Geurts et al 2017 - Paludicultuur houdt de polder schoon. H2O online
A40: Grasses like reed canary grass | B40: -30 to +10 | C40: combustion/ biogas | D40: -/+ | E40: P 0 | F40: Malchin (D) 200 | G40: Hurry and Bellinger, 1990; | I40: mei - sep | M40: ? | O40: vergelijkbaar met ander grasland, maar minder eiwitrijk
A41: (Phalaris arundinacea) | E41: S + | F41: Denmark, Estonia, Belarus | G41: Kao et al., 2003;
C42: fodder | D42: 0/+ | E42: P 0/+ | F42: Mecklenburg-Vorpommern (D) | G42: Karki et al., 2014; Wichtmann et al., 2016 | I42: mei - sep | M42: ? | O42: vergelijkbaar met ander grasland, maar minder eiwitrijk
E43: S +
A44: Alder (Alnus sp.) | B44: -40 to +5 | C44: wood/timber | D44: ++ | E44: P 0/+ | F44: Mecklenburg-Vorpommern (D) 40,000 | G44: Abel 2016; Rusch and Rennenberg, 1998; Schäfer and Joosten, 2005 | I44: jan - feb? | M44: 0 | O44: geen oogstrest, want stobben groeien weer uit
E45: S ++ | F45: USA
